﻿Directorate,Service,Division,Responsible Unit,Expense Type,Payment Date,Trans No,Net Amount,Supplier Name
Adults Services,Adult Social Care,Physical Support - adults (18-64),Public Health � Healthy Middle Age & Older People.,Payments to Private Contractors - Other Contractors,01/07/2016,3674368,"1,305.58",Medichem (Bright Bridge Ltd)
Adults Services,Adult Social Care,Physical Support - adults (18-64),Public Health � Healthy Middle Age & Older People.,Payments to Private Contractors - Other Contractors,01/07/2016,3674374,596.67,Day Lewis Plc
Adults Services,Adult Social Care,Physical Support - adults (18-64),Public Health � Healthy Middle Age & Older People.,Payments to Private Contractors - Other Contractors,01/07/2016,3674376,672.83,ABC Drugstores Ltd 730
Adults Services,Adult Social Care,Physical Support - adults (18-64),Public Health � Healthy Young Adults,Payments to Private Contractors - Other Contractors,01/07/2016,3674395,574.10,Sonrak Ltd t/a Massighams Chemist
Adults Services,Adult Social Care,Physical Support - adults (18-64),Public Health � Healthy Middle Age & Older People.,Payments to Private Contractors - Other Contractors,01/07/2016,3674396,"1,213.94",Sonrak Ltd t/a Massighams Chemist
Adults Services,Public Health,Miscellaneous Public Health Services,Public Health Team - 3,Payments to Private Contractors - Other Contractors,01/07/2016,3674404,"20,060.00",EMIS
Adults Services,Adult Social Care,Physical Support - adults (18-64),Public Health � Healthy Young Adults,Payments to Private Contractors - Other Contractors,01/07/2016,3674408,830.10,Guardian Pharmacy t/a Lansbury Chemist
Adults Services,Adult Social Care,Physical Support - adults (18-64),Public Health � Healthy Middle Age & Older People.,Payments to Private Contractors - Other Contractors,01/07/2016,3674409,708.82,Guardian Pharmacy t/a Lansbury Chemist
Adults Services,Adult Social Care,Physical Support - adults (18-64),Public Health � Healthy Young Adults,Payments to Private Contractors - Other Contractors,01/07/2016,3674428,575.80,Chapel Pharmacy
Adults Services,Adult Social Care,Physical Support - adults (18-64),Public Health � Healthy Middle Age & Older People.,Payments to Private Contractors - Other Contractors,01/07/2016,3674429,888.13,Chapel Pharmacy
Adults Services,Adult Social Care,Physical Support - adults (18-64),Public Health � Healthy Middle Age & Older People.,Payments to Private Contractors - Other Contractors,01/07/2016,3674432,609.20,Boots UK Ltd Store 700
Adults Services,Adult Social Care,Physical Support - adults (18-64),Public Health � Healthy Young Adults,Payments to Private Contractors - Other Contractors,01/07/2016,3674434,"1,364.16",Forward Pharmacy
Adults Services,Adult Social Care,Physical Support - adults (18-64),Public Health � Healthy Middle Age & Older People.,Payments to Private Contractors - Other Contractors,01/07/2016,3674435,753.39,Forward Pharmacy
Adults Services,Adult Social Care,Physical Support - adults (18-64),Public Health � Healthy Middle Age & Older People.,Payments to Private Contractors - Other Contractors,01/07/2016,3674450,768.97,Waremoss Ltd
Adults Services,Adult Social Care,Physical Support - adults (18-64),Public Health � Healthy Middle Age & Older People.,Payments to Private Contractors - Other Contractors,01/07/2016,3674460,910.54,AR Parmar Ltd
Adults Services,Adult Social Care,Physical Support - adults (18-64),Public Health � Healthy Young Adults,Payments to Private Contractors - Other Contractors,01/07/2016,3674520,"1,100.50",Green Light Pharmacy Hannaford
Adults Services,Adult Social Care,Support with Memory and Cognition - adults (18-64),Cmht Iod / Poplar South,Social Care - Supported Living,01/07/2016,3675851,-753.72,Look Ahead Care & Support Ltd
Adults Services,Adult Social Care,Support with Memory and Cognition - adults (18-64),Cmht Iod / Poplar South,Social Care - Supported Living,01/07/2016,3675854,-753.72,Look Ahead Care & Support Ltd
Adults Services,Adult Social Care,Support with Memory and Cognition - adults (18-64),Tower Hamlets Care Alarms,Community Equipment  Supplies - Aids and Appliances,01/07/2016,3676263,"8,800.00",Chubb Systems Ltd
Adults Services,Public Health,Smoking and Tobacco,Public Health Team - 2,Third Party Payments - Other Establishments,01/07/2016,3678530,"26,830.00",Imperial College Healthcare NHS Trust
Adults Services,Adult Social Care,Support with Memory and Cognition - adults (18-64),Generic Care Packages SE Team -PS,Social Care - Residential Care,01/07/2016,3679385,"2,507.14",BARCHESTER HEALTHCARE
Adults Services,Adult Social Care,Support with Memory and Cognition - adults (18-64),Generic Care Packages SW Team - PS,Social Care - Residential Care,01/07/2016,3679386,"2,705.36",BARCHESTER HEALTHCARE
Adults Services,Adult Social Care,Support with Memory and Cognition - adults (18-64),Generic Care Packages SW Team - PS,Social Care - Residential Care,01/07/2016,3679387,"2,400.00",BARCHESTER HEALTHCARE
Adults Services,Adult Social Care,Support with Memory and Cognition - adults (18-64),Generic Care Packages SE Team -PS,Social Care - Nursing Care,01/07/2016,3679388,"2,348.57",BARCHESTER HEALTHCARE
Adults Services,Adult Social Care,Support with Memory and Cognition - adults (18-64),Generic Care Packages NW Team -PS,Social Care - Residential Care,01/07/2016,3679389,"1,708.71",BARCHESTER HEALTHCARE
Adults Services,Adult Social Care,Support with Memory and Cognition - adults (18-64),Generic Care Packages NW Team-SMC,Social Care - Nursing Care,01/07/2016,3679390,"2,348.57",BARCHESTER HEALTHCARE
Adults Services,Adult Social Care,Support with Memory and Cognition - adults (18-64),Generic Care Packages SE Team -PS,Social Care - Nursing Care,01/07/2016,3679391,"2,627.14",BARCHESTER HEALTHCARE
Adults Services,Adult Social Care,Support with Memory and Cognition - adults (18-64),Generic Care Packages SE Team -PS,Social Care - Nursing Care,01/07/2016,3679392,"3,162.86",BARCHESTER HEALTHCARE
Adults Services,Adult Social Care,Support with Memory and Cognition - adults (18-64),CLDS Longer Term Support Teams,Social Care - Day Care,01/07/2016,3679676,"1,076.16",Somerset County Council
Adults Services,Adult Social Care,Support with Memory and Cognition - adults (18-64),CLDS Longer Term Support Teams,Social Care - Day Care,01/07/2016,3679677,"1,076.16",Somerset County Council
Adults Services,Adult Social Care,Support with Memory and Cognition - adults (18-64),Generic Care Packages SE Team -PS,Social Care - Nursing Care,01/07/2016,3679889,"2,305.71",Ladyville Lodge Care Home (part of Four Seasons Health Care Ltd
Adults Services,Adult Social Care,Support with Memory and Cognition - adults (18-64),Generic Care Packages SE Team -PS,Social Care - Nursing Care,01/07/2016,3682322,"2,113.59",Sunhill Court
Adults Services,Public Health,Smoking and Tobacco,Public Health Team - 2,Third Party Payments - Other Establishments,01/07/2016,3682549,"1,944.00",Barking Havering & Redbridge University NHS Trust
Adults Services,Adult Social Care,Physical Support - adults (18-64),Adult Protection Team,Services - Professional Fees - Consultants Fees,01/07/2016,3686409,840.00,MT Robertson Services Ltd
Adults Services,Adult Social Care,Support with Memory and Cognition - adults (18-64),Generic Care Packages NE Team -PS,Social Care - Residential Care,01/07/2016,3688284,"3,376.29",DEARY-ST IVES LODGE
Adults Services,Adult Social Care,Support with Memory and Cognition - adults (18-64),Generic Care Packages NW Team -PS,Social Care - Nursing Care,01/07/2016,3688300,"3,792.86",BARCHESTER HEALTHCARE
Adults Services,Adult Social Care,Support with Memory and Cognition - adults (18-64),Generic Care Packages NW Team -PS,Social Care - Direct Payments,01/07/2016,3688497,"-4,400.00",DAVID HOWARD LTD CLIENT ACCOUNT
Adults Services,Adult Social Care,Support with Memory and Cognition - adults (18-64),Generic Care Packages NW Team -PS,Social Care - Direct Payments,01/07/2016,3688498,-950.00,DAVID HOWARD LTD CLIENT ACCOUNT
Adults Services,Adult Social Care,Support with Memory and Cognition - adults (18-64),Generic Care Packages SE Team -PS,Social Care - Direct Payments,01/07/2016,3688501,"-3,108.56",DAVID HOWARD LTD CLIENT ACCOUNT
Adults Services,Adult Social Care,Support with Memory and Cognition - adults (18-64),Generic Care Packages SE Team -PS,Social Care - Direct Payments,01/07/2016,3688503,"3,111.52",DAVID HOWARD LTD CLIENT ACCOUNT
Adults Services,Adult Social Care,Support with Memory and Cognition - adults (18-64),Generic Care Packages NW Team -PS,Social Care - Residential Care,01/07/2016,3688687,808.15,ALTON HOUSE
Adults Services,Adult Social Care,Physical Support - adults (18-64),"Failed Care Package Conversion		",Social Care - Others,01/07/2016,3688833,"-5,440.44",DAVID HOWARD LTD CLIENT ACCOUNT
Adults Services,Adult Social Care,Support with Memory and Cognition - adults (18-64),CLDS Longer Term Support Teams,Social Care - Supported Living,01/07/2016,3688906,"5,678.00",Church House
Adults Services,No Service Specified,No Division Specified,Community Equipment Store,Community Equipment  Supplies - Aids and Appliances,01/07/2016,3689122,660.72,C S NASH LTD
Adults Services,No Service Specified,No Division Specified,Capital-Minor Works (SC),Building Works - Main Works,01/07/2016,3689789,"1,800.00",Jenkins & Potter Ltd
Adults Services,Adult Social Care,Physical Support - adults (18-64),Mental Health Commissioning,Social Care - Prevention & Support,01/07/2016,3689884,"3,600.88",Look Ahead Care & Support Ltd
Adults Services,Adult Social Care,Support with Memory and Cognition - adults (18-64),CLDS Longer Term Support Teams,Social Care - Residential Care,01/07/2016,3690003,"7,594.50",Care Management Group Ltd
Adults Services,Adult Social Care,Support with Memory and Cognition - adults (18-64),Generic Care Packages SE Team -PS,Social Care - Homecare,01/07/2016,3690024,"1,506.26",FOCUS CARE LINK LTD
Adults Services,Adult Social Care,Support with Memory and Cognition - adults (18-64),Generic Care Packages SW Team - PS,Social Care - Homecare,01/07/2016,3690031,545.22,Carewatch Newham Ltd
Adults Services,Adult Social Care,Support with Memory and Cognition - adults (18-64),Generic Care Packages SE Team -PS,Social Care - Homecare,01/07/2016,3690035,"1,650.95",FOCUS CARE LINK LTD
Adults Services,Adult Social Care,Support with Memory and Cognition - adults (18-64),Generic Care Packages SW Team - PS,Social Care - Homecare,01/07/2016,3690037,"1,454.32",FOCUS CARE LINK LTD
Adults Services,Adult Social Care,Support with Memory and Cognition - adults (18-64),Generic Care Packages SW Team - PS,Social Care - Homecare,01/07/2016,3690039,545.22,Carewatch Newham Ltd
Adults Services,Adult Social Care,Support with Memory and Cognition - adults (18-64),Cmht Bow / Poplar North,Social Care - Homecare,01/07/2016,3690056,896.63,FOCUS CARE LINK LTD
Adults Services,Adult Social Care,Support with Memory and Cognition - adults (18-64),Generic Care Packages SW Team - PS,Social Care - Homecare,01/07/2016,3690067,767.97,FOCUS CARE LINK LTD
Adults Services,Adult Social Care,Support with Memory and Cognition - adults (18-64),Generic Care Packages NE Team -PS,Social Care - Homecare,01/07/2016,3690068,515.68,Carewatch Newham Ltd
Adults Services,Adult Social Care,Support with Memory and Cognition - adults (18-64),Generic Care Packages NE Team -PS,Social Care - Homecare,01/07/2016,3690070,515.88,Carewatch Newham Ltd
Adults Services,Adult Social Care,Support with Memory and Cognition - adults (18-64),Generic Care Packages NE Team -PS,Social Care - Homecare,01/07/2016,3690072,860.72,FOCUS CARE LINK LTD
Adults Services,Adult Social Care,Support with Memory and Cognition - adults (18-64),Generic Care Packages SW Team - PS,Social Care - Homecare,01/07/2016,3690074,526.82,FOCUS CARE LINK LTD
Adults Services,Adult Social Care,Support with Memory and Cognition - adults (18-64),Generic Care Packages NE Team -PS,Social Care - Homecare,01/07/2016,3690078,601.86,Carewatch Newham Ltd
Adults Services,Adult Social Care,Support with Memory and Cognition - adults (18-64),Generic Care Packages SW Team - PS,Social Care - Homecare,01/07/2016,3690085,"1,402.38",FOCUS CARE LINK LTD
Adults Services,Adult Social Care,Support with Memory and Cognition - adults (18-64),Generic Care Packages SE Team -PS,Social Care - Homecare,01/07/2016,3690087,541.66,FOCUS CARE LINK LTD
Adults Services,Adult Social Care,Support with Memory and Cognition - adults (18-64),Generic Care Packages NE Team -PS,Social Care - Homecare,01/07/2016,3690090,601.86,Carewatch Newham Ltd
Adults Services,Adult Social Care,Support with Memory and Cognition - adults (18-64),Generic Care Packages SW Team - PS,Social Care - Homecare,01/07/2016,3690091,559.08,Carewatch Newham Ltd
Adults Services,Adult Social Care,Support with Memory and Cognition - adults (18-64),Generic Care Packages SE Team -PS,Social Care - Homecare,01/07/2016,3690118,"1,117.88",Carewatch Newham Ltd
Adults Services,Adult Social Care,Support with Memory and Cognition - adults (18-64),Generic Care Packages SE Team -PS,Social Care - Homecare,01/07/2016,3690119,981.68,Carewatch Newham Ltd
Adults Services,Adult Social Care,Support with Memory and Cognition - adults (18-64),Generic Care Packages NW Team -PS,Social Care - Homecare,01/07/2016,3690126,501.62,Carewatch Newham Ltd
Adults Services,Adult Social Care,Support with Memory and Cognition - adults (18-64),Generic Care Packages SE Team -PS,Social Care - Homecare,01/07/2016,3690128,902.86,Carewatch Newham Ltd
Adults Services,Adult Social Care,Support with Memory and Cognition - adults (18-64),Generic Care Packages NE Team -PS,Social Care - Homecare,01/07/2016,3690130,594.78,Carewatch Newham Ltd
Adults Services,Adult Social Care,Support with Memory and Cognition - adults (18-64),Generic Care Packages NE Team -PS,Social Care - Homecare,01/07/2016,3690133,501.70,Carewatch Newham Ltd
Adults Services,Adult Social Care,Support with Memory and Cognition - adults (18-64),Generic Care Packages NE Team -PS,Social Care - Homecare,01/07/2016,3690139,601.86,Carewatch Newham Ltd
Adults Services,Adult Social Care,Support with Memory and Cognition - adults (18-64),Generic Care Packages NW Team -PS,Social Care - Homecare,01/07/2016,3690143,637.74,Carewatch Newham Ltd
Adults Services,Adult Social Care,Support with Memory and Cognition - adults (18-64),Generic Care Packages SW Team - PS,Social Care - Homecare,01/07/2016,3690144,559.08,Carewatch Newham Ltd
Adults Services,Adult Social Care,Support with Memory and Cognition - adults (18-64),Generic Care Packages SE Team -PS,Social Care - Homecare,01/07/2016,3690149,673.58,Carewatch Newham Ltd
Adults Services,Adult Social Care,Support with Memory and Cognition - adults (18-64),Generic Care Packages NE Team -PS,Social Care - Homecare,01/07/2016,3690153,"1,203.86",Carewatch Newham Ltd
Adults Services,Adult Social Care,Support with Memory and Cognition - adults (18-64),Generic Care Packages SE Team -PS,Social Care - Homecare,01/07/2016,3690172,"1,117.88",Carewatch Newham Ltd
Adults Services,Adult Social Care,Support with Memory and Cognition - adults (18-64),Generic Care Packages SE Team -PS,Social Care - Homecare,01/07/2016,3690173,996.01,Carewatch Newham Ltd
Adults Services,Adult Social Care,Support with Memory and Cognition - adults (18-64),Generic Care Packages SW Team - PS,Social Care - Homecare,01/07/2016,3690174,"1,117.72",Carewatch Newham Ltd
Adults Services,Adult Social Care,Support with Memory and Cognition - adults (18-64),Generic Care Packages NW Team -PS,Social Care - Homecare,01/07/2016,3690183,523.12,Carewatch Newham Ltd
Adults Services,Adult Social Care,Support with Memory and Cognition - adults (18-64),Generic Care Packages SE Team -PS,Social Care - Homecare,01/07/2016,3690185,917.19,Carewatch Newham Ltd
Adults Services,Adult Social Care,Support with Memory and Cognition - adults (18-64),Generic Care Packages NE Team -PS,Social Care - Homecare,01/07/2016,3690187,594.78,Carewatch Newham Ltd
Adults Services,Adult Social Care,Support with Memory and Cognition - adults (18-64),Generic Care Packages NE Team -PS,Social Care - Homecare,01/07/2016,3690189,501.70,Carewatch Newham Ltd
Adults Services,Adult Social Care,Support with Memory and Cognition - adults (18-64),Cmht Iod / Poplar South,Social Care - Homecare,01/07/2016,3690191,673.54,Carewatch Newham Ltd
Adults Services,Adult Social Care,Support with Memory and Cognition - adults (18-64),Generic Care Packages NW Team -PS,Social Care - Homecare,01/07/2016,3690195,"1,447.48",Carewatch Newham Ltd
Adults Services,Adult Social Care,Support with Memory and Cognition - adults (18-64),Generic Care Packages NW Team -PS,Social Care - Homecare,01/07/2016,3690197,"1,089.08",Carewatch Newham Ltd
Adults Services,Adult Social Care,Support with Memory and Cognition - adults (18-64),Generic Care Packages NE Team -PS,Social Care - Homecare,01/07/2016,3690199,601.86,Carewatch Newham Ltd
Adults Services,Adult Social Care,Support with Memory and Cognition - adults (18-64),Generic Care Packages NW Team -PS,Social Care - Homecare,01/07/2016,3690203,637.74,Carewatch Newham Ltd
Adults Services,Adult Social Care,Support with Memory and Cognition - adults (18-64),Generic Care Packages SW Team - PS,Social Care - Homecare,01/07/2016,3690204,559.08,Carewatch Newham Ltd
Adults Services,Adult Social Care,Support with Memory and Cognition - adults (18-64),Generic Care Packages SE Team -PS,Social Care - Homecare,01/07/2016,3690210,673.58,Carewatch Newham Ltd
Adults Services,Adult Social Care,Support with Memory and Cognition - adults (18-64),Generic Care Packages NE Team -PS,Social Care - Homecare,01/07/2016,3690214,"1,203.86",Carewatch Newham Ltd
Adults Services,Adult Social Care,Support with Memory and Cognition - adults (18-64),Generic Care Packages NW Team -PS,Social Care - Homecare,01/07/2016,3690219,"1,074.90",Carewatch Newham Ltd
Adults Services,Adult Social Care,Support with Memory and Cognition - adults (18-64),Generic Care Packages SE Team -PS,Social Care - Home Care (Short Term),01/07/2016,3690229,530.42,Carewatch Newham Ltd
Adults Services,Adult Social Care,Support with Memory and Cognition - adults (18-64),CLDS Longer Term Support Teams,Social Care - Homecare,01/07/2016,3690238,"1,287.75",Mantra Recruitment
Adults Services,Adult Social Care,Support with Memory and Cognition - adults (18-64),CLDS Longer Term Support Teams,Social Care - Homecare,01/07/2016,3690241,"1,287.75",Mantra Recruitment
Adults Services,Adult Social Care,Support with Memory and Cognition - adults (18-64),CLDS Longer Term Support Teams,Social Care - Homecare,01/07/2016,3690262,"1,326.00",Mantra Recruitment
Adults Services,Adult Social Care,Support with Memory and Cognition - adults (18-64),Generic Care Packages SW Team - PS,Social Care - Homecare,01/07/2016,3690272,660.38,FOCUS CARE LINK LTD
Adults Services,Adult Social Care,Support with Memory and Cognition - adults (18-64),Generic Care Packages SE Team -PS,Social Care - Homecare,01/07/2016,3690274,"1,498.84",FOCUS CARE LINK LTD
Adults Services,Adult Social Care,Support with Memory and Cognition - adults (18-64),CLDS Longer Term Support Teams,Social Care - Homecare,01/07/2016,3690278,"1,320.90",Mantra Recruitment
Adults Services,Adult Social Care,Support with Memory and Cognition - adults (18-64),CLDS Longer Term Support Teams,Social Care - Homecare,01/07/2016,3690288,"1,287.75",Mantra Recruitment
Adults Services,Adult Social Care,Support with Memory and Cognition - adults (18-64),Generic Care Packages SE Team -PS,Social Care - Homecare,01/07/2016,3690290,"1,643.53",FOCUS CARE LINK LTD
Adults Services,Adult Social Care,Support with Memory and Cognition - adults (18-64),Generic Care Packages SW Team - PS,Social Care - Homecare,01/07/2016,3690291,"1,454.32",FOCUS CARE LINK LTD
Adults Services,Adult Social Care,Support with Memory and Cognition - adults (18-64),Generic Care Packages NE Team -PS,Social Care - Homecare,01/07/2016,3690305,-800.45,SEVACARE UK LTD
Adults Services,Adult Social Care,Support with Memory and Cognition - adults (18-64),CLDS Longer Term Support Teams,Social Care - Homecare,01/07/2016,3690311,"2,575.50",Mantra Recruitment
Adults Services,Adult Social Care,Support with Memory and Cognition - adults (18-64),Generic Care Packages SE Team -PS,Social Care - Homecare,01/07/2016,3690322,724.20,Mantra Recruitment
Adults Services,Adult Social Care,Support with Memory and Cognition - adults (18-64),Generic Care Packages SW Team - PS,Social Care - Homecare,01/07/2016,3690331,962.10,Mantra Recruitment
Adults Services,Adult Social Care,Support with Memory and Cognition - adults (18-64),Generic Care Packages SE Team -PS,Social Care - Homecare,01/07/2016,3690333,"1,313.25",Mantra Recruitment
Adults Services,Adult Social Care,Support with Memory and Cognition - adults (18-64),CLDS Longer Term Support Teams,Social Care - Homecare,01/07/2016,3690337,510.02,Mantra Recruitment
Adults Services,Adult Social Care,Support with Memory and Cognition - adults (18-64),"Generic Care Packages NE Team-MH			",Social Care - Homecare,01/07/2016,3690339,"1,088.85",Mantra Recruitment
Adults Services,Adult Social Care,Support with Memory and Cognition - adults (18-64),Cmht For Older People,Social Care - Homecare,01/07/2016,3690342,811.02,Mantra Recruitment
Adults Services,Adult Social Care,Support with Memory and Cognition - adults (18-64),Generic Care Packages NE Team -PS,Social Care - Home Care (Short Term),01/07/2016,3690343,689.77,Mantra Recruitment
Adults Services,Adult Social Care,Support with Memory and Cognition - adults (18-64),CLDS Longer Term Support Teams,Social Care - Homecare,01/07/2016,3690344,"2,613.75",Mantra Recruitment
Adults Services,Adult Social Care,Support with Memory and Cognition - adults (18-64),Generic Care Packages NE Team -PS,Social Care - Homecare,01/07/2016,3690366,"1,148.98",Mantra Recruitment
Adults Services,Adult Social Care,Support with Memory and Cognition - adults (18-64),CLDS Longer Term Support Teams,Social Care - Residential Care,01/07/2016,3690368,"9,797.61",Care Management Group Ltd
Adults Services,Adult Social Care,Support with Memory and Cognition - adults (18-64),CLDS Longer Term Support Teams,Social Care - Homecare,01/07/2016,3690369,"1,743.33",MEARS CARE LTD
Adults Services,Adult Social Care,Support with Memory and Cognition - adults (18-64),CLDS Longer Term Support Teams,Social Care - Homecare,01/07/2016,3690370,"2,599.80",MEARS CARE LTD
Adults Services,Adult Social Care,Physical Support - adults (18-64),"Failed Care Package Conversion		",Social Care - Others,01/07/2016,3690377,516.25,SEVACARE UK LTD
Adults Services,Adult Social Care,Support with Memory and Cognition - adults (18-64),Generic Care Packages NE Team -PS,Social Care - Homecare,01/07/2016,3690380,582.63,SEVACARE UK LTD
Adults Services,Adult Social Care,Physical Support - adults (18-64),"Failed Care Package Conversion		",Social Care - Others,01/07/2016,3690381,623.19,SEVACARE UK LTD
Adults Services,Adult Social Care,Physical Support - adults (18-64),"Failed Care Package Conversion		",Social Care - Others,01/07/2016,3690398,783.68,Mantra Recruitment
Adults Services,Adult Social Care,Physical Support - adults (18-64),"Failed Care Package Conversion		",Social Care - Others,01/07/2016,3690401,"1,645.06",Mantra Recruitment
Adults Services,Adult Social Care,Support with Memory and Cognition - adults (18-64),Generic Care Packages SW Team - PS,Social Care - Nursing Care,01/07/2016,3690417,"3,119.10",Catchpole Court Care Home
Adults Services,Adult Social Care,Support with Memory and Cognition - adults (18-64),Generic Care Packages SW Team - PS,Social Care - Homecare,01/07/2016,3690418,546.86,MiHOMECARE LIMITED
Adults Services,Adult Social Care,Support with Memory and Cognition - adults (18-64),Cmht For Older People,Social Care - Nursing Care,01/07/2016,3690420,"3,596.19",Havelock Court (Bupa)
Adults Services,Adult Social Care,Support with Memory and Cognition - adults (18-64),Cmht For Older People,Social Care - Nursing Care,01/07/2016,3690421,"4,008.33",Havelock Court (Bupa)
Adults Services,Adult Social Care,Support with Memory and Cognition - adults (18-64),Generic Care Packages SE Team -SM,Social Care - Prevention & Support,01/07/2016,3690422,"1,400.00",Plaza London Hotel
Adults Services,Adult Social Care,Support with Memory and Cognition - adults (18-64),"Generic Care Packages NE Team-MH			",Social Care - Residential Care,01/07/2016,3690423,"3,085.71",THE ISLAND RESIDENTIAL HOME LTD
Adults Services,Adult Social Care,Support with Memory and Cognition - adults (18-64),Generic Care Packages SW Team - PS,Social Care - Residential Care,01/07/2016,3690425,"7,716.80",Stuart House Care Home
Adults Services,Adult Social Care,Support with Memory and Cognition - adults (18-64),Generic Care Packages SW Team - PS,Social Care - Residential Care,01/07/2016,3690426,"1,998.10",Stuart House Care Home
Adults Services,Adult Social Care,Support with Memory and Cognition - adults (18-64),Generic Care Packages SW Team - PS,Social Care - Residential Care,01/07/2016,3690427,"2,135.90",Stuart House Care Home
Adults Services,Adult Social Care,Support with Memory and Cognition - adults (18-64),Generic Care Packages SW Team - PS,Social Care - Residential Care,01/07/2016,3690428,"2,067.00",Stuart House Care Home
Adults Services,Adult Social Care,Support with Memory and Cognition - adults (18-64),Generic Care Packages SW Team - PS,Social Care - Residential Care,01/07/2016,3690429,"2,135.90",Stuart House Care Home
Adults Services,Adult Social Care,Support with Memory and Cognition - adults (18-64),Generic Care Packages SW Team - PS,Social Care - Residential Care,01/07/2016,3690430,"2,067.00",Stuart House Care Home
Adults Services,Adult Social Care,Support with Memory and Cognition - adults (18-64),Generic Care Packages SW Team - PS,Social Care - Homecare,01/07/2016,3690435,951.30,St Hilda's East Community Centre
Adults Services,Adult Social Care,Support with Memory and Cognition - adults (18-64),Generic Care Packages NW Team -PS,Social Care - Homecare,01/07/2016,3690437,581.35,St Hilda's East Community Centre
Adults Services,Adult Social Care,Support with Memory and Cognition - adults (18-64),Generic Care Packages NW Team-SMC,Social Care - Residential Care,01/07/2016,3690442,"2,185.71",SUMMERDALE COURT CARE CENTRE
Adults Services,Adult Social Care,Support with Memory and Cognition - adults (18-64),Generic Care Packages SW Team - PS,Social Care - Homecare,01/07/2016,3690453,531.96,SANCTUARY HOME CARE LIMITED
Adults Services,Adult Social Care,Support with Memory and Cognition - adults (18-64),Generic Care Packages SW Team-SMC,Social Care - Homecare,01/07/2016,3690455,"1,418.56",SANCTUARY HOME CARE LIMITED
Adults Services,Adult Social Care,Support with Memory and Cognition - adults (18-64),Generic Care Packages NE Team -PS,Social Care - Home Care (Short Term),01/07/2016,3690457,693.16,SANCTUARY HOME CARE LIMITED
Adults Services,Adult Social Care,Support with Memory and Cognition - adults (18-64),Generic Care Packages NW Team -PS,Social Care - Homecare,01/07/2016,3690465,612.84,Soma Healthcare Ltd
Adults Services,Adult Social Care,Support with Memory and Cognition - adults (18-64),Generic Care Packages SE Team -SP,Non Staff Transport Costs - Client Transport Costs,01/07/2016,3690468,600.00,Abacus Ambulance Service
Adults Services,Adult Social Care,Support with Memory and Cognition - adults (18-64),Generic Care Packages SE Team -SP,Non Staff Transport Costs - Client Transport Costs,01/07/2016,3690469,600.00,Abacus Ambulance Service
Adults Services,Adult Social Care,Support with Memory and Cognition - adults (18-64),Generic Care Packages NW Team -PS,Social Care - Homecare,01/07/2016,3690471,501.19,Soma Healthcare Ltd
Adults Services,Adult Social Care,Support with Memory and Cognition - adults (18-64),Generic Care Packages NE Team -PS,Social Care - Homecare,01/07/2016,3690473,681.39,Soma Healthcare Ltd
Adults Services,Adult Social Care,Physical Support - adults (18-64),Mental Health Commissioning,Social Care - Prevention & Support,01/07/2016,3690599,930.60,Look Ahead Care & Support Ltd
Adults Services,Adult Social Care,Sensory Support - older people (65+),"Public Health-Vanguard			",Services - Professional Fees - Consultants Fees,01/07/2016,3690603,"4,000.00",Mayhew Harper Associates Ltd
Adults Services,Health through Education,Health through Education,Health through Education,General,01/07/16,Payment Card,561.17,blitz communications l
Adults Services,Health through Education,Health through Education,Health through Education,General,01/07/16,Payment Card,833.33,blitz communications l
Adults Services,No Service Specified,No Division Specified,Front Door,Services - Professional Fees - Legal Fees/Expenses,04/07/2016,3635209,"2,572.61",T J Psychology Services
Adults Services,Adult Social Care,Support with Memory and Cognition - adults (18-64),Generic Care Packages NW Team -PS,Social Care - Nursing Care,04/07/2016,3675673,"2,628.85",Bakers Court Nursing Home
Adults Services,Adult Social Care,Support with Memory and Cognition - adults (18-64),Generic Care Packages NE Team -PS,Social Care - Residential Care,04/07/2016,3675675,"2,145.86",Bakers Court Nursing Home
Adults Services,Adult Social Care,Support with Memory and Cognition - adults (18-64),Generic Care Packages NW Team -PS,Social Care - Nursing Care,04/07/2016,3675676,"2,810.15",Bakers Court Nursing Home
Adults Services,Adult Social Care,Support with Memory and Cognition - adults (18-64),Tower Hamlets Care Alarms,Community Equipment  Supplies - Aids and Appliances,04/07/2016,3676266,618.06,Medpage Ltd t/a Easylink UK
Adults Services,Adult Social Care,Support with Memory and Cognition - adults (18-64),Cmht Bow / Poplar North,Social Care - Supported Living,04/07/2016,3688279,"2,121.43",HAROLD LODGE
Adults Services,Adult Social Care,Support with Memory and Cognition - adults (18-64),Cmht Stepney / Wapping,Social Care - Supported Living,04/07/2016,3688280,"2,357.14",HAROLD LODGE
Adults Services,Adult Social Care,Support with Memory and Cognition - adults (18-64),Cmht Stepney / Wapping,Social Care - Supported Living,04/07/2016,3688301,"2,121.43",HAROLD LODGE
Adults Services,Adult Social Care,Support with Memory and Cognition - adults (18-64),Cmht Bethnal Green,Social Care - Supported Living,04/07/2016,3688305,"1,928.57",HAROLD LODGE
Adults Services,Adult Social Care,Support with Memory and Cognition - adults (18-64),Generic Care Packages SE Team -SP,Non Staff Transport Costs - Client Transport Costs,06/07/2016,3678381,600.00,Abacus Ambulance Service
Adults Services,Adult Social Care,Support with Memory and Cognition - adults (18-64),CLDS Longer Term Support Teams,Social Care - Homecare,06/07/2016,3678392,"1,123.13",Outward Housing
Adults Services,Adult Social Care,Support with Memory and Cognition - adults (18-64),CLDS Longer Term Support Teams,Social Care - Homecare,06/07/2016,3678393,"1,531.40",Outward Housing
Adults Services,Adult Social Care,Support with Memory and Cognition - adults (18-64),CLDS Longer Term Support Teams,Social Care - Homecare,06/07/2016,3678394,"1,361.21",Outward Housing
Adults Services,Adult Social Care,Support with Memory and Cognition - adults (18-64),CLDS Longer Term Support Teams,Social Care - Homecare,06/07/2016,3678395,697.81,Outward Housing
Adults Services,Adult Social Care,Support with Memory and Cognition - adults (18-64),CLDS Longer Term Support Teams,Social Care - Homecare,06/07/2016,3678396,"2,450.24",Outward Housing
Adults Services,Adult Social Care,Support with Memory and Cognition - adults (18-64),CLDS Longer Term Support Teams,Social Care - Homecare,06/07/2016,3678397,714.86,Outward Housing
Adults Services,Adult Social Care,Support with Memory and Cognition - adults (18-64),CLDS Longer Term Support Teams,Social Care - Homecare,06/07/2016,3678398,816.85,Outward Housing
Adults Services,Adult Social Care,Support with Memory and Cognition - adults (18-64),CLDS Longer Term Support Teams,Social Care - Supported Living,06/07/2016,3678399,"3,573.68",Outward Housing
Adults Services,Adult Social Care,Support with Memory and Cognition - adults (18-64),CLDS Longer Term Support Teams,Social Care - Supported Living,06/07/2016,3678400,952.94,Outward Housing
Adults Services,Adult Social Care,Physical Support - adults (18-64),Public Health � Healthy Young Adults,Third Party Payments - Other Establishments,06/07/2016,3682875,"29,059.20",Central and NW London NHS Foundation
Adults Services,Adult Social Care,Support with Memory and Cognition - adults (18-64),Generic Care Packages NW Team -PS,Social Care - Residential Care,06/07/2016,3688479,"3,642.86",OULTON PARK CARE CENTRE
Adults Services,Adult Social Care,Support with Memory and Cognition - adults (18-64),Tower Hamlets Care Alarms,Community Equipment  Supplies - Aids and Appliances,06/07/2016,3691535,"3,950.00",Buddi Ltd
Adults Services,Adult Social Care,Support with Memory and Cognition - adults (18-64),Tower Hamlets Care Alarms,Community Equipment  Supplies - Aids and Appliances,06/07/2016,3691536,"6,090.00",Buddi Ltd
Adults Services,No Service Specified,No Division Specified,Capital-Minor Works (SC),Other External Fees - Other External Fees,06/07/2016,3691562,"6,955.00",Tower Hamlets Schools LTD
Adults Services,Adult Social Care,Physical Support - adults (18-64),Mental Health Commissioning,Social Care - Prevention & Support,06/07/2016,3691769,"1,857.50",MBRC Investments LTD t/a 1st Capital Homes
Adults Services,No Service Specified,No Division Specified,Community Equipment Store,Community Equipment  Supplies - Aids and Appliances,06/07/2016,3692616,"1,126.57",Laville Ltd t/a BRITANNIA PHARMACY
Adults Services,Adult Social Care,Support with Memory and Cognition - adults (18-64),Cmht Iod / Poplar South,Social Care - Residential Care,06/07/2016,3692626,"3,428.57",Number Residential Care Home
Adults Services,Adult Social Care,Support with Memory and Cognition - adults (18-64),CLDS Longer Term Support Teams,Social Care - Day Care,06/07/2016,3692627,900.00,STALLCOMBE HOUSE
Adults Services,Adult Social Care,Support with Memory and Cognition - adults (18-64),Generic Care Packages SE Team -PS,Social Care - Nursing Care,06/07/2016,3692628,"3,372.00",Barron Kirk Quality Care Ltd
Adults Services,Adult Social Care,Support with Memory and Cognition - adults (18-64),Generic Care Packages NW Team -PS,Social Care - Residential Care,06/07/2016,3692631,"3,300.00",St Georges Nursing Home
Adults Services,Adult Social Care,Support with Memory and Cognition - adults (18-64),Generic Care Packages NW Team -PS,Social Care - Homecare,06/07/2016,3692679,503.63,Mantra Recruitment
Adults Services,Adult Social Care,Support with Memory and Cognition - adults (18-64),Generic Care Packages NW Team -PS,Social Care - Homecare,06/07/2016,3692711,720.55,Mantra Recruitment
Adults Services,Adult Social Care,Support with Memory and Cognition - adults (18-64),Generic Care Packages SW Team - PS,Social Care - Homecare,06/07/2016,3692753,667.80,FOCUS CARE LINK LTD
Adults Services,Adult Social Care,Support with Memory and Cognition - adults (18-64),Generic Care Packages NE Team -PS,Social Care - Homecare,06/07/2016,3692759,849.59,FOCUS CARE LINK LTD
Adults Services,Adult Social Care,Support with Memory and Cognition - adults (18-64),Generic Care Packages SW Team - PS,Social Care - Homecare,06/07/2016,3692794,"1,287.37",FOCUS CARE LINK LTD
Adults Services,Adult Social Care,Support with Memory and Cognition - adults (18-64),Generic Care Packages SE Team -PS,Social Care - Homecare,06/07/2016,3692795,549.08,FOCUS CARE LINK LTD
Adults Services,Adult Social Care,Support with Memory and Cognition - adults (18-64),Generic Care Packages NW Team -PS,Social Care - Homecare,06/07/2016,3692797,"2,410.10",Mantra Recruitment
Adults Services,Adult Social Care,Support with Memory and Cognition - adults (18-64),Generic Care Packages SE Team -PS,Social Care - Homecare,06/07/2016,3692810,529.13,Mantra Recruitment
Adults Services,Adult Social Care,Support with Memory and Cognition - adults (18-64),Generic Care Packages NW Team -PS,Social Care - Homecare,06/07/2016,3692814,"2,444.51",Mantra Recruitment
Adults Services,Adult Social Care,Support with Memory and Cognition - adults (18-64),Generic Care Packages NW Team -PS,Social Care - Homecare,06/07/2016,3692815,"1,124.58",Mantra Recruitment
Adults Services,Adult Social Care,Support with Memory and Cognition - adults (18-64),Generic Care Packages NW Team -PS,Social Care - Homecare,06/07/2016,3692822,866.06,Mantra Recruitment
Adults Services,Adult Social Care,Support with Memory and Cognition - adults (18-64),Generic Care Packages SE Team -PS,Social Care - Homecare,06/07/2016,3692831,"1,040.40",Mantra Recruitment
Adults Services,Adult Social Care,Support with Memory and Cognition - adults (18-64),Generic Care Packages NE Team -PS,Social Care - Homecare,06/07/2016,3692841,"1,054.43",Mantra Recruitment
Adults Services,Adult Social Care,Support with Memory and Cognition - adults (18-64),Generic Care Packages SE Team -PS,Social Care - Homecare,06/07/2016,3692842,"1,201.06",Mantra Recruitment
Adults Services,Adult Social Care,Support with Memory and Cognition - adults (18-64),Generic Care Packages SW Team - PS,Social Care - Homecare,06/07/2016,3692846,526.82,FOCUS CARE LINK LTD
Adults Services,Adult Social Care,Support with Memory and Cognition - adults (18-64),CLDS Longer Term Support Teams,Social Care - Homecare,06/07/2016,3692847,"1,727.07",MEARS CARE LTD
Adults Services,Adult Social Care,Support with Memory and Cognition - adults (18-64),CLDS Longer Term Support Teams,Social Care - Homecare,06/07/2016,3692848,"2,599.80",MEARS CARE LTD
Adults Services,Adult Social Care,Support with Memory and Cognition - adults (18-64),Generic Care Packages NE Team -PS,Social Care - Nursing Care,06/07/2016,3692860,"3,853.33",LIFE STYLE CARE (2011) PLC
Adults Services,Adult Social Care,Support with Memory and Cognition - adults (18-64),Generic Care Packages SW Team - PS,Social Care - Homecare,06/07/2016,3692861,540.35,FOCUS CARE LINK LTD
Adults Services,Adult Social Care,Support with Memory and Cognition - adults (18-64),Generic Care Packages SE Team -PS,Social Care - Homecare,06/07/2016,3692878,"1,524.09",FOCUS CARE LINK LTD
Adults Services,Adult Social Care,Support with Memory and Cognition - adults (18-64),Generic Care Packages SE Team -PS,Social Care - Homecare,06/07/2016,3692879,580.97,FOCUS CARE LINK LTD
Adults Services,Adult Social Care,Support with Memory and Cognition - adults (18-64),Generic Care Packages SE Team -PS,Social Care - Homecare,06/07/2016,3692888,"1,626.40",FOCUS CARE LINK LTD
Adults Services,Adult Social Care,Support with Memory and Cognition - adults (18-64),Generic Care Packages SW Team - PS,Social Care - Homecare,06/07/2016,3692889,"1,478.82",FOCUS CARE LINK LTD
Adults Services,Adult Social Care,Support with Memory and Cognition - adults (18-64),Generic Care Packages SE Team -PS,Social Care - Home Care (Short Term),06/07/2016,3692893,550.79,FOCUS CARE LINK LTD
Adults Services,Adult Social Care,Support with Memory and Cognition - adults (18-64),Generic Care Packages SW Team - PS,Social Care - Homecare,06/07/2016,3692898,"1,063.85",FOCUS CARE LINK LTD
Adults Services,Adult Social Care,Physical Support - adults (18-64),"Failed Care Package Conversion		",Social Care - Others,06/07/2016,3692901,754.00,SEVACARE UK LTD
Adults Services,Adult Social Care,Support with Memory and Cognition - adults (18-64),CLDS Longer Term Support Teams,Social Care - Homecare,06/07/2016,3692908,"1,428.80",TRIANGLE COMMUNITY SERVICES
Adults Services,Adult Social Care,Support with Memory and Cognition - adults (18-64),CLDS Longer Term Support Teams,Social Care - Homecare,06/07/2016,3692909,608.00,TRIANGLE COMMUNITY SERVICES
Adults Services,Adult Social Care,Support with Memory and Cognition - adults (18-64),Cmht Iod / Poplar South,Social Care - Homecare,06/07/2016,3692910,716.80,TRIANGLE COMMUNITY SERVICES
Adults Services,Adult Social Care,Support with Memory and Cognition - adults (18-64),CLDS Longer Term Support Teams,Social Care - Homecare,06/07/2016,3692911,560.00,TRIANGLE COMMUNITY SERVICES
Adults Services,Adult Social Care,Support with Memory and Cognition - adults (18-64),CLDS Longer Term Support Teams,Social Care - Homecare,06/07/2016,3692912,656.00,TRIANGLE COMMUNITY SERVICES
Adults Services,Adult Social Care,Support with Memory and Cognition - adults (18-64),CLDS Longer Term Support Teams,Social Care - Supported Living,06/07/2016,3692932,"6,622.00",Tower Project
Adults Services,Adult Social Care,Support with Memory and Cognition - adults (18-64),CLDS Longer Term Support Teams,Social Care - Residential Care,06/07/2016,3692933,"4,495.00",The Pines
Adults Services,Adult Social Care,Support with Memory and Cognition - adults (18-64),CLDS Longer Term Support Teams,Social Care - Residential Care,06/07/2016,3692934,"4,350.00",The Pines
Adults Services,Adult Social Care,Physical Support - adults (18-64),"Failed Care Package Conversion		",Social Care - Others,06/07/2016,3692938,710.50,SEVACARE UK LTD
Adults Services,Adult Social Care,Support with Memory and Cognition - adults (18-64),Generic Care Packages NW Team -PS,Social Care - Homecare,06/07/2016,3692949,604.75,SEVACARE UK LTD
Adults Services,Adult Social Care,Support with Memory and Cognition - adults (18-64),Generic Care Packages NE Team -PS,Social Care - Home Care (Short Term),06/07/2016,3692952,929.25,SEVACARE UK LTD
Adults Services,Adult Social Care,Support with Memory and Cognition - adults (18-64),Generic Care Packages NW Team -PS,Social Care - Homecare,06/07/2016,3692956,"1,121.00",SEVACARE UK LTD
Adults Services,Adult Social Care,Support with Memory and Cognition - adults (18-64),Generic Care Packages NE Team -PS,Social Care - Homecare,06/07/2016,3692965,"1,106.25",SEVACARE UK LTD
Adults Services,Adult Social Care,Support with Memory and Cognition - adults (18-64),Generic Care Packages NW Team -PS,Social Care - Home Care (Short Term),06/07/2016,3692971,590.00,SEVACARE UK LTD
Adults Services,Adult Social Care,Support with Memory and Cognition - adults (18-64),Generic Care Packages NW Team -PS,Social Care - Homecare,06/07/2016,3692981,516.25,SEVACARE UK LTD
Adults Services,Adult Social Care,Support with Memory and Cognition - adults (18-64),Generic Care Packages SE Team -PS,Social Care - Homecare,06/07/2016,3692992,501.50,SEVACARE UK LTD
Adults Services,Adult Social Care,Support with Memory and Cognition - adults (18-64),Generic Care Packages NW Team -PS,Social Care - Residential Care,06/07/2016,3692993,"1,150.40",Forest Drive Residential Home Ltd
Adults Services,Adult Social Care,Support with Memory and Cognition - adults (18-64),CLDS Longer Term Support Teams,Social Care - Residential Care,06/07/2016,3692996,"4,714.20",SHERICO CARE SERVICES LTD
Adults Services,Adult Social Care,Support with Memory and Cognition - adults (18-64),Cmht For Older People,Social Care - Residential Care,06/07/2016,3692997,"2,807.14",Leona Enterprises Ltd
Adults Services,Adult Social Care,Support with Memory and Cognition - adults (18-64),Generic Care Packages NW Team -PS,Social Care - Homecare,06/07/2016,3693000,547.20,COMMUNITY CARE CONSORTIUM
Adults Services,Adult Social Care,Support with Memory and Cognition - adults (18-64),CLDS Longer Term Support Teams,Social Care - Homecare,06/07/2016,3693001,516.80,COMMUNITY CARE CONSORTIUM
Adults Services,Adult Social Care,Physical Support - adults (18-64),"Failed Care Package Conversion		",Social Care - Homecare,06/07/2016,3693002,509.20,COMMUNITY CARE CONSORTIUM
Adults Services,Adult Social Care,Physical Support - adults (18-64),"Failed Care Package Conversion		",Social Care - Others,06/07/2016,3693046,"-1,160.00",SEVACARE UK LTD
Adults Services,Adult Social Care,Support with Memory and Cognition - adults (18-64),Generic Care Packages SW Team - PS,Social Care - Home Care (Short Term),06/07/2016,3693048,853.88,Supporting Care
Adults Services,Adult Social Care,Support with Memory and Cognition - adults (18-64),Generic Care Packages SW Team - PS,Social Care - Home Care (Short Term),06/07/2016,3693049,850.50,Supporting Care
Adults Services,Adult Social Care,Support with Memory and Cognition - adults (18-64),Generic Care Packages SW Team - PS,Social Care - Home Care (Short Term),06/07/2016,3693050,850.50,Supporting Care
Adults Services,Adult Social Care,Support with Memory and Cognition - adults (18-64),Generic Care Packages NW Team -PS,Social Care - Homecare,06/07/2016,3693055,853.70,MiHOMECARE LIMITED
Adults Services,Adult Social Care,Support with Memory and Cognition - adults (18-64),Generic Care Packages NE Team -PS,Social Care - Homecare,06/07/2016,3693060,524.76,MiHOMECARE LIMITED
Adults Services,Adult Social Care,Support with Memory and Cognition - adults (18-64),Generic Care Packages SW Team - PS,Social Care - Residential Care,06/07/2016,3693062,"3,757.20",ACTION ON HEARING LOSS
Adults Services,Adult Social Care,Support with Memory and Cognition - adults (18-64),Generic Care Packages SW Team - PS,Social Care - Residential Care,06/07/2016,3693063,"3,882.44",ACTION ON HEARING LOSS
Adults Services,Adult Social Care,Support with Memory and Cognition - adults (18-64),Generic Care Packages NE Team -PS,Social Care - Nursing Care,06/07/2016,3693065,"3,000.00",TOPCARE LTD
Adults Services,Adult Social Care,Support with Memory and Cognition - adults (18-64),Generic Care Packages NE Team-SMC,Social Care - Residential Care,06/07/2016,3693066,"3,077.14",Leona Enterprises Ltd
Adults Services,Adult Social Care,Support with Memory and Cognition - adults (18-64),CLDS Longer Term Support Teams,Social Care - Residential Care,06/07/2016,3693068,"4,500.00",APASENTH
Adults Services,Adult Social Care,Support with Memory and Cognition - adults (18-64),CLDS Longer Term Support Teams,Social Care - Residential Care,06/07/2016,3693069,"4,950.00",APASENTH
Adults Services,Adult Social Care,Support with Memory and Cognition - adults (18-64),CLDS Longer Term Support Teams,Social Care - Residential Care,06/07/2016,3693070,"4,500.00",APASENTH
Adults Services,Adult Social Care,Support with Memory and Cognition - adults (18-64),CLDS Longer Term Support Teams,Social Care - Residential Care,06/07/2016,3693071,"4,950.00",APASENTH
Adults Services,Adult Social Care,Support with Memory and Cognition - adults (18-64),CLDS Longer Term Support Teams,Social Care - Residential Care,06/07/2016,3693072,"3,625.20",APASENTH
Adults Services,Adult Social Care,Support with Memory and Cognition - adults (18-64),Generic Care Packages NW Team -PS,Social Care - Prevention & Support,06/07/2016,3693073,"1,500.00",Alma Attic Ltd T/A Glorydale Inn
Adults Services,Adult Social Care,Support with Memory and Cognition - adults (18-64),Generic Care Packages NW Team -PS,Social Care - Nursing Care,06/07/2016,3693074,"2,331.00",Coverage Care Service Ltd
Adults Services,Adult Social Care,Support with Memory and Cognition - adults (18-64),Generic Care Packages NW Team -PS,Social Care - Nursing Care,06/07/2016,3693075,"2,714.40",Coverage Care Service Ltd
Adults Services,Adult Social Care,Support with Memory and Cognition - adults (18-64),CLDS Longer Term Support Teams,Social Care - Day Care,06/07/2016,3693083,"1,005.30",POETRY IN WOOD
Adults Services,Adult Social Care,Support with Memory and Cognition - adults (18-64),CLDS Longer Term Support Teams,Social Care - Day Care,06/07/2016,3693087,"1,104.00",POETRY IN WOOD
Adults Services,Adult Social Care,Support with Memory and Cognition - adults (18-64),CLDS Longer Term Support Teams,Social Care - Day Care,06/07/2016,3693088,"1,104.00",POETRY IN WOOD
Adults Services,Adult Social Care,Support with Memory and Cognition - adults (18-64),Generic Care Packages SW Team - PS,Social Care - Homecare,06/07/2016,3693096,951.30,St Hilda's East Community Centre
Adults Services,Adult Social Care,Support with Memory and Cognition - adults (18-64),Generic Care Packages SW Team - PS,Social Care - Homecare,06/07/2016,3693098,528.50,St Hilda's East Community Centre
Adults Services,Adult Social Care,Support with Memory and Cognition - adults (18-64),Generic Care Packages NE Team -PS,Social Care - Homecare,06/07/2016,3693099,"1,691.20",St Hilda's East Community Centre
Adults Services,Adult Social Care,Support with Memory and Cognition - adults (18-64),Generic Care Packages SW Team-SMC,Social Care - Homecare,06/07/2016,3693103,"1,313.70",St Hilda's East Community Centre
Adults Services,Adult Social Care,Support with Memory and Cognition - adults (18-64),Generic Care Packages NW Team -PS,Social Care - Homecare,06/07/2016,3693109,"1,283.20",St Hilda's East Community Centre
Adults Services,Adult Social Care,Support with Memory and Cognition - adults (18-64),Generic Care Packages SE Team -PS,Social Care - Residential Care,06/07/2016,3693114,571.41,RUNWOOD HOMES PLC
Adults Services,Adult Social Care,Support with Memory and Cognition - adults (18-64),Generic Care Packages SE Team -PS,Social Care - Residential Care,06/07/2016,3693115,"1,968.19",RUNWOOD HOMES PLC
Adults Services,Adult Social Care,Support with Memory and Cognition - adults (18-64),Generic Care Packages SE Team -PS,Social Care - Residential Care,06/07/2016,3693116,"1,904.70",RUNWOOD HOMES PLC
Adults Services,Adult Social Care,Support with Memory and Cognition - adults (18-64),Cmht For Older People,Social Care - Homecare,06/07/2016,3693117,602.00,Supporting Care
Adults Services,Adult Social Care,Support with Memory and Cognition - adults (18-64),Cmht For Older People,Social Care - Homecare,06/07/2016,3693118,602.00,Supporting Care
Adults Services,Adult Social Care,Support with Memory and Cognition - adults (18-64),Cmht For Older People,Social Care - Homecare,06/07/2016,3693119,623.50,Supporting Care
Adults Services,Adult Social Care,Support with Memory and Cognition - adults (18-64),Generic Care Packages SW Team - PS,Social Care - Homecare,06/07/2016,3693122,"2,804.88",SANCTUARY HOME CARE LIMITED
Adults Services,Adult Social Care,Support with Memory and Cognition - adults (18-64),Generic Care Packages NW Team -PS,Social Care - Homecare,06/07/2016,3693142,943.02,SANCTUARY HOME CARE LIMITED
Adults Services,Adult Social Care,Support with Memory and Cognition - adults (18-64),Generic Care Packages SW Team - PS,Social Care - Homecare,06/07/2016,3693144,"2,808.91",SANCTUARY HOME CARE LIMITED
Adults Services,Adult Social Care,Support with Memory and Cognition - adults (18-64),Generic Care Packages NE Team -PS,Social Care - Homecare,06/07/2016,3693148,548.08,SANCTUARY HOME CARE LIMITED
Adults Services,Adult Social Care,Support with Memory and Cognition - adults (18-64),Generic Care Packages NE Team -PS,Social Care - Homecare,06/07/2016,3693157,507.78,SANCTUARY HOME CARE LIMITED
Adults Services,General Fund/Council Fund,Homelessness,Supporting People Services,Social Care - Homecare,06/07/2016,3693162,910.78,SANCTUARY HOME CARE LIMITED
Adults Services,Adult Social Care,Support with Memory and Cognition - adults (18-64),Generic Care Packages NE Team -PS,Social Care - Homecare,06/07/2016,3693170,620.62,SANCTUARY HOME CARE LIMITED
Adults Services,Adult Social Care,Support with Memory and Cognition - adults (18-64),Generic Care Packages NW Team -PS,Social Care - Homecare,06/07/2016,3693178,"1,217.06",SANCTUARY HOME CARE LIMITED
Adults Services,Adult Social Care,Support with Memory and Cognition - adults (18-64),Generic Care Packages SE Team-SMC,Social Care - Homecare,06/07/2016,3693186,"1,595.88",SANCTUARY HOME CARE LIMITED
Adults Services,Adult Social Care,Support with Memory and Cognition - adults (18-64),CLDS Longer Term Support Teams,Social Care - Homecare,06/07/2016,3693193,515.84,SANCTUARY HOME CARE LIMITED
Adults Services,Adult Social Care,Support with Memory and Cognition - adults (18-64),Cmht Bethnal Green,Social Care - Homecare,06/07/2016,3693194,967.20,SANCTUARY HOME CARE LIMITED
Adults Services,Adult Social Care,Physical Support - adults (18-64),"Failed Care Package Conversion		",Social Care - Home Care (Short Term),06/07/2016,3693200,781.82,SANCTUARY HOME CARE LIMITED
Adults Services,Adult Social Care,Support with Memory and Cognition - adults (18-64),Generic Care Packages NE Team -PS,Social Care - Homecare,06/07/2016,3693214,568.23,SANCTUARY HOME CARE LIMITED
Adults Services,Adult Social Care,Support with Memory and Cognition - adults (18-64),Generic Care Packages SW Team - PS,Social Care - Homecare,06/07/2016,3693217,507.78,SANCTUARY HOME CARE LIMITED
Adults Services,Adult Social Care,Support with Memory and Cognition - adults (18-64),Generic Care Packages SE Team -PS,Social Care - Homecare,06/07/2016,3693219,540.02,SANCTUARY HOME CARE LIMITED
Adults Services,Adult Social Care,Support with Memory and Cognition - adults (18-64),Generic Care Packages NE Team-SMC,Social Care - Home Care (Short Term),06/07/2016,3693223,515.84,SANCTUARY HOME CARE LIMITED
Adults Services,Adult Social Care,Support with Memory and Cognition - adults (18-64),Generic Care Packages NW Team -PS,Social Care - Homecare,06/07/2016,3693224,540.02,SANCTUARY HOME CARE LIMITED
Adults Services,Adult Social Care,Support with Memory and Cognition - adults (18-64),Generic Care Packages SW Team - PS,Social Care - Homecare,06/07/2016,3693226,616.00,Soma Healthcare Ltd
Adults Services,Adult Social Care,Support with Memory and Cognition - adults (18-64),Generic Care Packages SW Team - PS,Social Care - Nursing Care,06/07/2016,3693228,"4,236.90",TOPCARE LTD
Adults Services,Adult Social Care,Support with Memory and Cognition - adults (18-64),Generic Care Packages SW Team - PS,Social Care - Nursing Care,06/07/2016,3693229,"4,102.71",TOPCARE LTD
Adults Services,Adult Social Care,Support with Memory and Cognition - adults (18-64),Generic Care Packages SW Team - PS,Social Care - Nursing Care,06/07/2016,3693230,"4,111.57",TOPCARE LTD
Adults Services,No Service Specified,No Division Specified,Capital Works-Social Services,Building Works - Main Works,08/07/2016,3678506,"1,698.00",surelock security systems ltd
Adults Services,Adult Social Care,Physical Support - adults (18-64),Public Health � Healthy Young Adults,Third Party Payments - Other Establishments,08/07/2016,3682453,782.04,Whittington Health NHS Trust
Adults Services,Adult Social Care,Support with Memory and Cognition - adults (18-64),CLDS Longer Term Support Teams,Social Care - Residential Care,08/07/2016,3683643,"4,609.93",ROSELOCK LTD
Adults Services,Adult Social Care,Support with Memory and Cognition - adults (18-64),CLDS Longer Term Support Teams,Social Care - Residential Care,08/07/2016,3688745,"9,297.22",Wallace Crescent
Adults Services,Adult Social Care,Support with Memory and Cognition - adults (18-64),CLDS Longer Term Support Teams,Social Care - Supported Living,08/07/2016,3688832,"1,755.00",Kent Homefinding and Fostering
Adults Services,Public Health,Children 519 Public Health Programmes,Public Health Team 1,Third Party Payments - Other Establishments,08/07/2016,3693389,"26,516.00",Barts Health NHS Trust
Adults Services,Adult Social Care,Support with Memory and Cognition - adults (18-64),Generic Care Packages NW Team -PS,Social Care - Residential Care,08/07/2016,3693576,"3,257.14",Federation of Jewish Services
Adults Services,Adult Social Care,Support with Memory and Cognition - adults (18-64),Generic Care Packages NW Team -PS,Social Care - Residential Care,08/07/2016,3693577,"3,365.71",Federation of Jewish Services
Adults Services,Adult Social Care,Support with Memory and Cognition - adults (18-64),CLDS Longer Term Support Teams,Social Care - Day Care,08/07/2016,3693578,961.88,HEREWARD CARE SERVICES
Adults Services,Adult Social Care,Support with Memory and Cognition - adults (18-64),Generic Care Packages SW Team - PS,Social Care - Homecare,08/07/2016,3693732,803.26,Mantra Recruitment
Adults Services,Adult Social Care,Support with Memory and Cognition - adults (18-64),Generic Care Packages SW Team - PS,Social Care - Homecare,08/07/2016,3693740,580.00,Mantra Recruitment
Adults Services,Adult Social Care,Support with Memory and Cognition - adults (18-64),Generic Care Packages SW Team - PS,Social Care - Homecare,08/07/2016,3693741,752.25,Mantra Recruitment
Adults Services,Adult Social Care,Support with Memory and Cognition - adults (18-64),Generic Care Packages SE Team-SMC,Social Care - Homecare,08/07/2016,3693753,"1,268.46",Excelcare (Home Care Division) LTD
Adults Services,Adult Social Care,Support with Memory and Cognition - adults (18-64),Generic Care Packages NW Team -PS,Social Care - Homecare,08/07/2016,3693754,573.65,Excelcare (Home Care Division) LTD
Adults Services,Adult Social Care,Support with Memory and Cognition - adults (18-64),Generic Care Packages NW Team -PS,Social Care - Homecare,08/07/2016,3693760,719.72,Excelcare (Home Care Division) LTD
Adults Services,Adult Social Care,Support with Memory and Cognition - adults (18-64),Generic Care Packages NE Team -PS,Social Care - Homecare,08/07/2016,3693761,791.20,Excelcare (Home Care Division) LTD
Adults Services,Adult Social Care,Support with Memory and Cognition - adults (18-64),Generic Care Packages SW Team - PS,Social Care - Home Care (Short Term),08/07/2016,3693765,712.26,Excelcare (Home Care Division) LTD
Adults Services,Adult Social Care,Support with Memory and Cognition - adults (18-64),Generic Care Packages SW Team - PS,Social Care - Homecare,08/07/2016,3693767,"1,161.66",Excelcare (Home Care Division) LTD
Adults Services,Adult Social Care,Support with Memory and Cognition - adults (18-64),Generic Care Packages SE Team -PS,Social Care - Homecare,08/07/2016,3693769,"2,585.25",Excelcare (Home Care Division) LTD
Adults Services,Adult Social Care,Support with Memory and Cognition - adults (18-64),CLDS Longer Term Support Teams,Social Care - Homecare,08/07/2016,3693773,705.41,Excelcare (Home Care Division) LTD
Adults Services,Adult Social Care,Support with Memory and Cognition - adults (18-64),CLDS Longer Term Support Teams,Social Care - Residential Care,08/07/2016,3693776,"8,802.86",London Care Partnership Ltd
Adults Services,Adult Social Care,Support with Memory and Cognition - adults (18-64),Cmht Bow / Poplar North,Social Care - Homecare,08/07/2016,3693785,"1,094.03",FOCUS CARE LINK LTD
Adults Services,Adult Social Care,Support with Memory and Cognition - adults (18-64),Generic Care Packages NW Team -PS,Social Care - Homecare,08/07/2016,3693788,657.62,FOCUS CARE LINK LTD
Adults Services,Adult Social Care,Support with Memory and Cognition - adults (18-64),Generic Care Packages SW Team - PS,Social Care - Homecare,08/07/2016,3693795,539.47,FOCUS CARE LINK LTD
Adults Services,Adult Social Care,Support with Memory and Cognition - adults (18-64),Generic Care Packages NE Team -PS,Social Care - Homecare,08/07/2016,3693797,882.77,FOCUS CARE LINK LTD
Adults Services,Adult Social Care,Support with Memory and Cognition - adults (18-64),Generic Care Packages SW Team - PS,Social Care - Homecare,08/07/2016,3693799,535.70,FOCUS CARE LINK LTD
Adults Services,Adult Social Care,Support with Memory and Cognition - adults (18-64),Generic Care Packages SW Team - PS,Social Care - Homecare,08/07/2016,3693800,535.70,FOCUS CARE LINK LTD
Adults Services,Adult Social Care,Support with Memory and Cognition - adults (18-64),Generic Care Packages NE Team -PS,Social Care - Homecare,08/07/2016,3693805,845.04,FOCUS CARE LINK LTD
Adults Services,Adult Social Care,Support with Memory and Cognition - adults (18-64),Generic Care Packages SW Team - PS,Social Care - Homecare,08/07/2016,3693810,"1,410.92",FOCUS CARE LINK LTD
Adults Services,Adult Social Care,Support with Memory and Cognition - adults (18-64),Generic Care Packages SE Team -PS,Social Care - Homecare,08/07/2016,3693812,558.33,FOCUS CARE LINK LTD
Adults Services,Adult Social Care,Support with Memory and Cognition - adults (18-64),Generic Care Packages NE Team -PS,Social Care - Nursing Care,08/07/2016,3693830,"8,475.93",SANCTUARY CARE LTD
Adults Services,Adult Social Care,Support with Memory and Cognition - adults (18-64),Generic Care Packages NE Team -PS,Social Care - Direct Payments,08/07/2016,3693831,"-2,019.37",D D PAYROLL SERVICES
Adults Services,Adult Social Care,Support with Memory and Cognition - adults (18-64),Generic Care Packages NE Team -PS,Social Care - Direct Payments,08/07/2016,3693832,"2,113.79",D D PAYROLL SERVICES
Adults Services,Adult Social Care,Support with Memory and Cognition - adults (18-64),Generic Care Packages NE Team -PS,Social Care - Direct Payments,08/07/2016,3693833,775.77,D D PAYROLL SERVICES
Adults Services,Adult Social Care,Support with Memory and Cognition - adults (18-64),CLDS Longer Term Support Teams,Social Care - Homecare,08/07/2016,3693834,"4,906.80",Tower Project
Adults Services,Adult Social Care,Support with Memory and Cognition - adults (18-64),CLDS Longer Term Support Teams,Social Care - Homecare,08/07/2016,3693835,"5,024.88",Tower Project
Adults Services,Adult Social Care,Support with Memory and Cognition - adults (18-64),Generic Care Packages NW Team -PS,Social Care - Home Care (Short Term),08/07/2016,3693857,"1,829.00",SEVACARE UK LTD
Adults Services,Adult Social Care,Support with Memory and Cognition - adults (18-64),Cmht Bethnal Green,Social Care - Homecare,08/07/2016,3693863,708.00,SEVACARE UK LTD
Adults Services,Adult Social Care,Support with Memory and Cognition - adults (18-64),Generic Care Packages SE Team -PS,Social Care - Homecare,08/07/2016,3693870,"1,135.75",SEVACARE UK LTD
Adults Services,Adult Social Care,Support with Memory and Cognition - adults (18-64),Generic Care Packages SW Team - PS,Social Care - Homecare,08/07/2016,3693871,"1,076.75",SEVACARE UK LTD
Adults Services,Adult Social Care,Support with Memory and Cognition - adults (18-64),Generic Care Packages SE Team -PS,Social Care - Home Care (Short Term),08/07/2016,3693875,"1,239.00",SEVACARE UK LTD
Adults Services,Adult Social Care,Support with Memory and Cognition - adults (18-64),Generic Care Packages NW Team -PS,Social Care - Homecare,08/07/2016,3693880,634.25,SEVACARE UK LTD
Adults Services,Adult Social Care,Support with Memory and Cognition - adults (18-64),Generic Care Packages SW Team - PS,Social Care - Homecare,08/07/2016,3693885,"1,239.00",SEVACARE UK LTD
Adults Services,Adult Social Care,Support with Memory and Cognition - adults (18-64),Generic Care Packages SE Team -PS,Social Care - Homecare,08/07/2016,3693886,988.25,SEVACARE UK LTD
Adults Services,Adult Social Care,Support with Memory and Cognition - adults (18-64),Generic Care Packages SE Team -PS,Social Care - Home Care (Short Term),08/07/2016,3693889,545.75,SEVACARE UK LTD
Adults Services,Adult Social Care,Support with Memory and Cognition - adults (18-64),Generic Care Packages NE Team -PS,Social Care - Home Care (Short Term),08/07/2016,3693890,523.63,SEVACARE UK LTD
Adults Services,Adult Social Care,Support with Memory and Cognition - adults (18-64),Generic Care Packages NE Team -PS,Social Care - Home Care (Short Term),08/07/2016,3693899,"1,121.00",SEVACARE UK LTD
Adults Services,Adult Social Care,Support with Memory and Cognition - adults (18-64),Generic Care Packages SW Team - PS,Social Care - Home Care (Short Term),08/07/2016,3693901,781.75,SEVACARE UK LTD
Adults Services,Adult Social Care,Support with Memory and Cognition - adults (18-64),Generic Care Packages NW Team -PS,Social Care - Homecare,08/07/2016,3693907,575.25,SEVACARE UK LTD
Adults Services,Adult Social Care,Support with Memory and Cognition - adults (18-64),Generic Care Packages NW Team -PS,Social Care - Homecare,08/07/2016,3693909,826.00,SEVACARE UK LTD
Adults Services,Adult Social Care,Support with Memory and Cognition - adults (18-64),Generic Care Packages SE Team -PS,Social Care - Homecare,08/07/2016,3693918,523.63,SEVACARE UK LTD
Adults Services,Adult Social Care,Support with Memory and Cognition - adults (18-64),Generic Care Packages SW Team - PS,Social Care - Homecare,08/07/2016,3693923,885.00,SEVACARE UK LTD
Adults Services,Adult Social Care,Support with Memory and Cognition - adults (18-64),Generic Care Packages SW Team - PS,Social Care - Homecare,08/07/2016,3693935,"1,644.63",SEVACARE UK LTD
Adults Services,Adult Social Care,Support with Memory and Cognition - adults (18-64),Generic Care Packages SE Team -PS,Social Care - Home Care (Short Term),08/07/2016,3693941,508.88,SEVACARE UK LTD
Adults Services,Adult Social Care,Support with Memory and Cognition - adults (18-64),Generic Care Packages SW Team - PS,Social Care - Homecare,08/07/2016,3693942,531.00,SEVACARE UK LTD
Adults Services,Adult Social Care,Physical Support - adults (18-64),"Failed Care Package Conversion		",Social Care - Homecare,08/07/2016,3693961,538.38,SEVACARE UK LTD
Adults Services,Adult Social Care,Support with Memory and Cognition - adults (18-64),Cmht Iod / Poplar South,Social Care - Homecare,08/07/2016,3693967,826.00,SEVACARE UK LTD
Adults Services,Adult Social Care,Support with Memory and Cognition - adults (18-64),Generic Care Packages NE Team -PS,Social Care - Homecare,08/07/2016,3693968,531.00,SEVACARE UK LTD
Adults Services,Adult Social Care,Support with Memory and Cognition - adults (18-64),CLDS Longer Term Support Teams,Social Care - Day Care,08/07/2016,3693991,"1,199.44",APASENTH
Adults Services,Adult Social Care,Support with Memory and Cognition - adults (18-64),CLDS Longer Term Support Teams,Social Care - Day Care,08/07/2016,3693992,908.00,APASENTH
Adults Services,Adult Social Care,Support with Memory and Cognition - adults (18-64),CLDS Longer Term Support Teams,Social Care - Day Care,08/07/2016,3693993,"1,199.44",APASENTH
Adults Services,Adult Social Care,Support with Memory and Cognition - adults (18-64),CLDS Longer Term Support Teams,Social Care - Day Care,08/07/2016,3693995,"3,898.87",APASENTH
Adults Services,Adult Social Care,Physical Support - adults (18-64),"Failed Care Package Conversion		",Social Care - Others,08/07/2016,3693995,"-1,238.96",APASENTH
Adults Services,Adult Social Care,Support with Memory and Cognition - adults (18-64),CLDS Longer Term Support Teams,Social Care - Day Care,08/07/2016,3693997,"1,023.00",APASENTH
Adults Services,Adult Social Care,Support with Memory and Cognition - adults (18-64),CLDS Longer Term Support Teams,Social Care - Day Care,08/07/2016,3693998,"1,199.44",APASENTH
Adults Services,Adult Social Care,Support with Memory and Cognition - adults (18-64),CLDS Longer Term Support Teams,Social Care - Day Care,08/07/2016,3693999,"1,039.20",APASENTH
Adults Services,Adult Social Care,Support with Memory and Cognition - adults (18-64),CLDS Longer Term Support Teams,Social Care - Day Care,08/07/2016,3694000,708.76,APASENTH
Adults Services,Adult Social Care,Support with Memory and Cognition - adults (18-64),CLDS Longer Term Support Teams,Social Care - Day Care,08/07/2016,3694001,708.76,APASENTH
Adults Services,Adult Social Care,Support with Memory and Cognition - adults (18-64),CLDS Longer Term Support Teams,Social Care - Day Care,08/07/2016,3694002,"1,284.14",APASENTH
Adults Services,Adult Social Care,Support with Memory and Cognition - adults (18-64),CLDS Longer Term Support Teams,Social Care - Day Care,08/07/2016,3694004,981.36,APASENTH
Adults Services,Adult Social Care,Support with Memory and Cognition - adults (18-64),CLDS Longer Term Support Teams,Social Care - Day Care,08/07/2016,3694005,"1,385.60",APASENTH
Adults Services,Adult Social Care,Support with Memory and Cognition - adults (18-64),CLDS Longer Term Support Teams,Social Care - Day Care,08/07/2016,3694007,900.64,APASENTH
Adults Services,Adult Social Care,Support with Memory and Cognition - adults (18-64),CLDS Longer Term Support Teams,Social Care - Day Care,08/07/2016,3694009,"1,199.44",APASENTH
Adults Services,Adult Social Care,Support with Memory and Cognition - adults (18-64),CLDS Longer Term Support Teams,Social Care - Day Care,08/07/2016,3694010,"1,524.16",APASENTH
Adults Services,Adult Social Care,Support with Memory and Cognition - adults (18-64),CLDS Longer Term Support Teams,Social Care - Day Care,08/07/2016,3694011,599.72,APASENTH
Adults Services,Adult Social Care,Support with Memory and Cognition - adults (18-64),CLDS Longer Term Support Teams,Social Care - Day Care,08/07/2016,3694012,"1,524.16",APASENTH
Adults Services,Adult Social Care,Support with Memory and Cognition - adults (18-64),CLDS Longer Term Support Teams,Social Care - Day Care,08/07/2016,3694013,"2,497.00",APASENTH
Adults Services,Adult Social Care,Support with Memory and Cognition - adults (18-64),CLDS Longer Term Support Teams,Social Care - Day Care,08/07/2016,3694015,708.76,APASENTH
Adults Services,Adult Social Care,Support with Memory and Cognition - adults (18-64),CLDS Longer Term Support Teams,Social Care - Day Care,08/07/2016,3694018,926.84,APASENTH
Adults Services,Adult Social Care,Support with Memory and Cognition - adults (18-64),CLDS Longer Term Support Teams,Social Care - Day Care,08/07/2016,3694019,763.28,APASENTH
Adults Services,Adult Social Care,Support with Memory and Cognition - adults (18-64),CLDS Longer Term Support Teams,Social Care - Day Care,08/07/2016,3694022,"2,172.94",APASENTH
Adults Services,Adult Social Care,Support with Memory and Cognition - adults (18-64),CLDS Longer Term Support Teams,Social Care - Day Care,08/07/2016,3694023,"1,454.88",APASENTH
Adults Services,Adult Social Care,Support with Memory and Cognition - adults (18-64),CLDS Longer Term Support Teams,Social Care - Day Care,08/07/2016,3694024,"1,998.48",APASENTH
Adults Services,Adult Social Care,Support with Memory and Cognition - adults (18-64),CLDS Longer Term Support Teams,Social Care - Day Care,08/07/2016,3694025,"1,199.44",APASENTH
Adults Services,Adult Social Care,Support with Memory and Cognition - adults (18-64),CLDS Longer Term Support Teams,Social Care - Day Care,08/07/2016,3694027,"2,497.00",APASENTH
Adults Services,Adult Social Care,Support with Memory and Cognition - adults (18-64),CLDS Longer Term Support Teams,Social Care - Day Care,08/07/2016,3694028,"1,913.56",APASENTH
Adults Services,Adult Social Care,Support with Memory and Cognition - adults (18-64),CLDS Longer Term Support Teams,Social Care - Day Care,08/07/2016,3694029,"1,199.44",APASENTH
Adults Services,Adult Social Care,Support with Memory and Cognition - adults (18-64),"Generic Care Packages NW Team-LD				",Social Care - Day Care,08/07/2016,3694030,831.36,APASENTH
Adults Services,Adult Social Care,Support with Memory and Cognition - adults (18-64),CLDS Longer Term Support Teams,Social Care - Day Care,08/07/2016,3694031,"2,074.38",APASENTH
Adults Services,Adult Social Care,Support with Memory and Cognition - adults (18-64),CLDS Longer Term Support Teams,Social Care - Day Care,08/07/2016,3694032,"1,199.44",APASENTH
Adults Services,Adult Social Care,Support with Memory and Cognition - adults (18-64),CLDS Longer Term Support Teams,Social Care - Day Care,08/07/2016,3694035,"1,524.16",APASENTH
Adults Services,Adult Social Care,Support with Memory and Cognition - adults (18-64),CLDS Longer Term Support Teams,Social Care - Day Care,08/07/2016,3694036,763.28,APASENTH
Adults Services,Adult Social Care,Support with Memory and Cognition - adults (18-64),CLDS Longer Term Support Teams,Social Care - Day Care,08/07/2016,3694037,599.72,APASENTH
Adults Services,Adult Social Care,Support with Memory and Cognition - adults (18-64),CLDS Longer Term Support Teams,Social Care - Day Care,08/07/2016,3694038,981.36,APASENTH
Adults Services,Adult Social Care,Support with Memory and Cognition - adults (18-64),CLDS Longer Term Support Teams,Social Care - Day Care,08/07/2016,3694039,654.24,APASENTH
Adults Services,Adult Social Care,Support with Memory and Cognition - adults (18-64),CLDS Longer Term Support Teams,Social Care - Day Care,08/07/2016,3694040,"1,199.44",APASENTH
Adults Services,Adult Social Care,Support with Memory and Cognition - adults (18-64),CLDS Longer Term Support Teams,Social Care - Day Care,08/07/2016,3694042,"1,524.16",APASENTH
Adults Services,Adult Social Care,Support with Memory and Cognition - adults (18-64),CLDS Longer Term Support Teams,Social Care - Day Care,08/07/2016,3694043,763.28,APASENTH
Adults Services,Adult Social Care,Support with Memory and Cognition - adults (18-64),CLDS Longer Term Support Teams,Social Care - Day Care,08/07/2016,3694044,"1,370.03",APASENTH
Adults Services,Adult Social Care,Support with Memory and Cognition - adults (18-64),CLDS Longer Term Support Teams,Social Care - Day Care,08/07/2016,3694045,"1,199.44",APASENTH
Adults Services,Adult Social Care,Support with Memory and Cognition - adults (18-64),CLDS Longer Term Support Teams,Social Care - Day Care,08/07/2016,3694046,"1,035.88",APASENTH
Adults Services,Adult Social Care,Support with Memory and Cognition - adults (18-64),CLDS Longer Term Support Teams,Social Care - Day Care,08/07/2016,3694047,926.84,APASENTH
Adults Services,Adult Social Care,Support with Memory and Cognition - adults (18-64),CLDS Longer Term Support Teams,Social Care - Day Care,08/07/2016,3694048,"1,524.16",APASENTH
Adults Services,Adult Social Care,Support with Memory and Cognition - adults (18-64),CLDS Longer Term Support Teams,Social Care - Day Care,08/07/2016,3694051,794.64,APASENTH
Adults Services,Adult Social Care,Support with Memory and Cognition - adults (18-64),Cmht Bow / Poplar North,Social Care - Prevention & Support,08/07/2016,3694054,"1,025.00",Alma Attic Ltd T/A Glorydale Inn
Adults Services,Adult Social Care,Support with Memory and Cognition - adults (18-64),Generic Care Packages NW Team -PS,Social Care - Nursing Care,08/07/2016,3694056,"2,253.30",Coverage Care Service Ltd
Adults Services,Adult Social Care,Support with Memory and Cognition - adults (18-64),Generic Care Packages NW Team -PS,Social Care - Nursing Care,08/07/2016,3694057,"2,408.70",Coverage Care Service Ltd
Adults Services,Adult Social Care,Support with Memory and Cognition - adults (18-64),Generic Care Packages NW Team -PS,Social Care - Homecare,08/07/2016,3694058,548.08,SANCTUARY HOME CARE LIMITED
Adults Services,Adult Social Care,Support with Memory and Cognition - adults (18-64),Generic Care Packages SW Team - PS,Social Care - Homecare,08/07/2016,3694066,"1,192.88",SANCTUARY HOME CARE LIMITED
Adults Services,Adult Social Care,Support with Memory and Cognition - adults (18-64),Generic Care Packages NW Team -PS,Social Care - Homecare,08/07/2016,3694072,612.56,SANCTUARY HOME CARE LIMITED
Adults Services,Adult Social Care,Support with Memory and Cognition - adults (18-64),Generic Care Packages NW Team -PS,Social Care - Homecare,08/07/2016,3694076,725.40,SANCTUARY HOME CARE LIMITED
Adults Services,Adult Social Care,Support with Memory and Cognition - adults (18-64),Generic Care Packages SW Team - PS,Social Care - Homecare,08/07/2016,3694078,"2,821.00",SANCTUARY HOME CARE LIMITED
Adults Services,Adult Social Care,Support with Memory and Cognition - adults (18-64),Generic Care Packages NE Team -PS,Social Care - Homecare,08/07/2016,3694084,556.14,SANCTUARY HOME CARE LIMITED
Adults Services,Adult Social Care,Support with Memory and Cognition - adults (18-64),Generic Care Packages NW Team -PS,Social Care - Homecare,08/07/2016,3694099,548.08,SANCTUARY HOME CARE LIMITED
Adults Services,Adult Social Care,Support with Memory and Cognition - adults (18-64),Generic Care Packages NE Team -PS,Social Care - Homecare,08/07/2016,3694101,671.56,SANCTUARY HOME CARE LIMITED
Adults Services,Adult Social Care,Support with Memory and Cognition - adults (18-64),Generic Care Packages NW Team -PS,Social Care - Homecare,08/07/2016,3694105,596.44,SANCTUARY HOME CARE LIMITED
Adults Services,Adult Social Care,Physical Support - adults (18-64),"Failed Care Package Conversion		",Social Care - Homecare,08/07/2016,3694109,507.78,SANCTUARY HOME CARE LIMITED
Adults Services,Adult Social Care,Support with Memory and Cognition - adults (18-64),Generic Care Packages SW Team - PS,Social Care - Homecare,08/07/2016,3694111,"1,805.44",SANCTUARY HOME CARE LIMITED
Adults Services,Adult Social Care,Support with Memory and Cognition - adults (18-64),Generic Care Packages NE Team -PS,Social Care - Home Care (Short Term),08/07/2016,3694121,531.96,SANCTUARY HOME CARE LIMITED
Adults Services,Adult Social Care,Support with Memory and Cognition - adults (18-64),Generic Care Packages SE Team-SMC,Social Care - Homecare,08/07/2016,3694122,531.96,SANCTUARY HOME CARE LIMITED
Adults Services,Adult Social Care,Support with Memory and Cognition - adults (18-64),Generic Care Packages NW Team -PS,Social Care - Homecare,08/07/2016,3694125,612.56,SANCTUARY HOME CARE LIMITED
Adults Services,Adult Social Care,Support with Memory and Cognition - adults (18-64),CLDS Longer Term Support Teams,Social Care - Homecare,11/07/2016,3680101,689.04,Outward Housing
Adults Services,Adult Social Care,Support with Memory and Cognition - adults (18-64),CLDS Longer Term Support Teams,Social Care - Homecare,11/07/2016,3680102,756.03,Outward Housing
Adults Services,Adult Social Care,Support with Memory and Cognition - adults (18-64),CLDS Longer Term Support Teams,Social Care - Homecare,11/07/2016,3680105,564.63,Outward Housing
Adults Services,Adult Social Care,Support with Memory and Cognition - adults (18-64),CLDS Longer Term Support Teams,Social Care - Homecare,11/07/2016,3680107,"1,224.96",Outward Housing
Adults Services,Adult Social Care,Support with Memory and Cognition - adults (18-64),CLDS Longer Term Support Teams,Social Care - Homecare,11/07/2016,3680109,861.30,Outward Housing
Adults Services,Adult Social Care,Support with Memory and Cognition - adults (18-64),CLDS Longer Term Support Teams,Social Care - Homecare,11/07/2016,3680110,918.72,Outward Housing
Adults Services,Adult Social Care,Support with Memory and Cognition - adults (18-64),CLDS Longer Term Support Teams,Social Care - Homecare,11/07/2016,3680111,612.48,Outward Housing
Adults Services,Adult Social Care,Support with Memory and Cognition - adults (18-64),CLDS Longer Term Support Teams,Social Care - Homecare,11/07/2016,3680115,612.48,Outward Housing
Adults Services,Adult Social Care,Support with Memory and Cognition - adults (18-64),CLDS Longer Term Support Teams,Social Care - Homecare,11/07/2016,3680116,535.92,Outward Housing
Adults Services,Adult Social Care,Support with Memory and Cognition - adults (18-64),CLDS Longer Term Support Teams,Social Care - Homecare,11/07/2016,3680118,"1,224.96",Outward Housing
Adults Services,Adult Social Care,Support with Memory and Cognition - adults (18-64),CLDS Longer Term Support Teams,Social Care - Homecare,11/07/2016,3680119,"1,454.64",Outward Housing
Adults Services,Adult Social Care,Support with Memory and Cognition - adults (18-64),CLDS Longer Term Support Teams,Social Care - Homecare,11/07/2016,3680120,"1,186.68",Outward Housing
Adults Services,Adult Social Care,Support with Memory and Cognition - adults (18-64),CLDS Longer Term Support Teams,Social Care - Homecare,11/07/2016,3680122,"1,071.84",Outward Housing
Adults Services,Adult Social Care,Support with Memory and Cognition - adults (18-64),CLDS Longer Term Support Teams,Social Care - Homecare,11/07/2016,3680123,765.60,Outward Housing
Adults Services,Adult Social Care,Support with Memory and Cognition - adults (18-64),CLDS Longer Term Support Teams,Social Care - Homecare,11/07/2016,3680125,689.04,Outward Housing
Adults Services,Adult Social Care,Support with Memory and Cognition - adults (18-64),CLDS Longer Term Support Teams,Social Care - Homecare,11/07/2016,3680129,689.04,Outward Housing
Adults Services,Adult Social Care,Support with Memory and Cognition - adults (18-64),CLDS Longer Term Support Teams,Social Care - Homecare,11/07/2016,3680130,"1,416.36",Outward Housing
Adults Services,Adult Social Care,Support with Memory and Cognition - adults (18-64),Cmht Stepney / Wapping,Social Care - Homecare,11/07/2016,3682356,622.05,Outward Housing
Adults Services,Public Health,Miscellaneous Public Health Services,Public Health - Director,Third Party Payments - Other Establishments,11/07/2016,3682500,"5,000.00",The Evidence Centre
Adults Services,No Service Specified,No Division Specified,Community Equipment Store,Services - Professional Fees - Environmental Services Fees,11/07/2016,3682951,955.04,RTS
Adults Services,Public Health,Smoking and Tobacco,Public Health Team - 2,Third Party Payments - Other Establishments,11/07/2016,3683905,"14,025.00",Royal Free London NHS Foundation Trust
Adults Services,Public Health,Smoking and Tobacco,Public Health Team - 2,Third Party Payments - Other Establishments,11/07/2016,3684137,950.00,Royal Free London NHS Foundation Trust
Adults Services,Public Health,Smoking and Tobacco,Public Health Team - 2,Third Party Payments - Other Establishments,11/07/2016,3684900,"-10,772.00",Royal Free London NHS Foundation Trust
Adults Services,Public Health,Smoking and Tobacco,Public Health Team - 2,Third Party Payments - Other Establishments,11/07/2016,3684970,-756.00,Royal Free London NHS Foundation Trust
Adults Services,No Service Specified,No Division Specified,Capital-Minor Works (SC),Building Works - Main Works,11/07/2016,3691566,"1,108,384.00",Tower Hamlets Schools LTD
Adults Services,No Service Specified,No Division Specified,Capital-Minor Works (SC),Building Works - Main Works,11/07/2016,3696863,"5,142.00",Early Years Network Tower Hamlets
Adults Services,No Service Specified,No Division Specified,Capital-Minor Works (SC),Building Works - Main Works,11/07/2016,3696864,"25,478.00",CITY GATEWAY
Adults Services,Public Health,Smoking and Tobacco,Public Health Team - 2,Third Party Payments - Voluntary Associations,13/07/2016,3651147,"-8,325.00",Positive East
Adults Services,Adult Social Care,Physical Support - adults (18-64),Public Health � Healthy Middle Age & Older People.,Third Party Payments - Voluntary Associations,13/07/2016,3680291,"16,653.00",Positive East
Adults Services,Adult Social Care,Physical Support - adults (18-64),Public Health � Healthy Young Adults,Third Party Payments - Voluntary Associations,13/07/2016,3680293,"56,519.00",Positive East
Adults Services,Adult Social Care,Physical Support - adults (18-64),Public Health � Healthy Young Adults,Third Party Payments - Voluntary Associations,13/07/2016,3680294,"13,320.00",Positive East
Adults Services,Adult Social Care,Support with Memory and Cognition - adults (18-64),Generic Care Packages SW Team - PS,Social Care - Nursing Care,13/07/2016,3682159,"2,152.00",Friars Hall Nursing Home
Adults Services,No Service Specified,No Division Specified,Community Equipment Store,Services - Professional Fees - Financial Services Fees,13/07/2016,3682830,"190,000.00",London Borough Of Croydon
Adults Services,Public Health,Children 519 Public Health Programmes,Public Health Team 1,Third Party Payments - Other Establishments,13/07/2016,3682831,"2,032.00",Kent Community Health NHS Trust
Adults Services,No Service Specified,No Division Specified,Capital-Minor Works (SC),Other External Fees - Consultants Fees,13/07/2016,3683212,"2,565.00",Alan Conisbee & Associates Ltd
Adults Services,Adult Social Care,Support with Memory and Cognition - adults (18-64),Generic Care Packages SW Team - PS,Social Care - Nursing Care,13/07/2016,3683600,"3,286.00",HEALTH & HOME LTD (ALEXANDER HOUSE)
Adults Services,Adult Social Care,Support with Memory and Cognition - adults (18-64),Generic Care Packages SE Team-SMC,Social Care - Residential Care,13/07/2016,3683601,"3,642.86",HEALTH & HOME LTD (ALEXANDER HOUSE)
Adults Services,Adult Social Care,Support with Memory and Cognition - adults (18-64),Generic Care Packages SE Team-SMC,Social Care - Residential Care,13/07/2016,3683602,"3,764.29",HEALTH & HOME LTD (ALEXANDER HOUSE)
Adults Services,Adult Social Care,Support with Memory and Cognition - adults (18-64),Generic Care Packages SW Team - PS,Social Care - Nursing Care,13/07/2016,3683603,"3,180.00",HEALTH & HOME LTD (ALEXANDER HOUSE)
Adults Services,Adult Social Care,Support with Memory and Cognition - adults (18-64),Generic Care Packages SE Team -SP,Non Staff Transport Costs - Client Transport Costs,13/07/2016,3683687,600.00,Abacus Ambulance Service
Adults Services,Adult Social Care,Physical Support - adults (18-64),Learning Dis Commissioning,Social Care - Residential Care,13/07/2016,3684820,"3,420.03",Scope
Adults Services,Adult Social Care,Support with Memory and Cognition - adults (18-64),Generic Care Packages NE Team -SI,Social Care - Homecare,13/07/2016,3686108,704.60,POSITIVE CARE LINK
Adults Services,Adult Social Care,Support with Memory and Cognition - adults (18-64),Generic Care Packages SW Team - PS,Social Care - Nursing Care,13/07/2016,3688862,"1,934.66",H-C ONE LTD - TOWER BRIDGE
Adults Services,Adult Social Care,Support with Memory and Cognition - adults (18-64),Generic Care Packages NW Team -PS,Social Care - Residential Care,13/07/2016,3688886,"3,800.91",HEALTH & HOME LTD (ALEXANDER HOUSE)
Adults Services,Adult Social Care,Support with Memory and Cognition - adults (18-64),Generic Care Packages NW Team -PS,Social Care - Residential Care,13/07/2016,3688887,"3,927.61",HEALTH & HOME LTD (ALEXANDER HOUSE)
Adults Services,Adult Social Care,Support with Memory and Cognition - adults (18-64),Cmht For Older People,Social Care - Residential Care,13/07/2016,3690002,"2,166.67",South Park Residential Home Limited
Adults Services,Adult Social Care,Support with Memory and Cognition - adults (18-64),Generic Care Packages SE Team -PS,Social Care - Direct Payments,13/07/2016,3692928,"-18,739.52",DAVID HOWARD LTD CLIENT ACCOUNT
Adults Services,Adult Social Care,Support with Memory and Cognition - adults (18-64),Generic Care Packages SE Team -PS,Social Care - Direct Payments,13/07/2016,3692930,"18,573.81",DAVID HOWARD LTD CLIENT ACCOUNT
Adults Services,Adult Social Care,Support with Memory and Cognition - adults (18-64),Cmht Bow / Poplar North,Social Care - Residential Care,13/07/2016,3698467,"6,428.57",Choice Pathways Ltd
Adults Services,Adult Social Care,Support with Memory and Cognition - adults (18-64),Generic Care Packages SE Team -PS,Social Care - Homecare,13/07/2016,3698468,636.58,ATHLONE CARE LTD
Adults Services,Adult Social Care,Support with Memory and Cognition - adults (18-64),Generic Care Packages SE Team -PS,Social Care - Homecare,13/07/2016,3698469,686.98,ATHLONE CARE LTD
Adults Services,Adult Social Care,Support with Memory and Cognition - adults (18-64),Generic Care Packages SE Team -PS,Social Care - Homecare,13/07/2016,3698470,662.06,ATHLONE CARE LTD
Adults Services,Adult Social Care,Support with Memory and Cognition - adults (18-64),Cmht For Older People,Social Care - Homecare,13/07/2016,3698475,513.98,ATHLONE CARE LTD
Adults Services,Adult Social Care,Support with Memory and Cognition - adults (18-64),Generic Care Packages NW Team -PS,Social Care - Homecare,13/07/2016,3698488,563.54,ATHLONE CARE LTD
Adults Services,Adult Social Care,Support with Memory and Cognition - adults (18-64),Generic Care Packages NE Team -PS,Social Care - Homecare,13/07/2016,3698489,690.20,ATHLONE CARE LTD
Adults Services,Adult Social Care,Support with Memory and Cognition - adults (18-64),Generic Care Packages SW Team - PS,Social Care - Homecare,13/07/2016,3698491,669.12,ATHLONE CARE LTD
Adults Services,Adult Social Care,Support with Memory and Cognition - adults (18-64),Generic Care Packages SE Team -PS,Social Care - Homecare,13/07/2016,3698492,"1,225.34",ATHLONE CARE LTD
Adults Services,Adult Social Care,Support with Memory and Cognition - adults (18-64),Generic Care Packages NE Team -PS,Social Care - Homecare,13/07/2016,3698498,542.30,ATHLONE CARE LTD
Adults Services,Adult Social Care,Support with Memory and Cognition - adults (18-64),Generic Care Packages NW Team -PS,Social Care - Homecare,13/07/2016,3698500,"1,056.54",ATHLONE CARE LTD
Adults Services,Adult Social Care,Support with Memory and Cognition - adults (18-64),Generic Care Packages SE Team -PS,Social Care - Homecare,13/07/2016,3698501,"1,320.60",ATHLONE CARE LTD
Adults Services,Adult Social Care,Support with Memory and Cognition - adults (18-64),Generic Care Packages NE Team -PS,Social Care - Home Care (Short Term),13/07/2016,3698506,823.92,ATHLONE CARE LTD
Adults Services,Adult Social Care,Support with Memory and Cognition - adults (18-64),Cmht Bethnal Green,Social Care - Prevention & Support,13/07/2016,3698524,"1,470.00",City Inn Express Limited
Adults Services,Adult Social Care,Support with Memory and Cognition - adults (18-64),Cmht Bow / Poplar North,Social Care - Prevention & Support,13/07/2016,3698526,"1,470.00",City Inn Express Limited
Adults Services,Adult Social Care,Support with Memory and Cognition - adults (18-64),Cmht Bow / Poplar North,Social Care - Prevention & Support,13/07/2016,3698527,"1,470.00",City Inn Express Limited
Adults Services,Adult Social Care,Support with Memory and Cognition - adults (18-64),Cmht Bethnal Green,Social Care - Prevention & Support,13/07/2016,3698528,"1,470.00",City Inn Express Limited
Adults Services,Adult Social Care,Support with Memory and Cognition - adults (18-64),Cmht Bow / Poplar North,Social Care - Prevention & Support,13/07/2016,3698529,"1,470.00",City Inn Express Limited
Adults Services,Adult Social Care,Support with Memory and Cognition - adults (18-64),Generic Care Packages SW Team - PS,Social Care - Homecare,13/07/2016,3698558,596.06,Mantra Recruitment
Adults Services,Adult Social Care,Support with Memory and Cognition - adults (18-64),Generic Care Packages SW Team - PS,Social Care - Homecare,13/07/2016,3698565,596.06,Mantra Recruitment
Adults Services,Adult Social Care,Support with Memory and Cognition - adults (18-64),Generic Care Packages SW Team - PS,Social Care - Homecare,13/07/2016,3698573,613.93,Mantra Recruitment
Adults Services,Adult Social Care,Support with Memory and Cognition - adults (18-64),Generic Care Packages SW Team - PS,Social Care - Homecare,13/07/2016,3698608,"1,485.42",Mantra Recruitment
Adults Services,Adult Social Care,Support with Memory and Cognition - adults (18-64),Generic Care Packages SE Team -PS,Social Care - Homecare,13/07/2016,3698622,688.50,Mantra Recruitment
Adults Services,Adult Social Care,Support with Memory and Cognition - adults (18-64),Generic Care Packages SW Team - PS,Social Care - Homecare,13/07/2016,3698632,525.31,Mantra Recruitment
Adults Services,Adult Social Care,Support with Memory and Cognition - adults (18-64),Generic Care Packages NW Team -PS,Social Care - Homecare,13/07/2016,3698657,522.75,Mantra Recruitment
Adults Services,Adult Social Care,Support with Memory and Cognition - adults (18-64),Generic Care Packages NE Team -PS,Social Care - Homecare,13/07/2016,3698696,533.21,Mantra Recruitment
Adults Services,Adult Social Care,Support with Memory and Cognition - adults (18-64),Generic Care Packages SE Team -PS,Social Care - Homecare,13/07/2016,3698698,592.88,Mantra Recruitment
Adults Services,Adult Social Care,Support with Memory and Cognition - adults (18-64),Generic Care Packages SE Team -PS,Social Care - Homecare,13/07/2016,3698711,714.00,Mantra Recruitment
Adults Services,Adult Social Care,Support with Memory and Cognition - adults (18-64),Generic Care Packages NW Team -PS,Social Care - Homecare,13/07/2016,3698746,"1,141.13",Mantra Recruitment
Adults Services,Adult Social Care,Support with Memory and Cognition - adults (18-64),Generic Care Packages NW Team -PS,Social Care - Homecare,13/07/2016,3698749,551.44,Mantra Recruitment
Adults Services,Adult Social Care,Support with Memory and Cognition - adults (18-64),Generic Care Packages NE Team -PS,Social Care - Homecare,13/07/2016,3698786,535.50,Mantra Recruitment
Adults Services,Adult Social Care,Support with Memory and Cognition - adults (18-64),Generic Care Packages SW Team - PS,Social Care - Homecare,13/07/2016,3698807,712.43,Mantra Recruitment
Adults Services,Adult Social Care,Support with Memory and Cognition - adults (18-64),Generic Care Packages NW Team -PS,Social Care - Homecare,13/07/2016,3698823,"1,144.95",Mantra Recruitment
Adults Services,Adult Social Care,Support with Memory and Cognition - adults (18-64),Generic Care Packages NW Team -PS,Social Care - Homecare,13/07/2016,3698824,550.80,Mantra Recruitment
Adults Services,Adult Social Care,Support with Memory and Cognition - adults (18-64),Generic Care Packages SE Team -PS,Social Care - Homecare,13/07/2016,3698841,530.40,Mantra Recruitment
Adults Services,Adult Social Care,Support with Memory and Cognition - adults (18-64),Generic Care Packages NE Team -PS,Social Care - Homecare,13/07/2016,3698850,534.86,Mantra Recruitment
Adults Services,Adult Social Care,Support with Memory and Cognition - adults (18-64),Generic Care Packages NE Team -PS,Social Care - Homecare,13/07/2016,3698851,504.90,Mantra Recruitment
Adults Services,Adult Social Care,Support with Memory and Cognition - adults (18-64),Generic Care Packages SE Team -PS,Social Care - Homecare,13/07/2016,3698866,516.38,Mantra Recruitment
Adults Services,Adult Social Care,Support with Memory and Cognition - adults (18-64),Generic Care Packages SW Team - PS,Social Care - Home Care (Short Term),13/07/2016,3698878,598.64,Excelcare (Home Care Division) LTD
Adults Services,Adult Social Care,Support with Memory and Cognition - adults (18-64),Generic Care Packages NW Team -SP,Social Care - Homecare,13/07/2016,3698879,"1,126.10",Excelcare (Home Care Division) LTD
Adults Services,Adult Social Care,Support with Memory and Cognition - adults (18-64),Generic Care Packages SE Team -PS,Social Care - Homecare,13/07/2016,3698884,755.32,Excelcare (Home Care Division) LTD
Adults Services,Adult Social Care,Support with Memory and Cognition - adults (18-64),Generic Care Packages SW Team - PS,Social Care - Homecare,13/07/2016,3698887,726.82,Excelcare (Home Care Division) LTD
Adults Services,Adult Social Care,Support with Memory and Cognition - adults (18-64),Cmht Iod / Poplar South,Social Care - Homecare,13/07/2016,3698890,"1,204.22",Excelcare (Home Care Division) LTD
Adults Services,Adult Social Care,Support with Memory and Cognition - adults (18-64),Generic Care Packages NW Team -PS,Social Care - Homecare,13/07/2016,3698892,"1,218.62",Excelcare (Home Care Division) LTD
Adults Services,Adult Social Care,Support with Memory and Cognition - adults (18-64),Generic Care Packages NW Team -PS,Social Care - Homecare,13/07/2016,3698896,"2,265.80",Excelcare (Home Care Division) LTD
Adults Services,Adult Social Care,Support with Memory and Cognition - adults (18-64),Generic Care Packages SE Team -PS,Social Care - Homecare,13/07/2016,3698898,584.34,Excelcare (Home Care Division) LTD
Adults Services,Adult Social Care,Support with Memory and Cognition - adults (18-64),Generic Care Packages SW Team - PS,Social Care - Homecare,13/07/2016,3698909,"4,836.30",Excelcare (Home Care Division) LTD
Adults Services,Adult Social Care,Support with Memory and Cognition - adults (18-64),CLDS Longer Term Support Teams,Social Care - Homecare,13/07/2016,3698926,798.16,Excelcare (Home Care Division) LTD
Adults Services,Adult Social Care,Support with Memory and Cognition - adults (18-64),CLDS Longer Term Support Teams,Social Care - Homecare,13/07/2016,3698928,"3,161.80",Excelcare (Home Care Division) LTD
Adults Services,Adult Social Care,Support with Memory and Cognition - adults (18-64),CLDS Longer Term Support Teams,Social Care - Homecare,13/07/2016,3698930,"4,088.02",Excelcare (Home Care Division) LTD
Adults Services,Adult Social Care,Support with Memory and Cognition - adults (18-64),Generic Care Packages SE Team -PS,Social Care - Homecare,13/07/2016,3698936,990.88,Excelcare (Home Care Division) LTD
Adults Services,Adult Social Care,Support with Memory and Cognition - adults (18-64),Cmht Bethnal Green,Social Care - Supported Living,13/07/2016,3698940,"1,971.30",ANTRIM CARE SERVICES LIMITED
Adults Services,Adult Social Care,Support with Memory and Cognition - adults (18-64),Cmht Bow / Poplar North,Social Care - Supported Living,13/07/2016,3698941,"1,971.30",ANTRIM CARE SERVICES LIMITED
Adults Services,Adult Social Care,Support with Memory and Cognition - adults (18-64),Generic Care Packages NW Team -PS,Social Care - Nursing Care,13/07/2016,3698942,"5,128.71",LIFE STYLE CARE (2011) PLC
Adults Services,Adult Social Care,Support with Memory and Cognition - adults (18-64),Generic Care Packages NE Team -PS,Social Care - Nursing Care,13/07/2016,3698943,"1,471.71",LIFE STYLE CARE (2011) PLC
Adults Services,Adult Social Care,Physical Support - adults (18-64),"Failed Care Package Conversion		",Social Care - Mental Health,13/07/2016,3698944,"10,908.71",Praxis Community Project
Adults Services,Adult Social Care,Support with Memory and Cognition - adults (18-64),Generic Care Packages NW Team -PS,Social Care - Nursing Care,13/07/2016,3698945,"1,823.31",LIFE STYLE CARE (2011) PLC
Adults Services,Adult Social Care,Support with Memory and Cognition - adults (18-64),Generic Care Packages SE Team -PS,Social Care - Homecare,13/07/2016,3698951,"1,542.04",FOCUS CARE LINK LTD
Adults Services,Adult Social Care,Support with Memory and Cognition - adults (18-64),Generic Care Packages SE Team -PS,Social Care - Homecare,13/07/2016,3698952,588.28,FOCUS CARE LINK LTD
Adults Services,Adult Social Care,Support with Memory and Cognition - adults (18-64),Generic Care Packages SE Team -PS,Social Care - Homecare,13/07/2016,3698960,"1,638.89",FOCUS CARE LINK LTD
Adults Services,Adult Social Care,Support with Memory and Cognition - adults (18-64),Generic Care Packages SW Team - PS,Social Care - Homecare,13/07/2016,3698961,"1,497.44",FOCUS CARE LINK LTD
Adults Services,Adult Social Care,Support with Memory and Cognition - adults (18-64),Generic Care Packages NE Team -PS,Social Care - Homecare,13/07/2016,3698965,573.00,FOCUS CARE LINK LTD
Adults Services,Adult Social Care,Support with Memory and Cognition - adults (18-64),Generic Care Packages SW Team - PS,Social Care - Homecare,13/07/2016,3698970,"1,076.48",FOCUS CARE LINK LTD
Adults Services,Adult Social Care,Support with Memory and Cognition - adults (18-64),Cmht Bow / Poplar North,Social Care - Homecare,13/07/2016,3698974,"1,118.29",FOCUS CARE LINK LTD
Adults Services,Adult Social Care,Support with Memory and Cognition - adults (18-64),Generic Care Packages SE Team -PS,Social Care - Home Care (Short Term),13/07/2016,3698975,"1,482.35",FOCUS CARE LINK LTD
Adults Services,Adult Social Care,Support with Memory and Cognition - adults (18-64),Generic Care Packages SW Team - PS,Social Care - Homecare,13/07/2016,3698977,535.52,FOCUS CARE LINK LTD
Adults Services,Adult Social Care,Support with Memory and Cognition - adults (18-64),Generic Care Packages NE Team -PS,Social Care - Homecare,13/07/2016,3698982,855.68,FOCUS CARE LINK LTD
Adults Services,Adult Social Care,Support with Memory and Cognition - adults (18-64),Generic Care Packages SW Team - PS,Social Care - Homecare,13/07/2016,3698989,"1,425.55",FOCUS CARE LINK LTD
Adults Services,Adult Social Care,Support with Memory and Cognition - adults (18-64),Generic Care Packages SE Team -PS,Social Care - Homecare,13/07/2016,3698990,567.65,FOCUS CARE LINK LTD
Adults Services,Adult Social Care,Support with Memory and Cognition - adults (18-64),Generic Care Packages SW Team - PS,Social Care - Nursing Care,13/07/2016,3698997,"-20,113.90",SANCTUARY CARE LTD
Adults Services,Adult Social Care,Support with Memory and Cognition - adults (18-64),Generic Care Packages SE Team -PS,Social Care - Nursing Care,13/07/2016,3698999,"20,657.15",SANCTUARY CARE LTD
Adults Services,Adult Social Care,Support with Memory and Cognition - adults (18-64),Generic Care Packages SW Team - PS,Social Care - Direct Payments,13/07/2016,3699000,"28,151.96",DAVID HOWARD LTD CLIENT ACCOUNT
Adults Services,Adult Social Care,Support with Memory and Cognition - adults (18-64),CLDS Longer Term Support Teams,Social Care - Homecare,13/07/2016,3699007,902.40,Oasis Care & Training Agency
Adults Services,Adult Social Care,Support with Memory and Cognition - adults (18-64),Generic Care Packages NW Team -PS,Social Care - Homecare,13/07/2016,3699009,937.65,Oasis Care & Training Agency
Adults Services,Adult Social Care,Support with Memory and Cognition - adults (18-64),Generic Care Packages SW Team - PS,Social Care - Homecare,13/07/2016,3699012,"1,291.61",Oasis Care & Training Agency
Adults Services,Adult Social Care,Support with Memory and Cognition - adults (18-64),Generic Care Packages SW Team - PS,Social Care - Home Care (Short Term),13/07/2016,3699019,860.10,Oasis Care & Training Agency
Adults Services,Adult Social Care,Support with Memory and Cognition - adults (18-64),Generic Care Packages SW Team - PS,Social Care - Home Care (Short Term),13/07/2016,3699021,740.25,Oasis Care & Training Agency
Adults Services,Adult Social Care,Support with Memory and Cognition - adults (18-64),CLDS Longer Term Support Teams,Social Care - Homecare,13/07/2016,3699035,902.40,Oasis Care & Training Agency
Adults Services,Adult Social Care,Support with Memory and Cognition - adults (18-64),Generic Care Packages NW Team -PS,Social Care - Homecare,13/07/2016,3699038,937.65,Oasis Care & Training Agency
Adults Services,Adult Social Care,Support with Memory and Cognition - adults (18-64),Generic Care Packages SW Team - PS,Social Care - Homecare,13/07/2016,3699040,796.65,Oasis Care & Training Agency
Adults Services,Adult Social Care,Support with Memory and Cognition - adults (18-64),Generic Care Packages SW Team - PS,Social Care - Home Care (Short Term),13/07/2016,3699046,860.10,Oasis Care & Training Agency
Adults Services,Adult Social Care,Support with Memory and Cognition - adults (18-64),Generic Care Packages SW Team - PS,Social Care - Home Care (Short Term),13/07/2016,3699048,740.25,Oasis Care & Training Agency
Adults Services,Adult Social Care,Support with Memory and Cognition - adults (18-64),Generic Care Packages NE Team -PS,Social Care - Homecare,13/07/2016,3699059,"2,010.20",COMMUNITY CARE CONSORTIUM
Adults Services,Adult Social Care,Support with Memory and Cognition - adults (18-64),Generic Care Packages SE Team -PS,Social Care - Homecare,13/07/2016,3699060,"1,656.80",COMMUNITY CARE CONSORTIUM
Adults Services,Adult Social Care,Support with Memory and Cognition - adults (18-64),Generic Care Packages SW Team-SMC,Social Care - Homecare,13/07/2016,3699061,"1,322.40",COMMUNITY CARE CONSORTIUM
Adults Services,Adult Social Care,Support with Memory and Cognition - adults (18-64),Generic Care Packages SW Team - PS,Social Care - Homecare,13/07/2016,3699062,"1,263.50",COMMUNITY CARE CONSORTIUM
Adults Services,Adult Social Care,Support with Memory and Cognition - adults (18-64),CLDS Longer Term Support Teams,Social Care - Homecare,13/07/2016,3699063,"1,117.20",COMMUNITY CARE CONSORTIUM
Adults Services,Adult Social Care,Support with Memory and Cognition - adults (18-64),CLDS Longer Term Support Teams,Social Care - Homecare,13/07/2016,3699064,"1,117.20",COMMUNITY CARE CONSORTIUM
Adults Services,Adult Social Care,Support with Memory and Cognition - adults (18-64),CLDS Longer Term Support Teams,Social Care - Homecare,13/07/2016,3699065,991.80,COMMUNITY CARE CONSORTIUM
Adults Services,Adult Social Care,Support with Memory and Cognition - adults (18-64),CLDS Longer Term Support Teams,Social Care - Homecare,13/07/2016,3699066,881.60,COMMUNITY CARE CONSORTIUM
Adults Services,Adult Social Care,Support with Memory and Cognition - adults (18-64),Generic Care Packages SE Team -PS,Social Care - Homecare,13/07/2016,3699067,841.70,COMMUNITY CARE CONSORTIUM
Adults Services,Adult Social Care,Support with Memory and Cognition - adults (18-64),CLDS Longer Term Support Teams,Social Care - Homecare,13/07/2016,3699068,776.40,COMMUNITY CARE CONSORTIUM
Adults Services,Adult Social Care,Support with Memory and Cognition - adults (18-64),Generic Care Packages SE Team -PS,Social Care - Homecare,13/07/2016,3699069,796.10,COMMUNITY CARE CONSORTIUM
Adults Services,Adult Social Care,Support with Memory and Cognition - adults (18-64),CLDS Longer Term Support Teams,Social Care - Homecare,13/07/2016,3699070,760.00,COMMUNITY CARE CONSORTIUM
Adults Services,Adult Social Care,Support with Memory and Cognition - adults (18-64),Cmht For Older People,Social Care - Homecare,13/07/2016,3699071,729.60,COMMUNITY CARE CONSORTIUM
Adults Services,Adult Social Care,Support with Memory and Cognition - adults (18-64),Generic Care Packages SE Team -PS,Social Care - Homecare,13/07/2016,3699072,708.70,COMMUNITY CARE CONSORTIUM
Adults Services,Adult Social Care,Support with Memory and Cognition - adults (18-64),Generic Care Packages SE Team -PS,Social Care - Homecare,13/07/2016,3699073,687.80,COMMUNITY CARE CONSORTIUM
Adults Services,Adult Social Care,Support with Memory and Cognition - adults (18-64),Generic Care Packages NW Team -PS,Social Care - Homecare,13/07/2016,3699074,678.30,COMMUNITY CARE CONSORTIUM
Adults Services,Adult Social Care,Support with Memory and Cognition - adults (18-64),CLDS Longer Term Support Teams,Social Care - Homecare,13/07/2016,3699075,665.00,COMMUNITY CARE CONSORTIUM
Adults Services,Adult Social Care,Support with Memory and Cognition - adults (18-64),CLDS Longer Term Support Teams,Social Care - Homecare,13/07/2016,3699076,661.20,COMMUNITY CARE CONSORTIUM
Adults Services,Adult Social Care,Support with Memory and Cognition - adults (18-64),CLDS Longer Term Support Teams,Social Care - Homecare,13/07/2016,3699077,630.80,COMMUNITY CARE CONSORTIUM
Adults Services,Adult Social Care,Physical Support - adults (18-64),"Failed Care Package Conversion		",Social Care - Homecare,13/07/2016,3699078,627.00,COMMUNITY CARE CONSORTIUM
Adults Services,Adult Social Care,Support with Memory and Cognition - adults (18-64),Generic Care Packages SE Team -PS,Social Care - Homecare,13/07/2016,3699079,611.80,COMMUNITY CARE CONSORTIUM
Adults Services,Adult Social Care,Support with Memory and Cognition - adults (18-64),CLDS Longer Term Support Teams,Social Care - Homecare,13/07/2016,3699080,592.80,COMMUNITY CARE CONSORTIUM
Adults Services,Adult Social Care,Support with Memory and Cognition - adults (18-64),Generic Care Packages NW Team -PS,Social Care - Homecare,13/07/2016,3699081,532.00,COMMUNITY CARE CONSORTIUM
Adults Services,Adult Social Care,Support with Memory and Cognition - adults (18-64),Generic Care Packages NW Team -PS,Social Care - Homecare,13/07/2016,3699082,532.00,COMMUNITY CARE CONSORTIUM
Adults Services,Adult Social Care,Support with Memory and Cognition - adults (18-64),CLDS Longer Term Support Teams,Social Care - Homecare,13/07/2016,3699083,532.00,COMMUNITY CARE CONSORTIUM
Adults Services,Adult Social Care,Physical Support - adults (18-64),"Failed Care Package Conversion		",Social Care - Homecare,13/07/2016,3699084,522.50,COMMUNITY CARE CONSORTIUM
Adults Services,Adult Social Care,Support with Memory and Cognition - adults (18-64),CLDS Longer Term Support Teams,Social Care - Day Care,13/07/2016,3699128,"2,079.22",Tower Project
Adults Services,Adult Social Care,Support with Memory and Cognition - adults (18-64),CLDS Longer Term Support Teams,Social Care - Day Care,13/07/2016,3699129,"2,079.22",Tower Project
Adults Services,Adult Social Care,Support with Memory and Cognition - adults (18-64),CLDS Longer Term Support Teams,Social Care - Day Care,13/07/2016,3699130,"2,079.22",Tower Project
Adults Services,Adult Social Care,Support with Memory and Cognition - adults (18-64),CLDS Longer Term Support Teams,Social Care - Day Care,13/07/2016,3699131,"2,079.22",Tower Project
Adults Services,Adult Social Care,Support with Memory and Cognition - adults (18-64),CLDS Longer Term Support Teams,Social Care - Day Care,13/07/2016,3699132,"1,466.96",Tower Project
Adults Services,Adult Social Care,Support with Memory and Cognition - adults (18-64),CLDS Longer Term Support Teams,Social Care - Day Care,13/07/2016,3699133,"2,079.22",Tower Project
Adults Services,Adult Social Care,Support with Memory and Cognition - adults (18-64),CLDS Longer Term Support Teams,Social Care - Day Care,13/07/2016,3699134,"1,466.96",Tower Project
Adults Services,Adult Social Care,Support with Memory and Cognition - adults (18-64),CLDS Longer Term Support Teams,Social Care - Day Care,13/07/2016,3699135,"2,079.22",Tower Project
Adults Services,Adult Social Care,Support with Memory and Cognition - adults (18-64),CLDS Longer Term Support Teams,Social Care - Day Care,13/07/2016,3699136,"1,466.96",Tower Project
Adults Services,Adult Social Care,Support with Memory and Cognition - adults (18-64),CLDS Longer Term Support Teams,Social Care - Day Care,13/07/2016,3699137,533.44,Tower Project
Adults Services,Adult Social Care,Support with Memory and Cognition - adults (18-64),CLDS Longer Term Support Teams,Social Care - Day Care,13/07/2016,3699138,800.16,Tower Project
Adults Services,Adult Social Care,Support with Memory and Cognition - adults (18-64),Generic Care Packages SE Team -PS,Social Care - Day Care,13/07/2016,3699139,660.52,Tower Project
Adults Services,Adult Social Care,Support with Memory and Cognition - adults (18-64),CLDS Longer Term Support Teams,Social Care - Day Care,13/07/2016,3699140,"2,079.22",Tower Project
Adults Services,Adult Social Care,Support with Memory and Cognition - adults (18-64),CLDS Longer Term Support Teams,Social Care - Day Care,13/07/2016,3699141,"2,079.22",Tower Project
Adults Services,Adult Social Care,Support with Memory and Cognition - adults (18-64),CLDS Longer Term Support Teams,Social Care - Day Care,13/07/2016,3699142,"1,466.96",Tower Project
Adults Services,Adult Social Care,Support with Memory and Cognition - adults (18-64),CLDS Longer Term Support Teams,Social Care - Day Care,13/07/2016,3699143,"2,079.22",Tower Project
Adults Services,Adult Social Care,Support with Memory and Cognition - adults (18-64),CLDS Longer Term Support Teams,Social Care - Day Care,13/07/2016,3699144,"2,079.22",Tower Project
Adults Services,Adult Social Care,Support with Memory and Cognition - adults (18-64),CLDS Longer Term Support Teams,Social Care - Day Care,13/07/2016,3699145,"1,466.96",Tower Project
Adults Services,Adult Social Care,Support with Memory and Cognition - adults (18-64),CLDS Longer Term Support Teams,Social Care - Day Care,13/07/2016,3699146,"1,466.96",Tower Project
Adults Services,Adult Social Care,Support with Memory and Cognition - adults (18-64),CLDS Longer Term Support Teams,Social Care - Day Care,13/07/2016,3699148,"2,079.22",Tower Project
Adults Services,Adult Social Care,Support with Memory and Cognition - adults (18-64),CLDS Longer Term Support Teams,Social Care - Day Care,13/07/2016,3699149,"2,079.22",Tower Project
Adults Services,Adult Social Care,Support with Memory and Cognition - adults (18-64),CLDS Longer Term Support Teams,Social Care - Day Care,13/07/2016,3699150,"2,079.22",Tower Project
Adults Services,Adult Social Care,Support with Memory and Cognition - adults (18-64),CLDS Longer Term Support Teams,Social Care - Day Care,13/07/2016,3699151,"2,079.22",Tower Project
Adults Services,Adult Social Care,Support with Memory and Cognition - adults (18-64),CLDS Longer Term Support Teams,Social Care - Day Care,13/07/2016,3699152,"2,079.22",Tower Project
Adults Services,Adult Social Care,Support with Memory and Cognition - adults (18-64),CLDS Longer Term Support Teams,Social Care - Day Care,13/07/2016,3699154,"2,079.22",Tower Project
Adults Services,Adult Social Care,Support with Memory and Cognition - adults (18-64),CLDS Longer Term Support Teams,Social Care - Day Care,13/07/2016,3699155,"2,079.22",Tower Project
Adults Services,Adult Social Care,Support with Memory and Cognition - adults (18-64),CLDS Longer Term Support Teams,Social Care - Day Care,13/07/2016,3699156,"1,466.96",Tower Project
Adults Services,Adult Social Care,Support with Memory and Cognition - adults (18-64),CLDS Longer Term Support Teams,Social Care - Day Care,13/07/2016,3699157,"1,200.24",Tower Project
Adults Services,Adult Social Care,Support with Memory and Cognition - adults (18-64),CLDS Longer Term Support Teams,Social Care - Day Care,13/07/2016,3699158,"1,266.92",Tower Project
Adults Services,Adult Social Care,Support with Memory and Cognition - adults (18-64),CLDS Longer Term Support Teams,Social Care - Day Care,13/07/2016,3699159,"2,079.22",Tower Project
Adults Services,Adult Social Care,Support with Memory and Cognition - adults (18-64),CLDS Longer Term Support Teams,Social Care - Day Care,13/07/2016,3699160,"1,323.14",Tower Project
Adults Services,Adult Social Care,Support with Memory and Cognition - adults (18-64),CLDS Longer Term Support Teams,Social Care - Day Care,13/07/2016,3699161,"2,079.22",Tower Project
Adults Services,Adult Social Care,Support with Memory and Cognition - adults (18-64),CLDS Longer Term Support Teams,Social Care - Day Care,13/07/2016,3699163,"2,079.22",Tower Project
Adults Services,Adult Social Care,Support with Memory and Cognition - adults (18-64),CLDS Longer Term Support Teams,Social Care - Day Care,13/07/2016,3699164,"1,466.96",Tower Project
Adults Services,Adult Social Care,Support with Memory and Cognition - adults (18-64),CLDS Longer Term Support Teams,Social Care - Day Care,13/07/2016,3699165,"1,037.96",Tower Project
Adults Services,Adult Social Care,Support with Memory and Cognition - adults (18-64),CLDS Longer Term Support Teams,Social Care - Day Care,13/07/2016,3699166,"2,079.22",Tower Project
Adults Services,Adult Social Care,Support with Memory and Cognition - adults (18-64),CLDS Longer Term Support Teams,Social Care - Day Care,13/07/2016,3699167,"1,037.96",Tower Project
Adults Services,Adult Social Care,Support with Memory and Cognition - adults (18-64),CLDS Longer Term Support Teams,Social Care - Day Care,13/07/2016,3699168,"2,079.22",Tower Project
Adults Services,Adult Social Care,Support with Memory and Cognition - adults (18-64),Generic Care Packages NW Team-SMC,Social Care - Homecare,13/07/2016,3699170,524.76,MiHOMECARE LIMITED
Adults Services,Adult Social Care,Support with Memory and Cognition - adults (18-64),Generic Care Packages NW Team -PS,Social Care - Homecare,13/07/2016,3699171,"4,705.44",MiHOMECARE LIMITED
Adults Services,Adult Social Care,Support with Memory and Cognition - adults (18-64),CLDS Longer Term Support Teams,Social Care - Homecare,13/07/2016,3699172,"3,646.44",MiHOMECARE LIMITED
Adults Services,Adult Social Care,Support with Memory and Cognition - adults (18-64),CLDS Longer Term Support Teams,Social Care - Homecare,13/07/2016,3699184,768.56,MiHOMECARE LIMITED
Adults Services,Adult Social Care,Support with Memory and Cognition - adults (18-64),Generic Care Packages NW Team -PS,Social Care - Homecare,13/07/2016,3699187,931.28,MiHOMECARE LIMITED
Adults Services,Adult Social Care,Support with Memory and Cognition - adults (18-64),Generic Care Packages NW Team -PS,Social Care - Homecare,13/07/2016,3699189,898.16,MiHOMECARE LIMITED
Adults Services,Adult Social Care,Support with Memory and Cognition - adults (18-64),Generic Care Packages NE Team -PS,Social Care - Homecare,13/07/2016,3699192,561.64,MiHOMECARE LIMITED
Adults Services,Adult Social Care,Support with Memory and Cognition - adults (18-64),Generic Care Packages NE Team -PS,Social Care - Homecare,13/07/2016,3699205,"2,080.84",MiHOMECARE LIMITED
Adults Services,Adult Social Care,Support with Memory and Cognition - adults (18-64),Generic Care Packages NE Team -PS,Social Care - Home Care (Short Term),13/07/2016,3699209,"1,108.50",MiHOMECARE LIMITED
Adults Services,Adult Social Care,Support with Memory and Cognition - adults (18-64),Generic Care Packages SW Team - PS,Social Care - Respite Care,13/07/2016,3699216,639.35,H-C ONE
Adults Services,Adult Social Care,Support with Memory and Cognition - adults (18-64),Generic Care Packages NW Team -PS,Social Care - Respite Care,13/07/2016,3699217,"1,038.94",H-C ONE
Adults Services,Adult Social Care,Support with Memory and Cognition - adults (18-64),CLDS Longer Term Support Teams,Social Care - Day Care,13/07/2016,3699219,"1,166.34",GRACE EYRE FOUNDATION
Adults Services,Adult Social Care,Support with Memory and Cognition - adults (18-64),CLDS Longer Term Support Teams,Social Care - Residential Care,13/07/2016,3699220,"1,055.37",GRACE EYRE FOUNDATION
Adults Services,Adult Social Care,Support with Memory and Cognition - adults (18-64),CLDS Longer Term Support Teams,Social Care - Day Care,13/07/2016,3699222,"1,166.34",GRACE EYRE FOUNDATION
Adults Services,Adult Social Care,Support with Memory and Cognition - adults (18-64),CLDS Longer Term Support Teams,Social Care - Residential Care,13/07/2016,3699223,"1,055.37",GRACE EYRE FOUNDATION
Adults Services,Adult Social Care,Support with Memory and Cognition - adults (18-64),CLDS Longer Term Support Teams,Social Care - Residential Care,13/07/2016,3699225,"3,897.01",OUTLOOK HOUSE
Adults Services,Adult Social Care,Support with Memory and Cognition - adults (18-64),CLDS Longer Term Support Teams,Social Care - Residential Care,13/07/2016,3699226,"3,771.30",OUTLOOK HOUSE
Adults Services,Adult Social Care,Support with Memory and Cognition - adults (18-64),Generic Care Packages NE Team -PS,Social Care - Residential Care,13/07/2016,3699227,"2,382.57",MAGICARE LTD
Adults Services,Adult Social Care,Physical Support - adults (18-64),"Failed Care Package Conversion		",Social Care - Mental Health,13/07/2016,3699231,"9,928.70",St Hilda's East Community Centre
Adults Services,Adult Social Care,Physical Support - adults (18-64),"Failed Care Package Conversion		",Social Care - Prevention & Support - Block,13/07/2016,3699231,776.05,St Hilda's East Community Centre
Adults Services,Adult Social Care,Support with Memory and Cognition - adults (18-64),Generic Care Packages SE Team -PS,Social Care - Homecare,13/07/2016,3699255,644.80,SANCTUARY HOME CARE LIMITED
Adults Services,Adult Social Care,Support with Memory and Cognition - adults (18-64),Generic Care Packages SE Team -PS,Social Care - Home Care (Short Term),13/07/2016,3699259,870.48,SANCTUARY HOME CARE LIMITED
Adults Services,Adult Social Care,Support with Memory and Cognition - adults (18-64),Generic Care Packages SE Team -PS,Social Care - Homecare,13/07/2016,3699266,668.98,SANCTUARY HOME CARE LIMITED
Adults Services,Adult Social Care,Support with Memory and Cognition - adults (18-64),Generic Care Packages NE Team -PS,Social Care - Homecare,13/07/2016,3699268,507.78,SANCTUARY HOME CARE LIMITED
Adults Services,Adult Social Care,Support with Memory and Cognition - adults (18-64),Generic Care Packages NW Team -PS,Social Care - Homecare,13/07/2016,3699269,822.12,SANCTUARY HOME CARE LIMITED
Adults Services,Adult Social Care,Support with Memory and Cognition - adults (18-64),Generic Care Packages SW Team-SMC,Social Care - Homecare,13/07/2016,3699271,531.96,SANCTUARY HOME CARE LIMITED
Adults Services,Adult Social Care,Support with Memory and Cognition - adults (18-64),Generic Care Packages NW Team -PS,Social Care - Homecare,13/07/2016,3699275,"1,217.06",SANCTUARY HOME CARE LIMITED
Adults Services,Adult Social Care,Support with Memory and Cognition - adults (18-64),Generic Care Packages NW Team -PS,Social Care - Home Care (Short Term),13/07/2016,3699282,588.38,SANCTUARY HOME CARE LIMITED
Adults Services,Adult Social Care,Support with Memory and Cognition - adults (18-64),Generic Care Packages SW Team-SMC,Social Care - Homecare,13/07/2016,3699291,"1,418.56",SANCTUARY HOME CARE LIMITED
Adults Services,Adult Social Care,Support with Memory and Cognition - adults (18-64),Generic Care Packages NE Team -PS,Social Care - Home Care (Short Term),13/07/2016,3699293,660.92,SANCTUARY HOME CARE LIMITED
Adults Services,Adult Social Care,Support with Memory and Cognition - adults (18-64),Generic Care Packages NE Team -PS,Social Care - Homecare,13/07/2016,3699300,"1,325.87",SANCTUARY HOME CARE LIMITED
Adults Services,Adult Social Care,Support with Memory and Cognition - adults (18-64),Generic Care Packages NW Team -PS,Social Care - Homecare,13/07/2016,3699301,523.90,SANCTUARY HOME CARE LIMITED
Adults Services,Adult Social Care,Support with Memory and Cognition - adults (18-64),Generic Care Packages SW Team - PS,Social Care - Homecare,13/07/2016,3699304,540.02,SANCTUARY HOME CARE LIMITED
Adults Services,Adult Social Care,Support with Memory and Cognition - adults (18-64),Generic Care Packages SW Team - PS,Social Care - Homecare,13/07/2016,3699308,588.38,SANCTUARY HOME CARE LIMITED
Adults Services,Adult Social Care,Support with Memory and Cognition - adults (18-64),Generic Care Packages NW Team -PS,Social Care - Homecare,13/07/2016,3699309,"1,192.88",SANCTUARY HOME CARE LIMITED
Adults Services,Adult Social Care,Support with Memory and Cognition - adults (18-64),Generic Care Packages NW Team -PS,Social Care - Home Care (Short Term),13/07/2016,3699315,"1,373.63",Soma Healthcare Ltd
Adults Services,Adult Social Care,Support with Memory and Cognition - adults (18-64),CLDS Longer Term Support Teams,Social Care - Homecare,13/07/2016,3699316,891.00,Soma Healthcare Ltd
Adults Services,Adult Social Care,Support with Memory and Cognition - adults (18-64),Generic Care Packages NE Team -PS,Social Care - Homecare,13/07/2016,3699321,623.70,Soma Healthcare Ltd
Adults Services,Adult Social Care,Support with Memory and Cognition - adults (18-64),Generic Care Packages SW Team - PS,Social Care - Homecare,13/07/2016,3699322,"1,663.20",Soma Healthcare Ltd
Adults Services,Adult Social Care,Support with Memory and Cognition - adults (18-64),Generic Care Packages SE Team -PS,Social Care - Homecare,13/07/2016,3699323,504.90,Soma Healthcare Ltd
Adults Services,Adult Social Care,Support with Memory and Cognition - adults (18-64),Generic Care Packages NW Team -PS,Social Care - Homecare,13/07/2016,3699326,772.20,Soma Healthcare Ltd
Adults Services,Adult Social Care,Support with Memory and Cognition - adults (18-64),Generic Care Packages SW Team - PS,Social Care - Homecare,13/07/2016,3699327,"1,507.28",Soma Healthcare Ltd
Adults Services,Adult Social Care,Support with Memory and Cognition - adults (18-64),Cmht Iod / Poplar South,Social Care - Homecare,13/07/2016,3699328,564.30,Soma Healthcare Ltd
Adults Services,Adult Social Care,Support with Memory and Cognition - adults (18-64),Generic Care Packages SW Team - PS,Social Care - Homecare,13/07/2016,3699334,"1,143.45",Soma Healthcare Ltd
Adults Services,Adult Social Care,Support with Memory and Cognition - adults (18-64),Generic Care Packages SE Team -PS,Social Care - Homecare,13/07/2016,3699347,"1,715.18",Soma Healthcare Ltd
Adults Services,Adult Social Care,Support with Memory and Cognition - adults (18-64),Generic Care Packages NE Team -PS,Social Care - Homecare,13/07/2016,3699352,564.30,Soma Healthcare Ltd
Adults Services,Adult Social Care,Support with Memory and Cognition - adults (18-64),Generic Care Packages SW Team - PS,Social Care - Homecare,13/07/2016,3699356,549.45,Soma Healthcare Ltd
Adults Services,Adult Social Care,Support with Memory and Cognition - adults (18-64),Generic Care Packages SE Team -PS,Social Care - Homecare,13/07/2016,3699358,527.18,Soma Healthcare Ltd
Adults Services,Adult Social Care,Support with Memory and Cognition - adults (18-64),Generic Care Packages NE Team -PS,Social Care - Homecare,13/07/2016,3699360,705.38,Soma Healthcare Ltd
Adults Services,Adult Social Care,Support with Memory and Cognition - adults (18-64),Generic Care Packages NW Team -PS,Social Care - Homecare,13/07/2016,3699361,"1,692.90",Soma Healthcare Ltd
Adults Services,Adult Social Care,Support with Memory and Cognition - adults (18-64),Generic Care Packages NE Team -PS,Social Care - Homecare,13/07/2016,3699365,"1,433.03",Soma Healthcare Ltd
Adults Services,Adult Social Care,Support with Memory and Cognition - adults (18-64),Generic Care Packages SW Team - PS,Social Care - Homecare,13/07/2016,3699369,631.13,Soma Healthcare Ltd
Adults Services,Adult Social Care,Support with Memory and Cognition - adults (18-64),Generic Care Packages SE Team -PS,Social Care - Homecare,13/07/2016,3699374,"1,425.60",Soma Healthcare Ltd
Adults Services,Adult Social Care,Support with Memory and Cognition - adults (18-64),Generic Care Packages SE Team -PS,Social Care - Homecare,13/07/2016,3699378,542.03,Soma Healthcare Ltd
Adults Services,Adult Social Care,Support with Memory and Cognition - adults (18-64),Generic Care Packages SE Team -PS,Social Care - Homecare,13/07/2016,3699385,712.80,Soma Healthcare Ltd
Adults Services,Adult Social Care,Support with Memory and Cognition - adults (18-64),Generic Care Packages NW Team -PS,Social Care - Homecare,13/07/2016,3699387,556.88,Soma Healthcare Ltd
Adults Services,Adult Social Care,Support with Memory and Cognition - adults (18-64),Generic Care Packages NW Team -PS,Social Care - Homecare,13/07/2016,3699388,"1,826.55",Soma Healthcare Ltd
Adults Services,Adult Social Care,Support with Memory and Cognition - adults (18-64),Generic Care Packages SW Team - PS,Social Care - Home Care (Short Term),13/07/2016,3699392,534.60,Soma Healthcare Ltd
Adults Services,Adult Social Care,Support with Memory and Cognition - adults (18-64),Generic Care Packages NE Team -PS,Social Care - Homecare,13/07/2016,3699393,809.33,Soma Healthcare Ltd
Adults Services,Adult Social Care,Support with Memory and Cognition - adults (18-64),Generic Care Packages SE Team -PS,Social Care - Homecare,13/07/2016,3699394,"1,884.38",Soma Healthcare Ltd
Adults Services,Adult Social Care,Support with Memory and Cognition - adults (18-64),CLDS Longer Term Support Teams,Social Care - Homecare,13/07/2016,3699395,608.85,Soma Healthcare Ltd
Adults Services,Adult Social Care,Support with Memory and Cognition - adults (18-64),Generic Care Packages SE Team -SI,Social Care - Homecare,13/07/2016,3699396,586.58,Soma Healthcare Ltd
Adults Services,Adult Social Care,Support with Memory and Cognition - adults (18-64),Generic Care Packages NE Team -PS,Social Care - Homecare,13/07/2016,3699397,"1,039.50",Soma Healthcare Ltd
Adults Services,Adult Social Care,Support with Memory and Cognition - adults (18-64),Generic Care Packages SE Team -PS,Social Care - Homecare,13/07/2016,3699401,683.10,Soma Healthcare Ltd
Adults Services,Adult Social Care,Support with Memory and Cognition - adults (18-64),Generic Care Packages NE Team -PS,Social Care - Homecare,13/07/2016,3699417,534.60,Soma Healthcare Ltd
Adults Services,Adult Social Care,Support with Memory and Cognition - adults (18-64),Generic Care Packages SW Team - PS,Social Care - Homecare,13/07/2016,3699418,"1,143.45",Soma Healthcare Ltd
Adults Services,Adult Social Care,Support with Memory and Cognition - adults (18-64),Generic Care Packages SE Team-SMC,Social Care - Homecare,13/07/2016,3699419,928.13,Soma Healthcare Ltd
Adults Services,Adult Social Care,Support with Memory and Cognition - adults (18-64),Generic Care Packages SW Team - PS,Social Care - Homecare,13/07/2016,3699425,601.43,Soma Healthcare Ltd
Adults Services,Adult Social Care,Support with Memory and Cognition - adults (18-64),Generic Care Packages NE Team -PS,Social Care - Homecare,13/07/2016,3699434,"1,811.70",Soma Healthcare Ltd
Adults Services,Adult Social Care,Support with Memory and Cognition - adults (18-64),Generic Care Packages SE Team -PS,Social Care - Homecare,13/07/2016,3699447,527.18,Soma Healthcare Ltd
Adults Services,Adult Social Care,Support with Memory and Cognition - adults (18-64),Generic Care Packages NW Team -PS,Social Care - Homecare,13/07/2016,3699453,539.87,Soma Healthcare Ltd
Adults Services,Adult Social Care,Support with Memory and Cognition - adults (18-64),Generic Care Packages NE Team -PS,Social Care - Homecare,13/07/2016,3699454,"1,440.45",Soma Healthcare Ltd
Adults Services,Adult Social Care,Support with Memory and Cognition - adults (18-64),Generic Care Packages SW Team - PS,Social Care - Home Care (Short Term),13/07/2016,3699455,534.60,Soma Healthcare Ltd
Adults Services,Adult Social Care,Support with Memory and Cognition - adults (18-64),CLDS Longer Term Support Teams,Social Care - Prevention & Support,13/07/2016,3699463,539.55,Outward Housing
Adults Services,Adult Social Care,Physical Support - adults (18-64),"Failed Care Package Conversion		",Social Care - Prevention & Support - Block,13/07/2016,3699464,"3,320.00",Black Women's Health & Family Support
Adults Services,Leaving Care Staff,Leaving Care Staff,Leaving Care Staff,General,13/07/16,Payment Card,629.97,currys online
Adults Services,No Service Specified,No Division Specified,Capital-Minor Works (SC),Other Internal Fees - Other Internal Fees,15/07/2016,3677614,"3,895.00",Ground Engineering Ltd
Adults Services,Adult Social Care,Support with Memory and Cognition - adults (18-64),Generic Care Packages NW Team-SMC,Social Care - Day Care,15/07/2016,3683649,508.72,Peabody Trust
Adults Services,Adult Social Care,Support with Memory and Cognition - adults (18-64),Generic Care Packages NE Team -PS,Social Care - Day Care,15/07/2016,3683659,826.76,Peabody Trust
Adults Services,Adult Social Care,Support with Memory and Cognition - adults (18-64),Generic Care Packages NW Team-SMC,Social Care - Day Care,15/07/2016,3683662,638.86,Peabody Trust
Adults Services,Adult Social Care,Support with Memory and Cognition - adults (18-64),Generic Care Packages NW Team -PS,Social Care - Day Care,15/07/2016,3683677,526.12,Peabody Trust
Adults Services,Adult Social Care,Support with Memory and Cognition - adults (18-64),Generic Care Packages NW Team -PS,Social Care - Day Care,15/07/2016,3683679,826.76,Peabody Trust
Adults Services,Adult Social Care,Support with Memory and Cognition - adults (18-64),Generic Care Packages SW Team - PS,Social Care - Day Care,15/07/2016,3683680,826.76,Peabody Trust
Adults Services,Adult Social Care,Support with Memory and Cognition - adults (18-64),Generic Care Packages NW Team -PS,Social Care - Day Care,15/07/2016,3683682,509.08,Peabody Trust
Adults Services,Adult Social Care,Support with Memory and Cognition - adults (18-64),Generic Care Packages SE Team -PS,Social Care - Day Care,15/07/2016,3683683,774.74,Peabody Trust
Adults Services,Adult Social Care,Physical Support - adults (18-64),Public Health � Healthy Young Adults,Third Party Payments - Voluntary Associations,15/07/2016,3683850,"12,500.00",Open Doors (Homerton University Hospital NHS FT)
Adults Services,Adult Social Care,Sensory Support - older people (65+),"Public Health-Vanguard			",Third Party Payments - Other Establishments,15/07/2016,3683931,"1,802.70",Pinpoint Facilitation LTD
Adults Services,Adult Social Care,Physical Support - adults (18-64),Public Health � Healthy Young Adults,Third Party Payments - Other Establishments,15/07/2016,3684865,"31,608.78",Guy's & St Thomas' NHS Foundation Trust
Adults Services,Adult Social Care,Support with Memory and Cognition - adults (18-64),CLDS Longer Term Support Teams,Social Care - Supported Living,15/07/2016,3688283,"3,000.00",BAXTER HOUSE SUPPORTED LIVING PROJECT
Adults Services,Adult Social Care,Support with Memory and Cognition - adults (18-64),Generic Care Packages SE Team -PS,Social Care - Residential Care,15/07/2016,3692629,"1,516.67",Millard House Care Ltd
Adults Services,Adult Social Care,Support with Memory and Cognition - adults (18-64),Generic Care Packages NW Team -PS,Social Care - Home Care (Short Term),15/07/2016,3693067,992.25,Supporting Care
Adults Services,Adult Social Care,Physical Support - adults (18-64),Public Health � Healthy Communities,Third Party Payments - Voluntary Associations,15/07/2016,3697774,"6,250.00",Somali Integration Team
Adults Services,Adult Social Care,Support with Memory and Cognition - adults (18-64),CLDS Longer Term Support Teams,Social Care - Day Care,15/07/2016,3699055,918.00,THE GARWOOD FOUNDATION
Adults Services,Adult Social Care,Support with Memory and Cognition - adults (18-64),CLDS Longer Term Support Teams,Social Care - Day Care,15/07/2016,3699793,728.00,THE MAP SQUAD
Adults Services,Adult Social Care,Support with Memory and Cognition - adults (18-64),"Generic Care Packages SE Team-MH								",Social Care - Residential Care,15/07/2016,3699796,"3,401.29",J M CAREHOMES LIMITED
Adults Services,Adult Social Care,Support with Memory and Cognition - adults (18-64),CLDS Longer Term Support Teams,Social Care - Day Care,15/07/2016,3699797,"1,410.00",The Bromley by Bow Centre
Adults Services,Adult Social Care,Support with Memory and Cognition - adults (18-64),CLDS Longer Term Support Teams,Social Care - Day Care,15/07/2016,3699798,"1,810.00",The Bromley by Bow Centre
Adults Services,Adult Social Care,Support with Memory and Cognition - adults (18-64),Generic Care Packages SE Team -PS,Social Care - Day Care,15/07/2016,3699799,575.00,The Bromley by Bow Centre
Adults Services,Adult Social Care,Support with Memory and Cognition - adults (18-64),CLDS Longer Term Support Teams,Social Care - Day Care,15/07/2016,3699800,"1,065.00",The Bromley by Bow Centre
Adults Services,Adult Social Care,Support with Memory and Cognition - adults (18-64),CLDS Longer Term Support Teams,Social Care - Day Care,15/07/2016,3699802,840.00,The Bromley by Bow Centre
Adults Services,Adult Social Care,Support with Memory and Cognition - adults (18-64),CLDS Longer Term Support Teams,Social Care - Day Care,15/07/2016,3699804,"1,595.00",The Bromley by Bow Centre
Adults Services,Adult Social Care,Support with Memory and Cognition - adults (18-64),CLDS Longer Term Support Teams,Social Care - Day Care,15/07/2016,3699806,909.40,The Bromley by Bow Centre
Adults Services,Adult Social Care,Support with Memory and Cognition - adults (18-64),CLDS Longer Term Support Teams,Social Care - Day Care,15/07/2016,3699807,840.00,The Bromley by Bow Centre
Adults Services,Adult Social Care,Support with Memory and Cognition - adults (18-64),CLDS Longer Term Support Teams,Social Care - Day Care,15/07/2016,3699809,710.00,The Bromley by Bow Centre
Adults Services,Adult Social Care,Support with Memory and Cognition - adults (18-64),CLDS Longer Term Support Teams,Social Care - Day Care,15/07/2016,3699812,560.00,The Bromley by Bow Centre
Adults Services,Adult Social Care,Support with Memory and Cognition - adults (18-64),CLDS Longer Term Support Teams,Social Care - Day Care,15/07/2016,3699813,"1,530.00",The Bromley by Bow Centre
Adults Services,Adult Social Care,Support with Memory and Cognition - adults (18-64),CLDS Longer Term Support Teams,Social Care - Day Care,15/07/2016,3699814,630.00,The Bromley by Bow Centre
Adults Services,Adult Social Care,Support with Memory and Cognition - adults (18-64),CLDS Longer Term Support Teams,Social Care - Day Care,15/07/2016,3699817,630.00,The Bromley by Bow Centre
Adults Services,Adult Social Care,Support with Memory and Cognition - adults (18-64),Generic Care Packages SE Team -PS,Social Care - Nursing Care,15/07/2016,3699818,"5,270.48",Select Primecare
Adults Services,Adult Social Care,Support with Memory and Cognition - adults (18-64),Cmht For Older People,Social Care - Supported Living,15/07/2016,3699819,-718.55,J M CAREHOMES LIMITED
Adults Services,Adult Social Care,Support with Memory and Cognition - adults (18-64),Generic Care Packages SE Team -PS,Social Care - Day Care,15/07/2016,3699821,531.36,HEADWAY EAST LONDON
Adults Services,Adult Social Care,Support with Memory and Cognition - adults (18-64),Cmht For Older People,Social Care - Supported Living,15/07/2016,3699822,-742.49,J M CAREHOMES LIMITED
Adults Services,Adult Social Care,Support with Memory and Cognition - adults (18-64),Cmht For Older People,Social Care - Supported Living,15/07/2016,3699823,"1,762.57",J M CAREHOMES LIMITED
Adults Services,Adult Social Care,Support with Memory and Cognition - adults (18-64),Generic Care Packages SE Team -PS,Social Care - Homecare,15/07/2016,3699825,662.06,ATHLONE CARE LTD
Adults Services,Adult Social Care,Support with Memory and Cognition - adults (18-64),Generic Care Packages SE Team -PS,Social Care - Homecare,15/07/2016,3699829,655.02,ATHLONE CARE LTD
Adults Services,Adult Social Care,Support with Memory and Cognition - adults (18-64),Generic Care Packages NW Team -PS,Social Care - Prevention & Support,15/07/2016,3699832,"1,820.00",City Inn Express Limited
Adults Services,Adult Social Care,Support with Memory and Cognition - adults (18-64),Generic Care Packages SE Team -AS,Social Care - Prevention & Support,15/07/2016,3699833,"1,820.00",City Inn Express Limited
Adults Services,Adult Social Care,Support with Memory and Cognition - adults (18-64),Generic Care Packages SE Team -PS,Social Care - Homecare,15/07/2016,3699839,734.40,Mantra Recruitment
Adults Services,Adult Social Care,Support with Memory and Cognition - adults (18-64),Generic Care Packages SE Team -PS,Social Care - Homecare,15/07/2016,3699874,714.00,Mantra Recruitment
Adults Services,Adult Social Care,Support with Memory and Cognition - adults (18-64),Generic Care Packages SW Team - PS,Social Care - Homecare,15/07/2016,3699884,706.69,Mantra Recruitment
Adults Services,Adult Social Care,Support with Memory and Cognition - adults (18-64),Generic Care Packages NW Team -PS,Social Care - Homecare,15/07/2016,3699907,"1,211.25",Mantra Recruitment
Adults Services,Adult Social Care,Support with Memory and Cognition - adults (18-64),Generic Care Packages NW Team -PS,Social Care - Homecare,15/07/2016,3699909,516.38,Mantra Recruitment
Adults Services,Adult Social Care,Support with Memory and Cognition - adults (18-64),Generic Care Packages SE Team -PS,Social Care - Homecare,15/07/2016,3699934,510.00,Mantra Recruitment
Adults Services,Adult Social Care,Support with Memory and Cognition - adults (18-64),Generic Care Packages SW Team - PS,Social Care - Homecare,15/07/2016,3699965,700.31,Mantra Recruitment
Adults Services,Adult Social Care,Support with Memory and Cognition - adults (18-64),Generic Care Packages NW Team -PS,Social Care - Homecare,15/07/2016,3699976,"1,211.25",Mantra Recruitment
Adults Services,Adult Social Care,Support with Memory and Cognition - adults (18-64),Generic Care Packages NW Team -PS,Social Care - Homecare,15/07/2016,3699977,516.38,Mantra Recruitment
Adults Services,Adult Social Care,Support with Memory and Cognition - adults (18-64),Generic Care Packages SE Team -PS,Social Care - Homecare,15/07/2016,3699991,510.00,Mantra Recruitment
Adults Services,Adult Social Care,Support with Memory and Cognition - adults (18-64),Generic Care Packages SE Team -PS,Social Care - Homecare,15/07/2016,3699998,586.50,Mantra Recruitment
Adults Services,Adult Social Care,Support with Memory and Cognition - adults (18-64),Generic Care Packages SE Team -PS,Social Care - Homecare,15/07/2016,3700013,714.00,Mantra Recruitment
Adults Services,Adult Social Care,Support with Memory and Cognition - adults (18-64),Generic Care Packages SW Team - PS,Social Care - Homecare,15/07/2016,3700017,861.13,Mantra Recruitment
Adults Services,Adult Social Care,Support with Memory and Cognition - adults (18-64),Generic Care Packages NW Team -PS,Social Care - Homecare,15/07/2016,3700040,"1,224.00",Mantra Recruitment
Adults Services,Adult Social Care,Support with Memory and Cognition - adults (18-64),Generic Care Packages NE Team -PS,Social Care - Homecare,15/07/2016,3700079,529.13,Mantra Recruitment
Adults Services,Adult Social Care,Support with Memory and Cognition - adults (18-64),Generic Care Packages NE Team -PS,Social Care - Direct Payments,15/07/2016,3700111,"-1,207.44",DAVID HOWARD LTD CLIENT ACCOUNT
Adults Services,Adult Social Care,Support with Memory and Cognition - adults (18-64),Generic Care Packages SE Team -PS,Social Care - Direct Payments,15/07/2016,3700112,"1,440.10",DAVID HOWARD LTD CLIENT ACCOUNT
Adults Services,Adult Social Care,Physical Support - adults (18-64),"Failed Care Package Conversion		",Social Care - Others,15/07/2016,3700113,"10,880.88",DAVID HOWARD LTD CLIENT ACCOUNT
Adults Services,Adult Social Care,Physical Support - adults (18-64),"Failed Care Package Conversion		",Social Care - Others,15/07/2016,3700117,507.50,SEVACARE UK LTD
Adults Services,Adult Social Care,Physical Support - adults (18-64),"Failed Care Package Conversion		",Social Care - Others,15/07/2016,3700131,"1,624.00",SEVACARE UK LTD
Adults Services,Adult Social Care,Support with Memory and Cognition - adults (18-64),Generic Care Packages NW Team -PS,Social Care - Homecare,15/07/2016,3700146,560.50,SEVACARE UK LTD
Adults Services,Adult Social Care,Support with Memory and Cognition - adults (18-64),Generic Care Packages NW Team -PS,Social Care - Home Care (Short Term),15/07/2016,3700152,"1,829.00",SEVACARE UK LTD
Adults Services,Adult Social Care,Support with Memory and Cognition - adults (18-64),Generic Care Packages NE Team -PS,Social Care - Home Care (Short Term),15/07/2016,3700157,929.25,SEVACARE UK LTD
Adults Services,Adult Social Care,Support with Memory and Cognition - adults (18-64),Cmht Bethnal Green,Social Care - Homecare,15/07/2016,3700158,896.06,SEVACARE UK LTD
Adults Services,Adult Social Care,Support with Memory and Cognition - adults (18-64),Generic Care Packages SE Team -PS,Social Care - Homecare,15/07/2016,3700167,"1,135.75",SEVACARE UK LTD
Adults Services,Adult Social Care,Support with Memory and Cognition - adults (18-64),Generic Care Packages SW Team - PS,Social Care - Homecare,15/07/2016,3700168,"1,076.75",SEVACARE UK LTD
Adults Services,Adult Social Care,Support with Memory and Cognition - adults (18-64),Generic Care Packages NW Team -PS,Social Care - Homecare,15/07/2016,3700172,"1,098.88",SEVACARE UK LTD
Adults Services,Adult Social Care,Support with Memory and Cognition - adults (18-64),Generic Care Packages SE Team -PS,Social Care - Home Care (Short Term),15/07/2016,3700173,"1,224.25",SEVACARE UK LTD
Adults Services,Adult Social Care,Support with Memory and Cognition - adults (18-64),Generic Care Packages NW Team -PS,Social Care - Homecare,15/07/2016,3700178,634.25,SEVACARE UK LTD
Adults Services,Adult Social Care,Support with Memory and Cognition - adults (18-64),Generic Care Packages SW Team - PS,Social Care - Homecare,15/07/2016,3700188,"1,239.00",SEVACARE UK LTD
Adults Services,Adult Social Care,Support with Memory and Cognition - adults (18-64),Generic Care Packages SE Team -PS,Social Care - Homecare,15/07/2016,3700189,"1,003.00",SEVACARE UK LTD
Adults Services,Adult Social Care,Support with Memory and Cognition - adults (18-64),Generic Care Packages NE Team -PS,Social Care - Homecare,15/07/2016,3700192,"1,091.50",SEVACARE UK LTD
Adults Services,Adult Social Care,Support with Memory and Cognition - adults (18-64),Generic Care Packages NE Team -PS,Social Care - Home Care (Short Term),15/07/2016,3700196,523.63,SEVACARE UK LTD
Adults Services,Adult Social Care,Support with Memory and Cognition - adults (18-64),Generic Care Packages NE Team -PS,Social Care - Home Care (Short Term),15/07/2016,3700207,"1,150.50",SEVACARE UK LTD
Adults Services,Adult Social Care,Support with Memory and Cognition - adults (18-64),Generic Care Packages NW Team -PS,Social Care - Home Care (Short Term),15/07/2016,3700210,590.00,SEVACARE UK LTD
Adults Services,Adult Social Care,Support with Memory and Cognition - adults (18-64),Generic Care Packages NW Team -PS,Social Care - Homecare,15/07/2016,3700216,575.25,SEVACARE UK LTD
Adults Services,Adult Social Care,Support with Memory and Cognition - adults (18-64),Generic Care Packages NW Team -PS,Social Care - Homecare,15/07/2016,3700219,826.00,SEVACARE UK LTD
Adults Services,Adult Social Care,Support with Memory and Cognition - adults (18-64),Generic Care Packages SE Team -PS,Social Care - Homecare,15/07/2016,3700230,523.63,SEVACARE UK LTD
Adults Services,Adult Social Care,Support with Memory and Cognition - adults (18-64),Generic Care Packages SW Team - PS,Social Care - Homecare,15/07/2016,3700236,899.75,SEVACARE UK LTD
Adults Services,Adult Social Care,Support with Memory and Cognition - adults (18-64),Generic Care Packages NW Team -PS,Social Care - Homecare,15/07/2016,3700243,516.25,SEVACARE UK LTD
Adults Services,Adult Social Care,Support with Memory and Cognition - adults (18-64),Generic Care Packages SW Team - PS,Social Care - Homecare,15/07/2016,3700251,"1,644.63",SEVACARE UK LTD
Adults Services,Adult Social Care,Support with Memory and Cognition - adults (18-64),Generic Care Packages SE Team -PS,Social Care - Home Care (Short Term),15/07/2016,3700257,929.25,SEVACARE UK LTD
Adults Services,Adult Social Care,Support with Memory and Cognition - adults (18-64),Generic Care Packages SW Team - PS,Social Care - Homecare,15/07/2016,3700258,531.00,SEVACARE UK LTD
Adults Services,Adult Social Care,Physical Support - adults (18-64),"Failed Care Package Conversion		",Social Care - Homecare,15/07/2016,3700283,538.38,SEVACARE UK LTD
Adults Services,Adult Social Care,Support with Memory and Cognition - adults (18-64),Cmht Iod / Poplar South,Social Care - Homecare,15/07/2016,3700293,826.00,SEVACARE UK LTD
Adults Services,Adult Social Care,Support with Memory and Cognition - adults (18-64),Generic Care Packages NE Team -PS,Social Care - Homecare,15/07/2016,3700294,531.00,SEVACARE UK LTD
Adults Services,Adult Social Care,Support with Memory and Cognition - adults (18-64),Generic Care Packages SE Team -PS,Social Care - Home Care (Short Term),15/07/2016,3700295,999.31,SEVACARE UK LTD
Adults Services,Adult Social Care,Support with Memory and Cognition - adults (18-64),Generic Care Packages SE Team -PS,Social Care - Homecare,15/07/2016,3700297,575.25,SEVACARE UK LTD
Adults Services,Adult Social Care,Support with Memory and Cognition - adults (18-64),Generic Care Packages NE Team -PS,Social Care - Homecare,15/07/2016,3700299,582.63,SEVACARE UK LTD
Adults Services,Adult Social Care,Support with Memory and Cognition - adults (18-64),Generic Care Packages SW Team - PS,Social Care - Homecare,15/07/2016,3700303,535.80,LONDON COMMUNITY HOMECARE LTD
Adults Services,Adult Social Care,Physical Support - adults (18-64),Strategic Commissioning,Social Care - Homecare,15/07/2016,3700304,"1,962.39",REDSPOT HOMECARE (CONTRACTS) LTD
Adults Services,Adult Social Care,Support with Memory and Cognition - adults (18-64),Generic Care Packages NE Team -PS,Social Care - Homecare,15/07/2016,3700305,894.20,REDSPOT HOMECARE (CONTRACTS) LTD
Adults Services,Adult Social Care,Support with Memory and Cognition - adults (18-64),Generic Care Packages SW Team-SMC,Social Care - Homecare,15/07/2016,3700306,913.93,REDSPOT HOMECARE (CONTRACTS) LTD
Adults Services,Adult Social Care,Support with Memory and Cognition - adults (18-64),Generic Care Packages SE Team -PS,Social Care - Homecare,15/07/2016,3700314,881.05,REDSPOT HOMECARE (CONTRACTS) LTD
Adults Services,Adult Social Care,Support with Memory and Cognition - adults (18-64),Generic Care Packages SW Team - PS,Social Care - Homecare,15/07/2016,3700316,552.30,REDSPOT HOMECARE (CONTRACTS) LTD
Adults Services,Adult Social Care,Support with Memory and Cognition - adults (18-64),Generic Care Packages NE Team -PS,Social Care - Homecare,15/07/2016,3700323,"1,130.90",REDSPOT HOMECARE (CONTRACTS) LTD
Adults Services,Adult Social Care,Support with Memory and Cognition - adults (18-64),CLDS Longer Term Support Teams,Social Care - Homecare,15/07/2016,3700340,561.64,MiHOMECARE LIMITED
Adults Services,Adult Social Care,Support with Memory and Cognition - adults (18-64),Generic Care Packages NW Team -PS,Social Care - Homecare,15/07/2016,3700345,554.32,MiHOMECARE LIMITED
Adults Services,Adult Social Care,Support with Memory and Cognition - adults (18-64),Generic Care Packages SW Team - PS,Social Care - Nursing Care,15/07/2016,3700348,"2,392.36",HAWKINGE HOUSE LTD
Adults Services,Adult Social Care,Support with Memory and Cognition - adults (18-64),Generic Care Packages NW Team -PS,Social Care - Day Care,15/07/2016,3700354,538.95,St Hilda's East Community Centre
Adults Services,Adult Social Care,Support with Memory and Cognition - adults (18-64),Generic Care Packages NW Team -PS,Social Care - Day Care,15/07/2016,3700358,"1,649.21",Norwood Ravenswood Services LTD
Adults Services,Adult Social Care,Support with Memory and Cognition - adults (18-64),CLDS Longer Term Support Teams,Social Care - Residential Care,15/07/2016,3700359,"3,673.90",Norwood Ravenswood Services LTD
Adults Services,Adult Social Care,Support with Memory and Cognition - adults (18-64),Generic Care Packages SE Team -PS,Social Care - Homecare,15/07/2016,3700366,"1,715.18",Soma Healthcare Ltd
Adults Services,Adult Social Care,Support with Memory and Cognition - adults (18-64),Reablement,Services - Professional Fees - Financial Services Fees,15/07/2016,3700472,"2,213.00",Care Quality Commission
Adults Services,Adult Social Care,Physical Support - adults (18-64),Public Health � Healthy Children & Adolescents,Third Party Payments - Other Establishments,18/07/2016,3683827,"395,229.75",COMPASS WELLBEING CIC
Adults Services,Adult Social Care,Physical Support - adults (18-64),"Failed Care Package Conversion		",Social Care - Others,18/07/2016,3686098,"2,135.49",SANCTUARY CARE LTD
Adults Services,No Service Specified,No Division Specified,Community Equipment Store,Contract Cleaning,18/07/2016,3686276,544.68,BES Rehab LTD
Adults Services,Adult Social Care,Physical Support - adults (18-64),"Failed Care Package Conversion		",Social Care - Others,18/07/2016,3688480,"13,500.00",University of East London
Adults Services,Adult Social Care,Physical Support - adults (18-64),"Failed Care Package Conversion		",Social Care - Learning Disabilities,18/07/2016,3688481,"7,846.86",University of East London
Adults Services,Adult Social Care,Physical Support - adults (18-64),"Failed Care Package Conversion		",Social Care - Others,18/07/2016,3688481,653.14,University of East London
Adults Services,Adult Social Care,Support with Memory and Cognition - adults (18-64),CLDS Longer Term Support Teams,Social Care - Residential Care,18/07/2016,3690396,"6,504.00",OVERLEY HALL SCHOOL LTD
Adults Services,Adult Social Care,Physical Support - adults (18-64),Mental Health Commissioning,Events & Exhibition Supplies,18/07/2016,3694189,"4,875.00",Sainsburys Business Direct
Adults Services,No Service Specified,No Division Specified,Community Equipment Store,Educational/Training Supplies - Resources,18/07/2016,3699774,674.92,Care Tech UK Ltd
Adults Services,Adult Social Care,Physical Support - adults (18-64),Public Health � Healthy 0-5 year olds,Third Party Payments - Other Establishments,18/07/2016,3700994,"591,095.00",Tower Hamlets GP Care Group CIC
Adults Services,Adult Social Care,Physical Support - adults (18-64),Mental Health Commissioning,Social Care - Prevention & Support,18/07/2016,3701117,783.03,SANCTUARY HOUSING ASSOCIATION
Adults Services,Adult Social Care,Physical Support - adults (18-64),Learning Dis Commissioning,Social Care - Residential Care,20/07/2016,3638867,"-1,650.62",Caretech Community Services Limited
Adults Services,Adult Social Care,Support with Memory and Cognition - adults (18-64),Cmht Stepney / Wapping,Social Care - Supported Living,20/07/2016,3680362,"1,153.86",THE LONDON BOROUGH OF TOWER HAMLETS
Adults Services,Adult Social Care,Support with Memory and Cognition - adults (18-64),Generic Care Packages NE Team -PS,Social Care - Nursing Care,20/07/2016,3683503,"3,321.43",Craven Park Nursing (GSG Nursing Homes Ltd)
Adults Services,Adult Social Care,Physical Support - adults (18-64),Public Health � Healthy Children & Adolescents,Third Party Payments - Other Establishments,20/07/2016,3686208,"107,499.00",Mytime Active
Adults Services,Adult Social Care,Physical Support - adults (18-64),Public Health � Healthy Middle Age & Older People.,Third Party Payments - Other Establishments,20/07/2016,3688117,"75,600.00",Queen Mary University of London
Adults Services,Adult Social Care,Physical Support - adults (18-64),Public Health � Healthy Young Adults,Third Party Payments - Other Establishments,20/07/2016,3688136,"244,578.65",Barts Health NHS Trust
Adults Services,Adult Social Care,Physical Support - adults (18-64),Public Health � Healthy Young Adults,Third Party Payments - Other Establishments,20/07/2016,3688219,"244,578.65",Barts Health NHS Trust
Adults Services,Adult Social Care,Physical Support - adults (18-64),Public Health � Healthy Young Adults,Third Party Payments - Other Establishments,20/07/2016,3688268,"244,578.65",Barts Health NHS Trust
Adults Services,Adult Social Care,Support with Memory and Cognition - adults (18-64),Generic Care Packages NE Team -SI,Social Care - Homecare,20/07/2016,3690443,676.17,POSITIVE CARE LINK
Adults Services,Adult Social Care,Physical Support - adults (18-64),Public Health � Healthy Communities,Third Party Payments - Voluntary Associations,20/07/2016,3694204,"25,380.00",Island House Community Centre
Adults Services,Adult Social Care,Physical Support - adults (18-64),Public Health � Healthy Communities,Third Party Payments - Voluntary Associations,20/07/2016,3696918,"114,192.50",The Bromley by Bow Centre
Adults Services,Adult Social Care,Physical Support - adults (18-64),Public Health � Healthy Middle Age & Older People.,Payments to Private Contractors - Other Contractors,20/07/2016,3697015,724.16,Redacted Section  40 FOI Act
Adults Services,No Service Specified,No Division Specified,Capital-Minor Works (SC),Building Works - Main Works,20/07/2016,3697358,"5,600.00",Pinnacle ESP Ltd
Adults Services,Adult Social Care,Support with Memory and Cognition - adults (18-64),Generic Care Packages SW Team - PS,Social Care - Direct Payments,20/07/2016,3698992,-624.92,D D PAYROLL SERVICES
Adults Services,Adult Social Care,Support with Memory and Cognition - adults (18-64),Generic Care Packages SW Team - PS,Social Care - Direct Payments,20/07/2016,3698993,545.64,D D PAYROLL SERVICES
Adults Services,Adult Social Care,Physical Support - adults (18-64),"Failed Care Package Conversion		",Social Care - Learning Disabilities,20/07/2016,3699232,"2,833.35",POhWER
Adults Services,Adult Social Care,Physical Support - adults (18-64),"Failed Care Package Conversion		",Social Care - Mental Health,20/07/2016,3699232,"20,916.65",POhWER
Adults Services,Adult Social Care,Physical Support - adults (18-64),Public Health � Healthy Young Adults,Third Party Payments - Other Establishments,20/07/2016,3699695,"28,522.16",Central and NW London NHS Foundation
Adults Services,Adult Social Care,Physical Support - adults (18-64),"Failed Care Package Conversion		",Social Care - Learning Disabilities,20/07/2016,3701565,"53,453.38",The Camden Society
Adults Services,Adult Social Care,Support with Memory and Cognition - adults (18-64),CLDS Longer Term Support Teams,Social Care - Day Care,20/07/2016,3701567,"2,115.00",VIBRANCE
Adults Services,Adult Social Care,Support with Memory and Cognition - adults (18-64),CLDS Longer Term Support Teams,Social Care - Day Care,20/07/2016,3701568,846.00,VIBRANCE
Adults Services,Adult Social Care,Support with Memory and Cognition - adults (18-64),CLDS Longer Term Support Teams,Social Care - Day Care,20/07/2016,3701570,"2,679.00",VIBRANCE
Adults Services,Adult Social Care,Support with Memory and Cognition - adults (18-64),CLDS Longer Term Support Teams,Social Care - Day Care,20/07/2016,3701571,"2,467.50",VIBRANCE
Adults Services,Adult Social Care,Support with Memory and Cognition - adults (18-64),CLDS Longer Term Support Teams,Social Care - Day Care,20/07/2016,3701572,"3,525.00",VIBRANCE
Adults Services,Adult Social Care,Support with Memory and Cognition - adults (18-64),CLDS Longer Term Support Teams,Social Care - Day Care,20/07/2016,3701573,"3,525.00",VIBRANCE
Adults Services,Adult Social Care,Support with Memory and Cognition - adults (18-64),CLDS Longer Term Support Teams,Social Care - Day Care,20/07/2016,3701574,"3,525.00",VIBRANCE
Adults Services,Adult Social Care,Support with Memory and Cognition - adults (18-64),CLDS Longer Term Support Teams,Social Care - Day Care,20/07/2016,3701575,"3,525.00",VIBRANCE
Adults Services,Adult Social Care,Support with Memory and Cognition - adults (18-64),CLDS Longer Term Support Teams,Social Care - Day Care,20/07/2016,3701576,682.00,VIBRANCE
Adults Services,Adult Social Care,Support with Memory and Cognition - adults (18-64),CLDS Longer Term Support Teams,Social Care - Day Care,20/07/2016,3701577,"3,243.00",VIBRANCE
Adults Services,Adult Social Care,Support with Memory and Cognition - adults (18-64),CLDS Longer Term Support Teams,Social Care - Day Care,20/07/2016,3701578,"1,426.00",VIBRANCE
Adults Services,Adult Social Care,Support with Memory and Cognition - adults (18-64),CLDS Longer Term Support Teams,Social Care - Day Care,20/07/2016,3701579,"1,178.00",VIBRANCE
Adults Services,Adult Social Care,Support with Memory and Cognition - adults (18-64),CLDS Longer Term Support Teams,Social Care - Day Care,20/07/2016,3701580,"1,426.00",VIBRANCE
Adults Services,Adult Social Care,Support with Memory and Cognition - adults (18-64),CLDS Longer Term Support Teams,Social Care - Day Care,20/07/2016,3701582,"3,243.00",VIBRANCE
Adults Services,Adult Social Care,Support with Memory and Cognition - adults (18-64),CLDS Longer Term Support Teams,Social Care - Day Care,20/07/2016,3701583,"1,950.00",VIBRANCE
Adults Services,Adult Social Care,Support with Memory and Cognition - adults (18-64),CLDS Longer Term Support Teams,Social Care - Day Care,20/07/2016,3701584,"1,906.00",VIBRANCE
Adults Services,Adult Social Care,Support with Memory and Cognition - adults (18-64),CLDS Longer Term Support Teams,Social Care - Day Care,20/07/2016,3701585,"1,426.00",VIBRANCE
Adults Services,Adult Social Care,Support with Memory and Cognition - adults (18-64),CLDS Longer Term Support Teams,Social Care - Day Care,20/07/2016,3701586,930.00,VIBRANCE
Adults Services,Adult Social Care,Support with Memory and Cognition - adults (18-64),CLDS Longer Term Support Teams,Social Care - Day Care,20/07/2016,3701587,"1,426.00",VIBRANCE
Adults Services,Adult Social Care,Support with Memory and Cognition - adults (18-64),CLDS Longer Term Support Teams,Social Care - Day Care,20/07/2016,3701588,"1,821.00",VIBRANCE
Adults Services,Adult Social Care,Support with Memory and Cognition - adults (18-64),CLDS Longer Term Support Teams,Social Care - Day Care,20/07/2016,3701589,"1,240.00",VIBRANCE
Adults Services,Adult Social Care,Support with Memory and Cognition - adults (18-64),CLDS Longer Term Support Teams,Social Care - Day Care,20/07/2016,3701590,868.00,VIBRANCE
Adults Services,Adult Social Care,Support with Memory and Cognition - adults (18-64),CLDS Longer Term Support Teams,Social Care - Day Care,20/07/2016,3701591,"1,426.00",VIBRANCE
Adults Services,Adult Social Care,Support with Memory and Cognition - adults (18-64),CLDS Longer Term Support Teams,Social Care - Day Care,20/07/2016,3701592,"2,018.50",VIBRANCE
Adults Services,Adult Social Care,Support with Memory and Cognition - adults (18-64),CLDS Longer Term Support Teams,Social Care - Day Care,20/07/2016,3701594,"1,505.00",VIBRANCE
Adults Services,Adult Social Care,Support with Memory and Cognition - adults (18-64),CLDS Longer Term Support Teams,Social Care - Day Care,20/07/2016,3701595,930.00,VIBRANCE
Adults Services,Adult Social Care,Support with Memory and Cognition - adults (18-64),CLDS Longer Term Support Teams,Social Care - Day Care,20/07/2016,3701596,"1,426.00",VIBRANCE
Adults Services,Adult Social Care,Support with Memory and Cognition - adults (18-64),CLDS Longer Term Support Teams,Social Care - Day Care,20/07/2016,3701597,"1,502.50",VIBRANCE
Adults Services,Adult Social Care,Support with Memory and Cognition - adults (18-64),CLDS Longer Term Support Teams,Social Care - Day Care,20/07/2016,3701598,"1,426.00",VIBRANCE
Adults Services,Adult Social Care,Support with Memory and Cognition - adults (18-64),CLDS Longer Term Support Teams,Social Care - Day Care,20/07/2016,3701599,"2,115.00",VIBRANCE
Adults Services,Adult Social Care,Support with Memory and Cognition - adults (18-64),CLDS Longer Term Support Teams,Social Care - Day Care,20/07/2016,3701600,"1,128.00",VIBRANCE
Adults Services,Adult Social Care,Support with Memory and Cognition - adults (18-64),CLDS Longer Term Support Teams,Social Care - Residential Care,20/07/2016,3701601,"13,627.92",The National Star College
Adults Services,Adult Social Care,Support with Memory and Cognition - adults (18-64),CLDS Longer Term Support Teams,Social Care - Supported Living,20/07/2016,3701604,"3,428.58",BAXTER HOUSE SUPPORTED LIVING PROJECT
Adults Services,Adult Social Care,Physical Support - adults (18-64),"Failed Care Package Conversion		",Social Care - Learning Disabilities,20/07/2016,3701605,"25,796.49",MENCAP
Adults Services,Adult Social Care,Physical Support - adults (18-64),"Failed Care Package Conversion		",Social Care - Mental Health,20/07/2016,3701606,"16,200.00",Mind in Tower Hamlets and Newham
Adults Services,Adult Social Care,Support with Memory and Cognition - adults (18-64),Generic Care Packages NE Team -PS,Social Care - Residential Care,20/07/2016,3701611,"9,222.41",CHRISTCHURCH COURT
Adults Services,Adult Social Care,Support with Memory and Cognition - adults (18-64),CLDS Longer Term Support Teams,Social Care - Day Care,20/07/2016,3701614,"2,720.00",ST MARKS DAY SERVICE
Adults Services,Adult Social Care,Support with Memory and Cognition - adults (18-64),CLDS Longer Term Support Teams,Social Care - Residential Care,20/07/2016,3701615,"6,428.70",INDEPENDENCE HOMES LTD
Adults Services,Adult Social Care,Support with Memory and Cognition - adults (18-64),Generic Care Packages SE Team -PS,Social Care - Homecare,20/07/2016,3701641,714.00,Mantra Recruitment
Adults Services,Adult Social Care,Support with Memory and Cognition - adults (18-64),CLDS Longer Term Support Teams,Social Care - Homecare,20/07/2016,3701678,"1,794.99",MEARS CARE LTD
Adults Services,Adult Social Care,Support with Memory and Cognition - adults (18-64),CLDS Longer Term Support Teams,Social Care - Homecare,20/07/2016,3701681,"1,743.33",MEARS CARE LTD
Adults Services,Adult Social Care,Support with Memory and Cognition - adults (18-64),CLDS Longer Term Support Teams,Social Care - Homecare,20/07/2016,3701682,"2,673.60",MEARS CARE LTD
Adults Services,Adult Social Care,Support with Memory and Cognition - adults (18-64),Generic Care Packages SW Team - PS,Social Care - Residential Care,20/07/2016,3701685,"2,764.29",QUANTUM CARE LTD
Adults Services,Adult Social Care,Support with Memory and Cognition - adults (18-64),CLDS Longer Term Support Teams,Social Care - Homecare,20/07/2016,3701686,"2,599.90",MEARS CARE LTD
Adults Services,Adult Social Care,Support with Memory and Cognition - adults (18-64),CLDS Longer Term Support Teams,Social Care - Residential Care,20/07/2016,3701687,"9,200.00",Coppice Care Burgess Hill LLP
Adults Services,Adult Social Care,Support with Memory and Cognition - adults (18-64),Generic Care Packages NW Team -PS,Social Care - Homecare,20/07/2016,3701695,"1,341.22",FOCUS CARE LINK LTD
Adults Services,Adult Social Care,Support with Memory and Cognition - adults (18-64),Generic Care Packages SW Team - PS,Social Care - Homecare,20/07/2016,3701697,519.72,FOCUS CARE LINK LTD
Adults Services,Adult Social Care,Support with Memory and Cognition - adults (18-64),Generic Care Packages SW Team - PS,Social Care - Homecare,20/07/2016,3701704,617.80,FOCUS CARE LINK LTD
Adults Services,Adult Social Care,Support with Memory and Cognition - adults (18-64),Generic Care Packages NE Team -PS,Social Care - Homecare,20/07/2016,3701706,888.52,FOCUS CARE LINK LTD
Adults Services,Adult Social Care,Support with Memory and Cognition - adults (18-64),Generic Care Packages SW Team - PS,Social Care - Homecare,20/07/2016,3701708,541.68,FOCUS CARE LINK LTD
Adults Services,Adult Social Care,Support with Memory and Cognition - adults (18-64),Cmht Bow / Poplar North,Social Care - Prevention & Support,20/07/2016,3701709,"1,750.00",OLD FRIEND HOTEL
Adults Services,Adult Social Care,Support with Memory and Cognition - adults (18-64),Generic Care Packages NE Team -PS,Social Care - Direct Payments,20/07/2016,3701725,"1,476.97",DAVID HOWARD LTD CLIENT ACCOUNT
Adults Services,Adult Social Care,Support with Memory and Cognition - adults (18-64),Generic Care Packages SE Team -PS,Social Care - Direct Payments,20/07/2016,3701732,909.45,DAVID HOWARD LTD CLIENT ACCOUNT
Adults Services,Adult Social Care,Support with Memory and Cognition - adults (18-64),Generic Care Packages SE Team -PS,Social Care - Direct Payments,20/07/2016,3701740,"3,086.01",DAVID HOWARD LTD CLIENT ACCOUNT
Adults Services,Adult Social Care,Support with Memory and Cognition - adults (18-64),Generic Care Packages NW Team -PS,Social Care - Direct Payments,20/07/2016,3701742,694.00,Soma Healthcare Ltd
Adults Services,Adult Social Care,Support with Memory and Cognition - adults (18-64),Generic Care Packages NE Team -PS,Social Care - Direct Payments,20/07/2016,3701743,"1,287.25",DAVID HOWARD LTD CLIENT ACCOUNT
Adults Services,Adult Social Care,Support with Memory and Cognition - adults (18-64),Generic Care Packages NW Team -PS,Social Care - Direct Payments,20/07/2016,3701744,-704.97,DAVID HOWARD LTD CLIENT ACCOUNT
Adults Services,Adult Social Care,Support with Memory and Cognition - adults (18-64),Generic Care Packages SW Team - PS,Social Care - Direct Payments,20/07/2016,3701746,"2,298.34",DAVID HOWARD LTD CLIENT ACCOUNT
Adults Services,Adult Social Care,Support with Memory and Cognition - adults (18-64),Generic Care Packages SE Team -PS,Social Care - Direct Payments,20/07/2016,3701749,749.54,DAVID HOWARD LTD CLIENT ACCOUNT
Adults Services,Adult Social Care,Support with Memory and Cognition - adults (18-64),Generic Care Packages SW Team - PS,Social Care - Direct Payments,20/07/2016,3701751,725.13,DAVID HOWARD LTD CLIENT ACCOUNT
Adults Services,Adult Social Care,Support with Memory and Cognition - adults (18-64),Generic Care Packages NW Team -PS,Social Care - Direct Payments,20/07/2016,3701772,"6,603.00",D D PAYROLL SERVICES
Adults Services,Adult Social Care,Support with Memory and Cognition - adults (18-64),Generic Care Packages SW Team - PS,Social Care - Direct Payments,20/07/2016,3701780,"1,127.96",DAVID HOWARD LTD CLIENT ACCOUNT
Adults Services,Adult Social Care,Support with Memory and Cognition - adults (18-64),Generic Care Packages NW Team -PS,Social Care - Direct Payments,20/07/2016,3701786,"1,736.00",DAVID HOWARD LTD CLIENT ACCOUNT
Adults Services,Adult Social Care,Support with Memory and Cognition - adults (18-64),Generic Care Packages SE Team -PS,Social Care - Direct Payments,20/07/2016,3701787,"1,423.21",DAVID HOWARD LTD CLIENT ACCOUNT
Adults Services,Adult Social Care,Support with Memory and Cognition - adults (18-64),Generic Care Packages SW Team -SI,Social Care - Direct Payments,20/07/2016,3701792,"2,149.50",DAVID HOWARD LTD CLIENT ACCOUNT
Adults Services,Adult Social Care,Support with Memory and Cognition - adults (18-64),Generic Care Packages NW Team -PS,Social Care - Direct Payments,20/07/2016,3701800,648.34,DAVID HOWARD LTD CLIENT ACCOUNT
Adults Services,Adult Social Care,Support with Memory and Cognition - adults (18-64),Generic Care Packages SW Team - PS,Social Care - Direct Payments,20/07/2016,3701802,527.31,DAVID HOWARD LTD CLIENT ACCOUNT
Adults Services,Adult Social Care,Support with Memory and Cognition - adults (18-64),Generic Care Packages SE Team -PS,Social Care - Direct Payments,20/07/2016,3701807,"1,014.94",DAVID HOWARD LTD CLIENT ACCOUNT
Adults Services,Adult Social Care,Support with Memory and Cognition - adults (18-64),Generic Care Packages SE Team -SP,Social Care - Direct Payments,20/07/2016,3701809,709.63,DAVID HOWARD LTD CLIENT ACCOUNT
Adults Services,Adult Social Care,Support with Memory and Cognition - adults (18-64),Generic Care Packages NE Team -SP,Social Care - Direct Payments,20/07/2016,3701812,871.10,DAVID HOWARD LTD CLIENT ACCOUNT
Adults Services,Adult Social Care,Support with Memory and Cognition - adults (18-64),Generic Care Packages SE Team -PS,Social Care - Direct Payments,20/07/2016,3701813,535.77,D D PAYROLL SERVICES
Adults Services,Adult Social Care,Support with Memory and Cognition - adults (18-64),Generic Care Packages SE Team -PS,Social Care - Direct Payments,20/07/2016,3701815,584.17,DAVID HOWARD LTD CLIENT ACCOUNT
Adults Services,Adult Social Care,Support with Memory and Cognition - adults (18-64),Generic Care Packages NW Team -PS,Social Care - Direct Payments,20/07/2016,3701822,"2,806.83",D D PAYROLL SERVICES
Adults Services,Adult Social Care,Support with Memory and Cognition - adults (18-64),"Generic Care Packages SW Team-MH									",Social Care - Direct Payments,20/07/2016,3701830,750.60,DAVID HOWARD LTD CLIENT ACCOUNT
Adults Services,Adult Social Care,Support with Memory and Cognition - adults (18-64),Generic Care Packages SE Team-SMC,Social Care - Direct Payments,20/07/2016,3701839,"1,211.48",DAVID HOWARD LTD CLIENT ACCOUNT
Adults Services,Adult Social Care,Support with Memory and Cognition - adults (18-64),Generic Care Packages SE Team -PS,Social Care - Direct Payments,20/07/2016,3701840,808.39,DAVID HOWARD LTD CLIENT ACCOUNT
Adults Services,Adult Social Care,Support with Memory and Cognition - adults (18-64),Generic Care Packages SE Team -PS,Social Care - Direct Payments,20/07/2016,3701841,751.04,DAVID HOWARD LTD CLIENT ACCOUNT
Adults Services,Adult Social Care,Support with Memory and Cognition - adults (18-64),Cmht Iod / Poplar South,Social Care - Direct Payments,20/07/2016,3701842,663.58,D D PAYROLL SERVICES
Adults Services,Adult Social Care,Support with Memory and Cognition - adults (18-64),Generic Care Packages SW Team - PS,Social Care - Direct Payments,20/07/2016,3701844,542.50,DAVID HOWARD LTD CLIENT ACCOUNT
Adults Services,Adult Social Care,Support with Memory and Cognition - adults (18-64),Generic Care Packages SE Team -PS,Social Care - Direct Payments,20/07/2016,3701845,851.13,DAVID HOWARD LTD CLIENT ACCOUNT
Adults Services,Adult Social Care,Support with Memory and Cognition - adults (18-64),Generic Care Packages NE Team -PS,Social Care - Direct Payments,20/07/2016,3701847,814.90,D D PAYROLL SERVICES
Adults Services,Adult Social Care,Support with Memory and Cognition - adults (18-64),Generic Care Packages SW Team - PS,Social Care - Direct Payments,20/07/2016,3701859,699.98,DAVID HOWARD LTD CLIENT ACCOUNT
Adults Services,Adult Social Care,Support with Memory and Cognition - adults (18-64),Generic Care Packages SE Team -PS,Social Care - Direct Payments,20/07/2016,3701860,612.60,DAVID HOWARD LTD CLIENT ACCOUNT
Adults Services,Adult Social Care,Support with Memory and Cognition - adults (18-64),Generic Care Packages NE Team -PS,Social Care - Direct Payments,20/07/2016,3701862,500.65,DAVID HOWARD LTD CLIENT ACCOUNT
Adults Services,Adult Social Care,Support with Memory and Cognition - adults (18-64),Generic Care Packages SE Team -PS,Social Care - Direct Payments,20/07/2016,3701863,642.36,DAVID HOWARD LTD CLIENT ACCOUNT
Adults Services,Adult Social Care,Support with Memory and Cognition - adults (18-64),Generic Care Packages SE Team -PS,Social Care - Direct Payments,20/07/2016,3701865,"1,183.27",DAVID HOWARD LTD CLIENT ACCOUNT
Adults Services,Adult Social Care,Support with Memory and Cognition - adults (18-64),Generic Care Packages SE Team -PS,Social Care - Direct Payments,20/07/2016,3701867,755.16,D D PAYROLL SERVICES
Adults Services,Adult Social Care,Support with Memory and Cognition - adults (18-64),Generic Care Packages NW Team -PS,Social Care - Direct Payments,20/07/2016,3701869,580.85,DAVID HOWARD LTD CLIENT ACCOUNT
Adults Services,Adult Social Care,Support with Memory and Cognition - adults (18-64),Generic Care Packages NE Team -PS,Social Care - Direct Payments,20/07/2016,3701870,"1,275.65",D D PAYROLL SERVICES
Adults Services,Adult Social Care,Support with Memory and Cognition - adults (18-64),Generic Care Packages SE Team -PS,Social Care - Direct Payments,20/07/2016,3701873,517.08,D D PAYROLL SERVICES
Adults Services,Adult Social Care,Support with Memory and Cognition - adults (18-64),Generic Care Packages SE Team -PS,Social Care - Direct Payments,20/07/2016,3701874,999.93,DAVID HOWARD LTD CLIENT ACCOUNT
Adults Services,Adult Social Care,Support with Memory and Cognition - adults (18-64),Generic Care Packages SE Team -PS,Social Care - Direct Payments,20/07/2016,3701880,"1,770.72",DAVID HOWARD LTD CLIENT ACCOUNT
Adults Services,Adult Social Care,Support with Memory and Cognition - adults (18-64),Generic Care Packages SE Team-SMC,Social Care - Direct Payments,20/07/2016,3701884,702.24,DAVID HOWARD LTD CLIENT ACCOUNT
Adults Services,Adult Social Care,Support with Memory and Cognition - adults (18-64),Generic Care Packages NE Team -PS,Social Care - Direct Payments,20/07/2016,3701888,813.09,D D PAYROLL SERVICES
Adults Services,Adult Social Care,Support with Memory and Cognition - adults (18-64),Generic Care Packages SE Team -PS,Social Care - Direct Payments,20/07/2016,3701890,"1,060.78",DAVID HOWARD LTD CLIENT ACCOUNT
Adults Services,Adult Social Care,Support with Memory and Cognition - adults (18-64),CLDS Longer Term Support Teams,Social Care - Direct Payments,20/07/2016,3701893,707.20,DAVID HOWARD LTD CLIENT ACCOUNT
Adults Services,Adult Social Care,Support with Memory and Cognition - adults (18-64),Generic Care Packages NW Team -PS,Social Care - Direct Payments,20/07/2016,3701894,"6,691.35",D D PAYROLL SERVICES
Adults Services,Adult Social Care,Support with Memory and Cognition - adults (18-64),Generic Care Packages SE Team -PS,Social Care - Direct Payments,20/07/2016,3701895,896.65,DAVID HOWARD LTD CLIENT ACCOUNT
Adults Services,Adult Social Care,Support with Memory and Cognition - adults (18-64),Generic Care Packages SW Team - PS,Social Care - Direct Payments,20/07/2016,3701898,599.63,DAVID HOWARD LTD CLIENT ACCOUNT
Adults Services,Adult Social Care,Support with Memory and Cognition - adults (18-64),Generic Care Packages NW Team -PS,Social Care - Direct Payments,20/07/2016,3701899,554.59,DAVID HOWARD LTD CLIENT ACCOUNT
Adults Services,Adult Social Care,Support with Memory and Cognition - adults (18-64),Generic Care Packages SE Team -PS,Social Care - Direct Payments,20/07/2016,3701904,697.99,D D PAYROLL SERVICES
Adults Services,Adult Social Care,Support with Memory and Cognition - adults (18-64),Generic Care Packages NW Team -PS,Social Care - Direct Payments,20/07/2016,3701908,610.08,D D PAYROLL SERVICES
Adults Services,Adult Social Care,Support with Memory and Cognition - adults (18-64),Generic Care Packages SE Team -PS,Social Care - Direct Payments,20/07/2016,3701911,883.68,DAVID HOWARD LTD CLIENT ACCOUNT
Adults Services,Adult Social Care,Support with Memory and Cognition - adults (18-64),Generic Care Packages NW Team -PS,Social Care - Direct Payments,20/07/2016,3701913,659.06,DAVID HOWARD LTD CLIENT ACCOUNT
Adults Services,Adult Social Care,Support with Memory and Cognition - adults (18-64),Generic Care Packages SW Team - PS,Social Care - Direct Payments,20/07/2016,3701915,988.90,DAVID HOWARD LTD CLIENT ACCOUNT
Adults Services,Adult Social Care,Support with Memory and Cognition - adults (18-64),Generic Care Packages NE Team -PS,Social Care - Direct Payments,20/07/2016,3701917,591.57,DAVID HOWARD LTD CLIENT ACCOUNT
Adults Services,Adult Social Care,Support with Memory and Cognition - adults (18-64),CLDS Longer Term Support Teams,Social Care - Direct Payments,20/07/2016,3701921,"1,127.47",DAVID HOWARD LTD CLIENT ACCOUNT
Adults Services,Adult Social Care,Support with Memory and Cognition - adults (18-64),Cmht Iod / Poplar South,Social Care - Direct Payments,20/07/2016,3701923,742.18,D D PAYROLL SERVICES
Adults Services,Adult Social Care,Support with Memory and Cognition - adults (18-64),Generic Care Packages NW Team -PS,Social Care - Direct Payments,20/07/2016,3701924,969.37,DAVID HOWARD LTD CLIENT ACCOUNT
Adults Services,Adult Social Care,Support with Memory and Cognition - adults (18-64),Generic Care Packages SE Team -PS,Social Care - Direct Payments,20/07/2016,3701925,"2,340.32",DAVID HOWARD LTD CLIENT ACCOUNT
Adults Services,Adult Social Care,Support with Memory and Cognition - adults (18-64),Generic Care Packages SE Team -PS,Social Care - Direct Payments,20/07/2016,3701929,790.63,DAVID HOWARD LTD CLIENT ACCOUNT
Adults Services,Adult Social Care,Support with Memory and Cognition - adults (18-64),Generic Care Packages SW Team - PS,Social Care - Direct Payments,20/07/2016,3701940,"1,083.76",DAVID HOWARD LTD CLIENT ACCOUNT
Adults Services,Adult Social Care,Support with Memory and Cognition - adults (18-64),Generic Care Packages SW Team - PS,Social Care - Direct Payments,20/07/2016,3701942,550.56,DAVID HOWARD LTD CLIENT ACCOUNT
Adults Services,Adult Social Care,Support with Memory and Cognition - adults (18-64),Generic Care Packages SE Team -PS,Social Care - Direct Payments,20/07/2016,3701950,"2,669.81",D D PAYROLL SERVICES
Adults Services,Adult Social Care,Support with Memory and Cognition - adults (18-64),Generic Care Packages SE Team -PS,Social Care - Direct Payments,20/07/2016,3701951,"13,733.31",DAVID HOWARD LTD CLIENT ACCOUNT
Adults Services,Adult Social Care,Support with Memory and Cognition - adults (18-64),Generic Care Packages NE Team -SI,Social Care - Direct Payments,20/07/2016,3701953,-828.24,DAVID HOWARD LTD CLIENT ACCOUNT
Adults Services,Adult Social Care,Support with Memory and Cognition - adults (18-64),Generic Care Packages SW Team - PS,Social Care - Direct Payments,20/07/2016,3701954,"2,524.29",D D PAYROLL SERVICES
Adults Services,Adult Social Care,Support with Memory and Cognition - adults (18-64),Generic Care Packages NE Team -PS,Social Care - Direct Payments,20/07/2016,3701955,"1,138.81",DAVID HOWARD LTD CLIENT ACCOUNT
Adults Services,Adult Social Care,Support with Memory and Cognition - adults (18-64),Generic Care Packages NE Team -PS,Social Care - Direct Payments,20/07/2016,3701957,"2,491.78",D D PAYROLL SERVICES
Adults Services,Adult Social Care,Support with Memory and Cognition - adults (18-64),Generic Care Packages NE Team -PS,Social Care - Direct Payments,20/07/2016,3701960,891.38,D D PAYROLL SERVICES
Adults Services,Adult Social Care,Support with Memory and Cognition - adults (18-64),Generic Care Packages SE Team -PS,Social Care - Direct Payments,20/07/2016,3701961,922.74,D D PAYROLL SERVICES
Adults Services,Adult Social Care,Support with Memory and Cognition - adults (18-64),Generic Care Packages SE Team -PS,Social Care - Direct Payments,20/07/2016,3701962,"1,095.58",DAVID HOWARD LTD CLIENT ACCOUNT
Adults Services,Adult Social Care,Support with Memory and Cognition - adults (18-64),Generic Care Packages SE Team -PS,Social Care - Direct Payments,20/07/2016,3701964,"1,024.68",DAVID HOWARD LTD CLIENT ACCOUNT
Adults Services,Adult Social Care,Support with Memory and Cognition - adults (18-64),Generic Care Packages SW Team - PS,Social Care - Direct Payments,20/07/2016,3701966,"2,530.84",DAVID HOWARD LTD CLIENT ACCOUNT
Adults Services,Adult Social Care,Support with Memory and Cognition - adults (18-64),Generic Care Packages NE Team -PS,Social Care - Direct Payments,20/07/2016,3701968,904.14,DAVID HOWARD LTD CLIENT ACCOUNT
Adults Services,Adult Social Care,Support with Memory and Cognition - adults (18-64),Generic Care Packages SE Team -PS,Social Care - Direct Payments,20/07/2016,3701969,675.05,DAVID HOWARD LTD CLIENT ACCOUNT
Adults Services,Adult Social Care,Support with Memory and Cognition - adults (18-64),Generic Care Packages SW Team - PS,Social Care - Direct Payments,20/07/2016,3701972,"1,150.90",D D PAYROLL SERVICES
Adults Services,Adult Social Care,Support with Memory and Cognition - adults (18-64),CLDS Longer Term Support Teams,Social Care - Direct Payments,20/07/2016,3701973,"1,885.60",DAVID HOWARD LTD CLIENT ACCOUNT
Adults Services,Adult Social Care,Support with Memory and Cognition - adults (18-64),Generic Care Packages NW Team -PS,Social Care - Direct Payments,20/07/2016,3701974,692.81,D D PAYROLL SERVICES
Adults Services,Adult Social Care,Support with Memory and Cognition - adults (18-64),"Generic Care Packages SW Team -SS		",Social Care - Direct Payments,20/07/2016,3701975,624.96,D D PAYROLL SERVICES
Adults Services,Adult Social Care,Support with Memory and Cognition - adults (18-64),Generic Care Packages SE Team -PS,Social Care - Direct Payments,20/07/2016,3701977,"1,330.96",D D PAYROLL SERVICES
Adults Services,Adult Social Care,Support with Memory and Cognition - adults (18-64),Generic Care Packages NW Team -PS,Social Care - Direct Payments,20/07/2016,3701978,"1,018.97",DAVID HOWARD LTD CLIENT ACCOUNT
Adults Services,Adult Social Care,Support with Memory and Cognition - adults (18-64),Generic Care Packages SW Team - PS,Social Care - Direct Payments,20/07/2016,3701980,"1,813.50",D D PAYROLL SERVICES
Adults Services,Adult Social Care,Support with Memory and Cognition - adults (18-64),CLDS Longer Term Support Teams,Social Care - Direct Payments,20/07/2016,3701984,"1,548.01",D D PAYROLL SERVICES
Adults Services,Adult Social Care,Support with Memory and Cognition - adults (18-64),Generic Care Packages SW Team - PS,Social Care - Direct Payments,20/07/2016,3701986,"1,282.60",D D PAYROLL SERVICES
Adults Services,Adult Social Care,Support with Memory and Cognition - adults (18-64),Generic Care Packages SE Team -PS,Social Care - Direct Payments,20/07/2016,3701987,888.37,D D PAYROLL SERVICES
Adults Services,Adult Social Care,Support with Memory and Cognition - adults (18-64),Generic Care Packages NE Team -PS,Social Care - Direct Payments,20/07/2016,3701992,748.65,DAVID HOWARD LTD CLIENT ACCOUNT
Adults Services,Adult Social Care,Support with Memory and Cognition - adults (18-64),CLDS Longer Term Support Teams,Social Care - Direct Payments,20/07/2016,3701993,797.14,D D PAYROLL SERVICES
Adults Services,Adult Social Care,Support with Memory and Cognition - adults (18-64),CLDS Longer Term Support Teams,Social Care - Direct Payments,20/07/2016,3701996,"3,849.00",D D PAYROLL SERVICES
Adults Services,Adult Social Care,Support with Memory and Cognition - adults (18-64),Generic Care Packages SE Team -PS,Social Care - Direct Payments,20/07/2016,3701998,776.20,DAVID HOWARD LTD CLIENT ACCOUNT
Adults Services,Adult Social Care,Support with Memory and Cognition - adults (18-64),Generic Care Packages NW Team -PS,Social Care - Direct Payments,20/07/2016,3701999,852.19,DAVID HOWARD LTD CLIENT ACCOUNT
Adults Services,Adult Social Care,Support with Memory and Cognition - adults (18-64),Cmht Bethnal Green,Social Care - Direct Payments,20/07/2016,3702000,711.27,DAVID HOWARD LTD CLIENT ACCOUNT
Adults Services,Adult Social Care,Support with Memory and Cognition - adults (18-64),Generic Care Packages SW Team - PS,Social Care - Direct Payments,20/07/2016,3702004,"1,152.89",DAVID HOWARD LTD CLIENT ACCOUNT
Adults Services,Adult Social Care,Support with Memory and Cognition - adults (18-64),Generic Care Packages NE Team -SI,Social Care - Direct Payments,20/07/2016,3702006,"2,173.37",DAVID HOWARD LTD CLIENT ACCOUNT
Adults Services,Adult Social Care,Support with Memory and Cognition - adults (18-64),Generic Care Packages NE Team -PS,Social Care - Direct Payments,20/07/2016,3702007,"3,630.68",DAVID HOWARD LTD CLIENT ACCOUNT
Adults Services,Adult Social Care,Support with Memory and Cognition - adults (18-64),CLDS Longer Term Support Teams,Social Care - Direct Payments,20/07/2016,3702008,"2,930.38",DAVID HOWARD LTD CLIENT ACCOUNT
Adults Services,Adult Social Care,Support with Memory and Cognition - adults (18-64),Generic Care Packages SE Team -PS,Social Care - Direct Payments,20/07/2016,3702009,"1,493.89",DAVID HOWARD LTD CLIENT ACCOUNT
Adults Services,Adult Social Care,Support with Memory and Cognition - adults (18-64),CLDS Longer Term Support Teams,Social Care - Direct Payments,20/07/2016,3702010,"3,392.24",DAVID HOWARD LTD CLIENT ACCOUNT
Adults Services,Adult Social Care,Support with Memory and Cognition - adults (18-64),Generic Care Packages SW Team - PS,Social Care - Direct Payments,20/07/2016,3702013,"1,293.36",DAVID HOWARD LTD CLIENT ACCOUNT
Adults Services,Adult Social Care,Support with Memory and Cognition - adults (18-64),CLDS Longer Term Support Teams,Social Care - Direct Payments,20/07/2016,3702014,646.62,D D PAYROLL SERVICES
Adults Services,Adult Social Care,Support with Memory and Cognition - adults (18-64),Generic Care Packages SE Team -PS,Social Care - Direct Payments,20/07/2016,3702015,"1,038.01",D D PAYROLL SERVICES
Adults Services,Adult Social Care,Support with Memory and Cognition - adults (18-64),CLDS Longer Term Support Teams,Social Care - Direct Payments,20/07/2016,3702018,675.84,DAVID HOWARD LTD CLIENT ACCOUNT
Adults Services,Adult Social Care,Support with Memory and Cognition - adults (18-64),Generic Care Packages NW Team -PS,Social Care - Direct Payments,20/07/2016,3702019,"1,492.92",D D PAYROLL SERVICES
Adults Services,Adult Social Care,Support with Memory and Cognition - adults (18-64),Generic Care Packages SE Team -PS,Social Care - Direct Payments,20/07/2016,3702020,617.25,D D PAYROLL SERVICES
Adults Services,Adult Social Care,Support with Memory and Cognition - adults (18-64),CLDS Longer Term Support Teams,Social Care - Direct Payments,20/07/2016,3702022,"-7,638.48",DAVID HOWARD LTD CLIENT ACCOUNT
Adults Services,Adult Social Care,Physical Support - adults (18-64),"Failed Care Package Conversion		",Social Care - Others,20/07/2016,3702022,"-10,301.62",DAVID HOWARD LTD CLIENT ACCOUNT
Adults Services,Adult Social Care,Support with Memory and Cognition - adults (18-64),Generic Care Packages NW Team -PS,Social Care - Direct Payments,20/07/2016,3702023,746.13,DAVID HOWARD LTD CLIENT ACCOUNT
Adults Services,Adult Social Care,Support with Memory and Cognition - adults (18-64),CLDS Longer Term Support Teams,Social Care - Direct Payments,20/07/2016,3702029,"1,155.64",D D PAYROLL SERVICES
Adults Services,Adult Social Care,Support with Memory and Cognition - adults (18-64),Generic Care Packages NW Team -PS,Social Care - Direct Payments,20/07/2016,3702030,"1,053.56",DAVID HOWARD LTD CLIENT ACCOUNT
Adults Services,Adult Social Care,Support with Memory and Cognition - adults (18-64),CLDS Longer Term Support Teams,Social Care - Direct Payments,20/07/2016,3702031,832.35,D D PAYROLL SERVICES
Adults Services,Adult Social Care,Support with Memory and Cognition - adults (18-64),Generic Care Packages SW Team - PS,Social Care - Direct Payments,20/07/2016,3702032,"3,747.41",DAVID HOWARD LTD CLIENT ACCOUNT
Adults Services,Adult Social Care,Support with Memory and Cognition - adults (18-64),CLDS Longer Term Support Teams,Social Care - Direct Payments,20/07/2016,3702034,"3,324.40",D D PAYROLL SERVICES
Adults Services,Adult Social Care,Support with Memory and Cognition - adults (18-64),Generic Care Packages SE Team -PS,Social Care - Direct Payments,20/07/2016,3702036,"1,103.78",DAVID HOWARD LTD CLIENT ACCOUNT
Adults Services,Adult Social Care,Support with Memory and Cognition - adults (18-64),Generic Care Packages NE Team -PS,Social Care - Direct Payments,20/07/2016,3702038,527.13,DAVID HOWARD LTD CLIENT ACCOUNT
Adults Services,Adult Social Care,Support with Memory and Cognition - adults (18-64),Generic Care Packages SW Team - PS,Social Care - Direct Payments,20/07/2016,3702039,527.00,DAVID HOWARD LTD CLIENT ACCOUNT
Adults Services,Adult Social Care,Support with Memory and Cognition - adults (18-64),Generic Care Packages SW Team -SC,Social Care - Direct Payments,20/07/2016,3702040,646.08,DAVID HOWARD LTD CLIENT ACCOUNT
Adults Services,Adult Social Care,Support with Memory and Cognition - adults (18-64),Generic Care Packages SW Team - PS,Social Care - Direct Payments,20/07/2016,3702041,767.34,DAVID HOWARD LTD CLIENT ACCOUNT
Adults Services,Adult Social Care,Support with Memory and Cognition - adults (18-64),CLDS Longer Term Support Teams,Social Care - Direct Payments,20/07/2016,3702042,"1,387.03",D D PAYROLL SERVICES
Adults Services,Adult Social Care,Support with Memory and Cognition - adults (18-64),CLDS Longer Term Support Teams,Social Care - Direct Payments,20/07/2016,3702044,"2,350.86",D D PAYROLL SERVICES
Adults Services,Adult Social Care,Support with Memory and Cognition - adults (18-64),Generic Care Packages SW Team - PS,Social Care - Direct Payments,20/07/2016,3702046,647.46,D D PAYROLL SERVICES
Adults Services,Adult Social Care,Support with Memory and Cognition - adults (18-64),CLDS Longer Term Support Teams,Social Care - Direct Payments,20/07/2016,3702052,"1,378.08",D D PAYROLL SERVICES
Adults Services,General Fund/Council Fund,Homelessness,Supporting People Services,Social Care - Direct Payments,20/07/2016,3702054,"1,023.00",DAVID HOWARD LTD CLIENT ACCOUNT
Adults Services,Adult Social Care,Support with Memory and Cognition - adults (18-64),Generic Care Packages NW Team -PS,Social Care - Direct Payments,20/07/2016,3702055,"4,247.62",DAVID HOWARD LTD CLIENT ACCOUNT
Adults Services,Adult Social Care,Support with Memory and Cognition - adults (18-64),CLDS Longer Term Support Teams,Social Care - Direct Payments,20/07/2016,3702056,"4,317.86",D D PAYROLL SERVICES
Adults Services,Adult Social Care,Support with Memory and Cognition - adults (18-64),Generic Care Packages SW Team - PS,Social Care - Direct Payments,20/07/2016,3702057,721.68,DAVID HOWARD LTD CLIENT ACCOUNT
Adults Services,Adult Social Care,Support with Memory and Cognition - adults (18-64),Generic Care Packages NW Team -PS,Social Care - Direct Payments,20/07/2016,3702059,607.73,DAVID HOWARD LTD CLIENT ACCOUNT
Adults Services,Adult Social Care,Support with Memory and Cognition - adults (18-64),Generic Care Packages NW Team -PS,Social Care - Direct Payments,20/07/2016,3702065,538.65,DAVID HOWARD LTD CLIENT ACCOUNT
Adults Services,Adult Social Care,Support with Memory and Cognition - adults (18-64),Generic Care Packages SE Team -PS,Social Care - Direct Payments,20/07/2016,3702066,556.67,D D PAYROLL SERVICES
Adults Services,Adult Social Care,Support with Memory and Cognition - adults (18-64),Generic Care Packages SW Team - PS,Social Care - Direct Payments,20/07/2016,3702068,"2,165.79",DAVID HOWARD LTD CLIENT ACCOUNT
Adults Services,Adult Social Care,Support with Memory and Cognition - adults (18-64),CLDS Longer Term Support Teams,Social Care - Direct Payments,20/07/2016,3702070,"2,125.27",DAVID HOWARD LTD CLIENT ACCOUNT
Adults Services,Adult Social Care,Support with Memory and Cognition - adults (18-64),Generic Care Packages SE Team -PS,Social Care - Direct Payments,20/07/2016,3702073,570.05,DAVID HOWARD LTD CLIENT ACCOUNT
Adults Services,Adult Social Care,Support with Memory and Cognition - adults (18-64),CLDS Longer Term Support Teams,Social Care - Direct Payments,20/07/2016,3702075,"4,043.06",D D PAYROLL SERVICES
Adults Services,Adult Social Care,Support with Memory and Cognition - adults (18-64),CLDS Longer Term Support Teams,Social Care - Direct Payments,20/07/2016,3702076,"1,931.12",D D PAYROLL SERVICES
Adults Services,Adult Social Care,Support with Memory and Cognition - adults (18-64),Generic Care Packages SW Team - PS,Social Care - Direct Payments,20/07/2016,3702077,"1,263.25",DAVID HOWARD LTD CLIENT ACCOUNT
Adults Services,Adult Social Care,Support with Memory and Cognition - adults (18-64),Cmht Iod / Poplar South,Social Care - Direct Payments,20/07/2016,3702079,523.46,DAVID HOWARD LTD CLIENT ACCOUNT
Adults Services,Adult Social Care,Support with Memory and Cognition - adults (18-64),Generic Care Packages NW Team -PS,Social Care - Direct Payments,20/07/2016,3702080,"1,169.01",DAVID HOWARD LTD CLIENT ACCOUNT
Adults Services,Adult Social Care,Support with Memory and Cognition - adults (18-64),Generic Care Packages SW Team - PS,Social Care - Direct Payments,20/07/2016,3702082,"1,241.24",DAVID HOWARD LTD CLIENT ACCOUNT
Adults Services,Adult Social Care,Support with Memory and Cognition - adults (18-64),Generic Care Packages NW Team -PS,Social Care - Direct Payments,20/07/2016,3702085,635.10,DAVID HOWARD LTD CLIENT ACCOUNT
Adults Services,Adult Social Care,Support with Memory and Cognition - adults (18-64),Generic Care Packages SE Team -PS,Social Care - Direct Payments,20/07/2016,3702086,"1,266.31",DAVID HOWARD LTD CLIENT ACCOUNT
Adults Services,Adult Social Care,Support with Memory and Cognition - adults (18-64),CLDS Longer Term Support Teams,Social Care - Direct Payments,20/07/2016,3702087,"1,001.03",D D PAYROLL SERVICES
Adults Services,Adult Social Care,Support with Memory and Cognition - adults (18-64),CLDS Longer Term Support Teams,Social Care - Direct Payments,20/07/2016,3702088,"3,060.67",D D PAYROLL SERVICES
Adults Services,Adult Social Care,Support with Memory and Cognition - adults (18-64),CLDS Longer Term Support Teams,Social Care - Direct Payments,20/07/2016,3702090,"2,878.57",DAVID HOWARD LTD CLIENT ACCOUNT
Adults Services,Adult Social Care,Support with Memory and Cognition - adults (18-64),Generic Care Packages NW Team -PS,Social Care - Direct Payments,20/07/2016,3702091,"7,827.28",DAVID HOWARD LTD CLIENT ACCOUNT
Adults Services,Adult Social Care,Support with Memory and Cognition - adults (18-64),Generic Care Packages NE Team -PS,Social Care - Direct Payments,20/07/2016,3702096,623.54,DAVID HOWARD LTD CLIENT ACCOUNT
Adults Services,Adult Social Care,Support with Memory and Cognition - adults (18-64),CLDS Longer Term Support Teams,Social Care - Direct Payments,20/07/2016,3702097,"1,302.97",DAVID HOWARD LTD CLIENT ACCOUNT
Adults Services,Adult Social Care,Support with Memory and Cognition - adults (18-64),CLDS Longer Term Support Teams,Social Care - Direct Payments,20/07/2016,3702098,900.99,D D PAYROLL SERVICES
Adults Services,Adult Social Care,Support with Memory and Cognition - adults (18-64),CLDS Longer Term Support Teams,Social Care - Direct Payments,20/07/2016,3702099,900.99,D D PAYROLL SERVICES
Adults Services,Adult Social Care,Support with Memory and Cognition - adults (18-64),Generic Care Packages SW Team - PS,Social Care - Direct Payments,20/07/2016,3702100,773.89,DAVID HOWARD LTD CLIENT ACCOUNT
Adults Services,Adult Social Care,Support with Memory and Cognition - adults (18-64),CLDS Longer Term Support Teams,Social Care - Direct Payments,20/07/2016,3702101,"1,982.05",DAVID HOWARD LTD CLIENT ACCOUNT
Adults Services,Adult Social Care,Support with Memory and Cognition - adults (18-64),CLDS Longer Term Support Teams,Social Care - Direct Payments,20/07/2016,3702102,"1,120.92",DAVID HOWARD LTD CLIENT ACCOUNT
Adults Services,Adult Social Care,Support with Memory and Cognition - adults (18-64),CLDS Longer Term Support Teams,Social Care - Direct Payments,20/07/2016,3702103,"1,666.25",DAVID HOWARD LTD CLIENT ACCOUNT
Adults Services,Adult Social Care,Support with Memory and Cognition - adults (18-64),Generic Care Packages NE Team -PS,Social Care - Direct Payments,20/07/2016,3702104,"1,875.85",DAVID HOWARD LTD CLIENT ACCOUNT
Adults Services,Adult Social Care,Support with Memory and Cognition - adults (18-64),Generic Care Packages NW Team -PS,Social Care - Direct Payments,20/07/2016,3702106,710.21,DAVID HOWARD LTD CLIENT ACCOUNT
Adults Services,Adult Social Care,Support with Memory and Cognition - adults (18-64),Generic Care Packages SW Team-SMC,Social Care - Direct Payments,20/07/2016,3702109,642.94,DAVID HOWARD LTD CLIENT ACCOUNT
Adults Services,Adult Social Care,Support with Memory and Cognition - adults (18-64),Generic Care Packages NW Team -PS,Social Care - Direct Payments,20/07/2016,3702111,873.09,DAVID HOWARD LTD CLIENT ACCOUNT
Adults Services,Adult Social Care,Support with Memory and Cognition - adults (18-64),Generic Care Packages SW Team - PS,Social Care - Direct Payments,20/07/2016,3702115,701.53,DAVID HOWARD LTD CLIENT ACCOUNT
Adults Services,Adult Social Care,Support with Memory and Cognition - adults (18-64),Generic Care Packages NE Team -PS,Social Care - Direct Payments,20/07/2016,3702118,"1,360.24",D D PAYROLL SERVICES
Adults Services,Adult Social Care,Support with Memory and Cognition - adults (18-64),CLDS Longer Term Support Teams,Social Care - Direct Payments,20/07/2016,3702119,650.29,D D PAYROLL SERVICES
Adults Services,Adult Social Care,Support with Memory and Cognition - adults (18-64),Generic Care Packages SE Team -PS,Social Care - Direct Payments,20/07/2016,3702120,"1,047.27",DAVID HOWARD LTD CLIENT ACCOUNT
Adults Services,Adult Social Care,Support with Memory and Cognition - adults (18-64),Generic Care Packages NW Team -PS,Social Care - Direct Payments,20/07/2016,3702121,"1,413.38",DAVID HOWARD LTD CLIENT ACCOUNT
Adults Services,Adult Social Care,Support with Memory and Cognition - adults (18-64),Generic Care Packages SE Team -PS,Social Care - Direct Payments,20/07/2016,3702122,786.56,D D PAYROLL SERVICES
Adults Services,Adult Social Care,Support with Memory and Cognition - adults (18-64),Generic Care Packages SE Team -PS,Social Care - Direct Payments,20/07/2016,3702123,925.84,DAVID HOWARD LTD CLIENT ACCOUNT
Adults Services,Adult Social Care,Support with Memory and Cognition - adults (18-64),Generic Care Packages SE Team -PS,Social Care - Direct Payments,20/07/2016,3702125,607.64,DAVID HOWARD LTD CLIENT ACCOUNT
Adults Services,Adult Social Care,Support with Memory and Cognition - adults (18-64),Generic Care Packages NW Team -PS,Social Care - Direct Payments,20/07/2016,3702126,"4,112.37",D D PAYROLL SERVICES
Adults Services,Adult Social Care,Support with Memory and Cognition - adults (18-64),Generic Care Packages SE Team-SMC,Social Care - Direct Payments,20/07/2016,3702129,"13,832.29",D D PAYROLL SERVICES
Adults Services,Adult Social Care,Support with Memory and Cognition - adults (18-64),Generic Care Packages SW Team - PS,Social Care - Direct Payments,20/07/2016,3702131,531.43,DAVID HOWARD LTD CLIENT ACCOUNT
Adults Services,Adult Social Care,Support with Memory and Cognition - adults (18-64),Generic Care Packages SE Team -PS,Social Care - Direct Payments,20/07/2016,3702132,"1,460.41",DAVID HOWARD LTD CLIENT ACCOUNT
Adults Services,Adult Social Care,Support with Memory and Cognition - adults (18-64),Generic Care Packages SW Team - PS,Social Care - Direct Payments,20/07/2016,3702133,686.30,D D PAYROLL SERVICES
Adults Services,Adult Social Care,Support with Memory and Cognition - adults (18-64),Generic Care Packages SW Team - PS,Social Care - Direct Payments,20/07/2016,3702134,710.12,D D PAYROLL SERVICES
Adults Services,Adult Social Care,Support with Memory and Cognition - adults (18-64),CLDS Longer Term Support Teams,Social Care - Direct Payments,20/07/2016,3702141,989.34,D D PAYROLL SERVICES
Adults Services,Adult Social Care,Support with Memory and Cognition - adults (18-64),Generic Care Packages SE Team -PS,Social Care - Direct Payments,20/07/2016,3702145,"2,809.93",Redacted Section  40 FOI Act
Adults Services,Adult Social Care,Support with Memory and Cognition - adults (18-64),"Generic Care Packages SE Team-LD							",Social Care - Direct Payments,20/07/2016,3702155,"-1,128.12",DAVID HOWARD LTD CLIENT ACCOUNT
Adults Services,Adult Social Care,Support with Memory and Cognition - adults (18-64),Generic Care Packages NE Team -PS,Social Care - Direct Payments,20/07/2016,3702156,831.24,DAVID HOWARD LTD CLIENT ACCOUNT
Adults Services,Adult Social Care,Support with Memory and Cognition - adults (18-64),CLDS Longer Term Support Teams,Social Care - Direct Payments,20/07/2016,3702157,"7,657.22",DAVID HOWARD LTD CLIENT ACCOUNT
Adults Services,Adult Social Care,Support with Memory and Cognition - adults (18-64),Generic Care Packages NW Team -PS,Social Care - Direct Payments,20/07/2016,3702158,934.92,D D PAYROLL SERVICES
